Workbook

Sheet Gusset Plates Rating
A1: Gusset Plates Analysis & Rating | G1: OAH | H1: =TODAY() -> 2009-06-01 | K1: Disclaimer Note: The Office of Structural Engineering is providing this spreadsheet to facilitate the use of FHWA’s guidance for rating gusset plates on truss bridges. While bridge rating personnel are encouraged to use this spreadsheet for the reason of standardizing the rating procedures, they are responsible for the accuracy of input data, output results, and all calculations ensuring safety of the public.
A2: Load Factor Method
A3: =IF($C$58=6,"Inventory Rating","Operating Rating") -> Operating Rating | C3: =IF(A3="Inventory Rating",1,2) -> 2
G4: Joint Rating Output Summary | K4: *Capacity/Demand (C/D) | M4: Rating Factor (RF= Capacity - lf1*DL / lf2*LL+I)
A5: Bridge: | G5: Check Type | K5: Message | L5: Ratio | M5: Message | N5: Ratio
A6: SFN: | G6: =$A$105 -> 1: Gusset Plate Minimum Edge Stiffness | K6: =$AC$105 -> OK | L6: =IF($AB$105=0,"N/A",$AB$105) -> N/A | M6: =$AC$105 -> OK | N6: =L6 -> N/A
A7: GPS: | G7: =$A$122 -> 2: Gusset Plate Local Compression Buckling Under Whitmore Effective Width | K7: =$AC$122 -> OK | L7: =IF($AB$122=0,"N/A",$AB$122) -> N/A | M7: =IF(N7<1,"NG","OK") -> OK | N7: =IF($AA$122=0,"N/A",$AA$122) -> N/A
G8: =$A$145 -> 3: Minimum Rivet Count Requirement | K8: =$AC$145 -> OK | L8: =IF($AB$145=0,"N/A",$AB$145) -> 1.391304348 | M8: OK | N8: =IF($AA$145=0,"N/A",$AA$145) -> 1.91303997
A9: Functional Class: | G9: =$A$176 -> 4: Gusset Plate Local Tension Yield and Fracture | K9: =$AC$176 -> OK | L9: =IF($AB$176=0,"N/A",$AB$176) -> 3.694768056 | M9: OK | N9: =IF($AA$176=0,"N/A",$AA$176) -> 8.174127837
A10: ADT: | G10: =$A$203 -> 5: Gusset Plate Axial Tension & Shear Rupture Resistance (Block Shear) | K10: =$AC$203 -> OK | L10: =IF($AB$203=0,"N/A",$AB$203) -> 3.535134496 | M10: OK | N10: =IF($AA$203=0,"N/A",$AA$203) -> 7.584193749
A11: Loading Truck : | G11: =$A$240 -> 6: Members Tear Out (Block Shear) | K11: =$AC$240 -> OK | L11: =IF($AB$240=0,"N/A",$AB$240) -> 4.532042424 | M11: OK | N11: =IF($AA$240=0,"N/A",$AA$240) -> 10.0548928
A12: Lanes: | G12: =$A$263 -> 7: Gusset Plate Combined Planes Shear Rupture Resistance | K12: =$AC$263 -> OK | L12: =IF($AB$263=0,"N/A",$AB$263) -> 3.959800887 | M12: OK | N12: =IF($AA$263=0,"N/A",$AA$263) -> 8.356691275
G13: =$A$343 -> 8: Gusset Plate Global Shear Yielding and Fracturing Requirement (Shear Only) | K13: =$AC$343 -> OK | L13: =IF($AB$343=0,"N/A",$AB$343) -> 2.551668356 | M13: OK | N13: =IF($AA$343=0,"N/A",$AA$343) -> 2.460242988
K14: * For Informational & Design Purposes | M14: Minimum R.F. = | N14: =MIN(N7:N13) -> 1.91303997
A17: Plans Year:
A18: Year Built:
A19: Gusset Plate Type: | G19: Scroll Trucks | I19: =$B$58 -> ODOT Truck Train | J19: =CONCATENATE(" (",A3,")") -> (Operating Rating)
A20: Gusset Plate Steel Fy | B20: 33000 | C20: psi | I20: NOTE: JOINTS 109-200 NOT USED
A21: Gusset Plate Steel Fu | B21: 60000 | C21: psi | G21: Scroll Joints | I21: Joint ID = | J21: =$C$48 -> 207 | K21: =B48 -> U7
A22: Gusset Plate Steel E: | B22: 29000000 | C22: psi | I22: Total Thick. = | J22: =MIN(D91:D95,E91:E95)+MIN(F91:F95,G91:G95) -> 1
A23: Connectors Diameter: | B23: 0.875 | C23: inch (bolts/rivets) -----------> | D23: =IF(B20>=100000,0,IF(B23<=1.25,0.15,0)) -> 0.15 | E23: = Beta
A24: Connectors Steel Fy: | C24: psi (bolts/rivets) | G24: Live Load % Reduction: | I24: =$E$58 -> 100 | J24: %
A26: k for columns= | B26: 1.2 | C26: Suggested Defaults Values | G26: Note: The above buttons maybe used to scroll values; scrolling will not change the input.
A27: Shear Yield Reduction Factor Ω: | B27: 0.74
A28: Shear Fracture Load Factor Ø: | B28: 0.85
A29: Tension Load Factor Ø: | B29: 0.9
A30: Compression Load Factor Ø: | B30: 0.85
A31: Bearing Load Factor Ø: | B31: 0.9
A32: Block Shear Load Factor Ø: | B32: 0.85
A34: Load Factor for Dead Loads f1: | B34: 1.3
A35: Load Factor for Live Loads f2: | B35: =IF($C$58=6,2.17,1.3) -> 1.3
I36: 6
A37: Cc = | B37: =SQRT(2*PI()^2*$B$22/$B$20) -> 131.7064062 | G37: 3 | H37: Connectors Type: | I37: =IF(I36=1,"1- Connector Fy Shown Above",IF(I36=2,"2- Low Carbon Steel Bolts ASTM A-307 & Ribbed Bolts",IF(I36=3,"3- Power Driven Rivets ASTM A-502 Grade 1 or ASTM A-141",IF(I36=4,"4- Structural Steel Rivets High Dtrength ASTM A-502 Grade 2",IF(I36=5,"5- Unknown Rivet Type Constructed Prior to 1936",IF(I36=6,"6- Unknown Rivet Type Constructed After 1936",IF(I36=7,"7- ASTM A-325",IF(I36=8,"8- ASTM A-490","Error")))))))) -> 6- Unknown Rivet Type Constructed After 1936
A40: Factored Plate Tension Stress | B40: Factored Plate Compression Stress | C40: Factored Plate Shear Stress | F40: Factored Plate Bearing Stress (ksi) | G40: Factored Bolts/Rivet Shear Stress (ksi)
A41: Based on Gross/Net Area (ksi) | B41: Based on Column Action | C41: Yield Based on Gross Area (ksi) | D41: Fracture Based on Net Area (ksi) | E41: Block Shear (ksi)
A42: =IF($C$3=1,$B$29*$B$20/1000,IF($C$3=2, $B$29*$B$20/1000,"Error")) -> 29.7 | B42: See Below for KL/r | C42: =IF($C$3=1,B27*0.58*$B$20/1000,IF($C$3=2, B27*0.58*$B$20/1000,"Error")) -> 14.1636 | D42: =IF($C$3=1,B28*0.58*$B$20/1000,IF($C$3=2, B28*0.58*$B$20/1000,"Error")) -> 16.269 | E42: =IF($C$3=1,B32*0.58*$B$20/1000,IF($C$3=2, B32*0.58*$B$20/1000,"Error")) -> 16.269 | F42: =IF($C$3=1,$B$31*$B$20/1000,IF($C$3=2, $B$31*$B$20/1000,"Error")) -> 29.7 | G42: =IF(I36=1,$B$27*$B$20/1000,IF(I36=2,30,IF(I36=3,27,IF(I36=4,30,IF(I36=5,18,IF(I36=6,21,IF(I36=7,35,IF(I36=8,43,"Error")))))))) -> 21
C47: NOTE: JOINTS 109-200 NOT USED
A48: Check Joint No: | B48: =LOOKUP($C$48,'Info Tables'!A19:A58,'Info Tables'!B19:B58) -> U7 | C48: 207 | D48: Joint ID = | E48: =$C$48 -> 207 | G48: U/L Chord (LT) | H48: U/L Chord (RT) | I48: Diagonal (LT) | J48: Diagonal (RT) | K48: Vertical
A49: Inner Gusset Total Original Thickness: | B49: =(LOOKUP($C$48,'Info Tables'!A19:A58,'Info Tables'!D19:D58)) -> 0.5 | C49: inch | F49: For tensile area remaining inner gusset | G49: =IF($B$67="None","N/A",LOOKUP($B$67,'Info Tables'!$A$119:$A$195,'Info Tables'!$G$119:$G$195)) -> 1 | H49: =IF($B$68="None","N/A",LOOKUP($B$68,'Info Tables'!$A$119:$A$195,'Info Tables'!$G$119:$G$195)) -> N/A | I49: =IF($B$69="None","N/A",LOOKUP($B$69,'Info Tables'!$A$119:$A$195,'Info Tables'!$G$119:$G$195)) -> 1 | J49: =IF($B$70="None","N/A",LOOKUP($B$70,'Info Tables'!$A$119:$A$195,'Info Tables'!$G$119:$G$195)) -> 1 | K49: =IF($B$71="None","N/A",LOOKUP($B$71,'Info Tables'!$A$119:$A$195,'Info Tables'!$G$119:$G$195)) -> 1
A50: Inner Gusset Horizontal Shear (Global) % Remaining: | B50: =(LOOKUP($C$48,'Info Tables'!A19:A58,'Info Tables'!P19:P58)) -> 1.38 | C50: From the Original Thickness of Gusset After Reduction …. For Whitmore Area | G50: =IF($B$67="None","N/A",LOOKUP($B$67,'Info Tables'!A119:A195,'Info Tables'!H119:H195)) -> 1 | H50: =IF($B$68="None","N/A",LOOKUP($B$68,'Info Tables'!A119:A195,'Info Tables'!H119:H195)) -> N/A | I50: =IF($B$69="None","N/A",LOOKUP($B$69,'Info Tables'!A119:A195,'Info Tables'!H119:H195)) -> 1 | J50: =IF($B$70="None","N/A",LOOKUP($B$70,'Info Tables'!A119:A195,'Info Tables'!H119:H195)) -> 1 | K50: =IF($B$71="None","N/A",LOOKUP($B$71,'Info Tables'!A119:A195,'Info Tables'!H119:H195)) -> 1
A51: Inner Gusset Vertical Shear (Global) % Remaining: | B51: =(LOOKUP($C$48,'Info Tables'!A19:A58,'Info Tables'!R19:R58)) -> 1 | C51: From the Original Thickness of Gusset After Reduction….. For Shear Area | G51: =IF($B$67="None","N/A",LOOKUP($B$67,'Info Tables'!A119:A195,'Info Tables'!I119:I195)) -> 1 | H51: =IF($B$68="None","N/A",LOOKUP($B$68,'Info Tables'!A119:A195,'Info Tables'!I119:I195)) -> N/A | I51: =IF($B$69="None","N/A",LOOKUP($B$69,'Info Tables'!A119:A195,'Info Tables'!I119:I195)) -> 1 | J51: =IF($B$70="None","N/A",LOOKUP($B$70,'Info Tables'!A119:A195,'Info Tables'!I119:I195)) -> 1 | K51: =IF($B$71="None","N/A",LOOKUP($B$71,'Info Tables'!A119:A195,'Info Tables'!I119:I195)) -> 1
A52: Maximum Inner Unstiffened Edge Thickness | B52: =(LOOKUP($C$48,'Info Tables'!A19:A58,'Info Tables'!T19:T58)) -> 1 | C52: From the Original Thickness of Gusset After Reduction….. For Rivet Count | G52: =IF($B67="None","N/A",LOOKUP($B67,'Info Tables'!$A$119:$A$195,'Info Tables'!$J$119:$J$195)) -> 1 | H52: =IF($B68="None","N/A",LOOKUP($B68,'Info Tables'!$A$119:$A$195,'Info Tables'!$J$119:$J$195)) -> N/A | I52: =IF($B69="None","N/A",LOOKUP($B69,'Info Tables'!$A$119:$A$195,'Info Tables'!$J$119:$J$195)) -> 1 | J52: =IF($B70="None","N/A",LOOKUP($B70,'Info Tables'!$A$119:$A$195,'Info Tables'!$J$119:$J$195)) -> 1 | K52: =IF($B71="None","N/A",LOOKUP($B71,'Info Tables'!$A$119:$A$195,'Info Tables'!$J$119:$J$195)) -> 1
A53: Outer Gusset Total Original Thickness: | B53: =(LOOKUP($C$48,'Info Tables'!A19:A58,'Info Tables'!D19:D58)) -> 0.5 | C53: inch | F53: For tensile area remaining outer gusset | G53: =IF($B$67="None","N/A",LOOKUP($B$67,'Info Tables'!A119:A195,'Info Tables'!K119:K195)) -> 1 | H53: =IF($B$68="None","N/A",LOOKUP($B$68,'Info Tables'!$A$119:$A$195,'Info Tables'!K119:K195)) -> N/A | I53: =IF($B$69="None","N/A",LOOKUP($B$69,'Info Tables'!$A$119:$A$195,'Info Tables'!K119:K195)) -> 1 | J53: =IF($B$70="None","N/A",LOOKUP($B$70,'Info Tables'!$A$119:$A$195,'Info Tables'!K119:K195)) -> 1 | K53: =IF($B$71="None","N/A",LOOKUP($B$71,'Info Tables'!$A$119:$A$195,'Info Tables'!K119:K195)) -> 1
A54: Outer Gusset Horizontal Shear (Global) % Remaining: | B54: =(LOOKUP($C$48,'Info Tables'!A19:A58,'Info Tables'!Q19:Q58)) -> 1.38 | C54: From the Original Thickness of Gusset After Reduction …. For Whitmore Area | G54: =IF($B$67="None","N/A",LOOKUP($B$67,'Info Tables'!A119:A195,'Info Tables'!L119:L195)) -> 1 | H54: =IF($B$68="None","N/A",LOOKUP($B$68,'Info Tables'!A119:A195,'Info Tables'!L119:L195)) -> N/A | I54: =IF($B$69="None","N/A",LOOKUP($B$69,'Info Tables'!A119:A195,'Info Tables'!L119:L195)) -> 1 | J54: =IF($B$70="None","N/A",LOOKUP($B$70,'Info Tables'!A119:A195,'Info Tables'!L119:L195)) -> 1 | K54: =IF($B$71="None","N/A",LOOKUP($B$71,'Info Tables'!A119:A195,'Info Tables'!L119:L195)) -> 1
A55: Outer Gusset Vertical Shear (Global) % Remaining: | B55: =(LOOKUP($C$48,'Info Tables'!A19:A58,'Info Tables'!S19:S58)) -> 1 | C55: From the Original Thickness of Gusset After Reduction….. For Shear Area | G55: =IF($B$67="None","N/A",LOOKUP($B$67,'Info Tables'!A119:A195,'Info Tables'!M119:M195)) -> 1 | H55: =IF($B$68="None","N/A",LOOKUP($B$68,'Info Tables'!A119:A195,'Info Tables'!M119:M195)) -> N/A | I55: =IF($B$69="None","N/A",LOOKUP($B$69,'Info Tables'!A119:A195,'Info Tables'!M119:M195)) -> 1 | J55: =IF($B$70="None","N/A",LOOKUP($B$70,'Info Tables'!A119:A195,'Info Tables'!M119:M195)) -> 1 | K55: =IF($B$71="None","N/A",LOOKUP($B$71,'Info Tables'!A119:A195,'Info Tables'!M119:M195)) -> 1
A56: Maximum Outer Unstiffened Edge Thickness | B56: =(LOOKUP($C$48,'Info Tables'!A19:A58,'Info Tables'!U19:U58)) -> 1 | C56: From the Original Thickness of Gusset After Reduction….. For Rivet Count | G56: =IF($B67="None","N/A",LOOKUP($B67,'Info Tables'!$A$119:$A$195,'Info Tables'!$N$119:$N$195)) -> 1 | H56: =IF($B68="None","N/A",LOOKUP($B68,'Info Tables'!$A$119:$A$195,'Info Tables'!$N$119:$N$195)) -> N/A | I56: =IF($B69="None","N/A",LOOKUP($B69,'Info Tables'!$A$119:$A$195,'Info Tables'!$N$119:$N$195)) -> 1 | J56: =IF($B70="None","N/A",LOOKUP($B70,'Info Tables'!$A$119:$A$195,'Info Tables'!$N$119:$N$195)) -> 1 | K56: =IF($B71="None","N/A",LOOKUP($B71,'Info Tables'!$A$119:$A$195,'Info Tables'!$N$119:$N$195)) -> 1
A57: Member % Reduction: | C57: From the Original Thickness of Base Plates (Worst Member at The Joint Based on Field Observations)
A58: Live Load Type: | B58: =IF(C58=1,"2F1",IF(C58=2,"3F1",IF(C58=3,"4F1",IF(C58=4,"5C1",IF(C58=5,"HS20-44",IF(C58=6,"Inventory",IF(C58=7,"ODOT Truck Train",""))))))) -> ODOT Truck Train | C58: 7 | D58: Live Load % Reduction: | E58: 100
A59: Rating Type: | B59: =A3 -> Operating Rating
A62: The cells below are locked; please call Omar Abu-Hajar, Office of Structural Engineering (614-387-1257) for any comments or questions.
A65: Member Factored Axial Loads From Truss Analysis:
A66: Location | B66: Member ID | C66: Member | D66: Dead Axial Factored Load For Both Plates (kips) | E66: Max. Compression Factored LL+I For Both Plates (kips) | F66: Max. Tension Factored LL+I For Both Plates (kips) | G66: Total Max. Compressive Factored Load For Both Plates (kips) | H66: Total Max. Tensile Factored Load For Both Plates (kips) | I66: Angle with Plate Axis (degrees) | J66: Member Type | K66: Member Ends Spliced at Joint Center ? | L66: Milled Butt Ends at Splice?
A67: U/L Chord (LT) | B67: =LOOKUP($C$48,'Info Tables'!A70:A109,'Info Tables'!B70:B109) -> 2071 | C67: =IF(B67="None","N/A",LOOKUP(B67,'Info Tables'!$A$119:$A$195,'Info Tables'!$B$119:$B$195)) -> U6 U7 | D67: =IF(B67="None","N/A",$B$34*LOOKUP(B67,'Member Loads'!$A$13:$A$86,'Member Loads'!$B$13:$B$86)) -> -398.58 | E67: =IF(B67="None","N/A",$B$35*($E$58/100)*(IF($B$58="2F1",LOOKUP(B67,'Member Loads'!$D$13:$D$86,'Member Loads'!$E$13:$E$86),IF($B$58="3F1",LOOKUP(B67,'Member Loads'!$H$13:$H$86,'Member Loads'!$I$13:$I$86),IF($B$58="4F1",LOOKUP(B67,'Member Loads'!$L$13:$L$86,'Member Loads'!$M$13:$M$86),IF($B$58="5C1",LOOKUP(B67,'Member Loads'!$P$13:$P$86,'Member Loads'!$Q$13:$Q$86),IF($B$58="HS20-44",LOOKUP(B67,'Member Loads'!$T$13:$T$86,'Member Loads'!$U$13:$U$86),IF($B$58="Inventory",LOOKUP(B67,'Member Loads'!$X$13:$X$86,'Member Loads'!$Y$13:$Y$86),LOOKUP(B67,'Member Loads'!$AB$13:$AB$86,'Member Loads'!$AC$13:$AC$86))))))))) -> -173.953 | F67: =IF(B67="None","N/A",$B$35*($E$58/100)*(IF($B$58="2F1",LOOKUP(B67,'Member Loads'!$D$13:$D$86,'Member Loads'!$F$13:$F$86),IF($B$58="3F1",LOOKUP(B67,'Member Loads'!$H$13:$H$86,'Member Loads'!$J$13:$J$86),IF($B$58="4F1",LOOKUP(B67,'Member Loads'!$L$13:$L$86,'Member Loads'!$N$13:$N$86),IF($B$58="5C1",LOOKUP(B67,'Member Loads'!$P$13:$P$86,'Member Loads'!$R$13:$R$86),IF($B$58="HS20-44",LOOKUP(B67,'Member Loads'!$T$13:$T$86,'Member Loads'!$V$13:$V$86),IF($B$58="Inventory",LOOKUP(B67,'Member Loads'!$X$13:$X$86,'Member Loads'!$Z$13:$Z$86),LOOKUP(B67,'Member Loads'!$AB$13:$AB$86,'Member Loads'!$AD$13:$AD$86))))))))) -> 0 | G67: =IF(B67="None","N/A",IF(D67+E67<=0,D67+E67,"N/A")) -> -572.533 | H67: =IF(B67="None","N/A",IF(D67+F67>=0,D67+F67,"N/A")) -> N/A | I67: =IF(B67="None","N/A",LOOKUP($C$48,'Info Tables'!A253:A292,'Info Tables'!C253:C292)) -> 0 | J67: =IF(AND(G67="N/A",$H$67="N/A"),"N/A",IF(AND(G67<0,$H$67="N/A"),"Compression",IF(AND(G67="N/A",$H$67>0),"Tension",IF(AND(G67<0,$H$67>0),"Reversal",IF(AND(G67=0,$H$67=0),"Dead","N/A"))))) -> Compression | K67: =IF(B67="None","N/A",LOOKUP(B67,'Info Tables'!$A$653:$A$714,'Info Tables'!$C$653:$C$714)) -> Yes | L67: =IF(OR(K67="No",K67="N/A"),"N/A",LOOKUP(B67,'Info Tables'!$A$653:$A$714,'Info Tables'!$D$653:$D$714)) -> Yes
A68: U/L Chord (RT) | B68: =LOOKUP($C$48,'Info Tables'!A70:A109,'Info Tables'!C70:C109) -> None | C68: =IF(B68="None","N/A",LOOKUP(B68,'Info Tables'!$A$119:$A$195,'Info Tables'!$B$119:$B$195)) -> N/A | D68: =IF(B68="None","N/A",$B$34*LOOKUP(B68,'Member Loads'!$A$13:$A$86,'Member Loads'!$B$13:$B$86)) -> N/A | E68: =IF(B68="None","N/A",$B$35*($E$58/100)*(IF($B$58="2F1",LOOKUP(B68,'Member Loads'!$D$13:$D$86,'Member Loads'!$E$13:$E$86),IF($B$58="3F1",LOOKUP(B68,'Member Loads'!$H$13:$H$86,'Member Loads'!$I$13:$I$86),IF($B$58="4F1",LOOKUP(B68,'Member Loads'!$L$13:$L$86,'Member Loads'!$M$13:$M$86),IF($B$58="5C1",LOOKUP(B68,'Member Loads'!$P$13:$P$86,'Member Loads'!$Q$13:$Q$86),IF($B$58="HS20-44",LOOKUP(B68,'Member Loads'!$T$13:$T$86,'Member Loads'!$U$13:$U$86),IF($B$58="Inventory",LOOKUP(B68,'Member Loads'!$X$13:$X$86,'Member Loads'!$Y$13:$Y$86),LOOKUP(B68,'Member Loads'!$AB$13:$AB$86,'Member Loads'!$AC$13:$AC$86))))))))) -> N/A | F68: =IF(B68="None","N/A",$B$35*($E$58/100)*(IF($B$58="2F1",LOOKUP(B68,'Member Loads'!$D$13:$D$86,'Member Loads'!$F$13:$F$86),IF($B$58="3F1",LOOKUP(B68,'Member Loads'!$H$13:$H$86,'Member Loads'!$J$13:$J$86),IF($B$58="4F1",LOOKUP(B68,'Member Loads'!$L$13:$L$86,'Member Loads'!$N$13:$N$86),IF($B$58="5C1",LOOKUP(B68,'Member Loads'!$P$13:$P$86,'Member Loads'!$R$13:$R$86),IF($B$58="HS20-44",LOOKUP(B68,'Member Loads'!$T$13:$T$86,'Member Loads'!$V$13:$V$86),IF($B$58="Inventory",LOOKUP(B68,'Member Loads'!$X$13:$X$86,'Member Loads'!$Z$13:$Z$86),LOOKUP(B68,'Member Loads'!$AB$13:$AB$86,'Member Loads'!$AD$13:$AD$86))))))))) -> N/A | G68: =IF(B68="None","N/A",IF(D68+E68<=0,D68+E68,"N/A")) -> N/A | H68: =IF(B68="None","N/A",IF(D68+F68>=0,D68+F68,"N/A")) -> N/A | I68: =IF(B68="None","N/A",LOOKUP($C$48,'Info Tables'!A253:A292,'Info Tables'!D253:D292)) -> N/A | J68: =IF(AND(G68="N/A",$H$68="N/A"),"N/A",IF(AND(G68<0,$H$68="N/A"),"Compression",IF(AND(G68="N/A",$H$68>0),"Tension",IF(AND(G68<0,$H$68>0),"Reversal",IF(AND(G68=0,$H$68=0),"Dead","N/A"))))) -> N/A | K68: =IF(B68="None","N/A",LOOKUP(B68,'Info Tables'!$A$653:$A$714,'Info Tables'!$C$653:$C$714)) -> N/A | L68: =IF(OR(K68="No",K68="N/A"),"N/A",LOOKUP(B68,'Info Tables'!$A$653:$A$714,'Info Tables'!$D$653:$D$714)) -> N/A
A69: Diagonal (LT) | B69: =LOOKUP($C$48,'Info Tables'!A70:A109,'Info Tables'!D70:D109) -> 2074 | C69: =IF(B69="None","N/A",LOOKUP(B69,'Info Tables'!$A$119:$A$195,'Info Tables'!$B$119:$B$195)) -> U7 L6 | D69: =IF(B69="None","N/A",$B$34*LOOKUP(B69,'Member Loads'!$A$13:$A$86,'Member Loads'!$B$13:$B$86)) -> 177.71 | E69: =IF(B69="None","N/A",$B$35*($E$58/100)*(IF($B$58="2F1",LOOKUP(B69,'Member Loads'!$D$13:$D$86,'Member Loads'!$E$13:$E$86),IF($B$58="3F1",LOOKUP(B69,'Member Loads'!$H$13:$H$86,'Member Loads'!$I$13:$I$86),IF($B$58="4F1",LOOKUP(B69,'Member Loads'!$L$13:$L$86,'Member Loads'!$M$13:$M$86),IF($B$58="5C1",LOOKUP(B69,'Member Loads'!$P$13:$P$86,'Member Loads'!$Q$13:$Q$86),IF($B$58="HS20-44",LOOKUP(B69,'Member Loads'!$T$13:$T$86,'Member Loads'!$U$13:$U$86),IF($B$58="Inventory",LOOKUP(B69,'Member Loads'!$X$13:$X$86,'Member Loads'!$Y$13:$Y$86),LOOKUP(B69,'Member Loads'!$AB$13:$AB$86,'Member Loads'!$AC$13:$AC$86))))))))) -> -21.203 | F69: =IF(B69="None","N/A",$B$35*($E$58/100)*(IF($B$58="2F1",LOOKUP(B69,'Member Loads'!$D$13:$D$86,'Member Loads'!$F$13:$F$86),IF($B$58="3F1",LOOKUP(B69,'Member Loads'!$H$13:$H$86,'Member Loads'!$J$13:$J$86),IF($B$58="4F1",LOOKUP(B69,'Member Loads'!$L$13:$L$86,'Member Loads'!$N$13:$N$86),IF($B$58="5C1",LOOKUP(B69,'Member Loads'!$P$13:$P$86,'Member Loads'!$R$13:$R$86),IF($B$58="HS20-44",LOOKUP(B69,'Member Loads'!$T$13:$T$86,'Member Loads'!$V$13:$V$86),IF($B$58="Inventory",LOOKUP(B69,'Member Loads'!$X$13:$X$86,'Member Loads'!$Z$13:$Z$86),LOOKUP(B69,'Member Loads'!$AB$13:$AB$86,'Member Loads'!$AD$13:$AD$86))))))))) -> 101.517 | G69: =IF(B69="None","N/A",IF(D69+E69<=0,D69+E69,"N/A")) -> N/A | H69: =IF(B69="None","N/A",IF(D69+F69>=0,D69+F69,"N/A")) -> 279.227 | I69: =IF(B69="None","N/A",LOOKUP($C$48,'Info Tables'!A253:A292,'Info Tables'!E253:E292)) -> 61.85 | J69: =IF(AND(G69="N/A",$H$69="N/A"),"N/A",IF(AND(G69<0,$H$69="N/A"),"Compression",IF(AND(G69="N/A",$H$69>0),"Tension",IF(AND(G69<0,$H$69>0),"Reversal",IF(AND(G69=0,$H$69=0),"Dead","N/A"))))) -> Tension | K69: =IF(B69="None","N/A",LOOKUP(B69,'Info Tables'!$A$653:$A$714,'Info Tables'!$C$653:$C$714)) -> Yes | L69: =IF(OR(K69="No",K69="N/A"),"N/A",LOOKUP(B69,'Info Tables'!$A$653:$A$714,'Info Tables'!$D$653:$D$714)) -> No
A70: Diagonal (RT) | B70: =LOOKUP($C$48,'Info Tables'!A70:A109,'Info Tables'!E70:E109) -> 2072 | C70: =IF(B70="None","N/A",LOOKUP(B70,'Info Tables'!$A$119:$A$195,'Info Tables'!$B$119:$B$195)) -> U7 L8 | D70: =IF(B70="None","N/A",$B$34*LOOKUP(B70,'Member Loads'!$A$13:$A$86,'Member Loads'!$B$13:$B$86)) -> -421.59 | E70: =IF(B70="None","N/A",$B$35*($E$58/100)*(IF($B$58="2F1",LOOKUP(B70,'Member Loads'!$D$13:$D$86,'Member Loads'!$E$13:$E$86),IF($B$58="3F1",LOOKUP(B70,'Member Loads'!$H$13:$H$86,'Member Loads'!$I$13:$I$86),IF($B$58="4F1",LOOKUP(B70,'Member Loads'!$L$13:$L$86,'Member Loads'!$M$13:$M$86),IF($B$58="5C1",LOOKUP(B70,'Member Loads'!$P$13:$P$86,'Member Loads'!$Q$13:$Q$86),IF($B$58="HS20-44",LOOKUP(B70,'Member Loads'!$T$13:$T$86,'Member Loads'!$U$13:$U$86),IF($B$58="Inventory",LOOKUP(B70,'Member Loads'!$X$13:$X$86,'Member Loads'!$Y$13:$Y$86),LOOKUP(B70,'Member Loads'!$AB$13:$AB$86,'Member Loads'!$AC$13:$AC$86))))))))) -> -188.877 | F70: =IF(B70="None","N/A",$B$35*($E$58/100)*(IF($B$58="2F1",LOOKUP(B70,'Member Loads'!$D$13:$D$86,'Member Loads'!$F$13:$F$86),IF($B$58="3F1",LOOKUP(B70,'Member Loads'!$H$13:$H$86,'Member Loads'!$J$13:$J$86),IF($B$58="4F1",LOOKUP(B70,'Member Loads'!$L$13:$L$86,'Member Loads'!$N$13:$N$86),IF($B$58="5C1",LOOKUP(B70,'Member Loads'!$P$13:$P$86,'Member Loads'!$R$13:$R$86),IF($B$58="HS20-44",LOOKUP(B70,'Member Loads'!$T$13:$T$86,'Member Loads'!$V$13:$V$86),IF($B$58="Inventory",LOOKUP(B70,'Member Loads'!$X$13:$X$86,'Member Loads'!$Z$13:$Z$86),LOOKUP(B70,'Member Loads'!$AB$13:$AB$86,'Member Loads'!$AD$13:$AD$86))))))))) -> 0 | G70: =IF(B70="None","N/A",IF(D70+E70<=0,D70+E70,"N/A")) -> -610.467 | H70: =IF(B70="None","N/A",IF(D70+F70>=0,D70+F70,"N/A")) -> N/A | I70: =IF(B70="None","N/A",LOOKUP($C$48,'Info Tables'!A253:A292,'Info Tables'!F253:F292)) -> 37.18 | J70: =IF(AND(G70="N/A",$H$70="N/A"),"N/A",IF(AND(G70<0,$H$70="N/A"),"Compression",IF(AND(G70="N/A",$H$70>0),"Tension",IF(AND(G70<0,$H$70>0),"Reversal",IF(AND(G70=0,$H$70=0),"Dead","N/A"))))) -> Compression | K70: =IF(B70="None","N/A",LOOKUP(B70,'Info Tables'!$A$653:$A$714,'Info Tables'!$C$653:$C$714)) -> Yes | L70: =IF(OR(K70="No",K70="N/A"),"N/A",LOOKUP(B70,'Info Tables'!$A$653:$A$714,'Info Tables'!$D$653:$D$714)) -> Yes
A71: Vertical | B71: =LOOKUP($C$48,'Info Tables'!A70:A109,'Info Tables'!F70:F109) -> 2073 | C71: =IF(B71="None","N/A",LOOKUP(B71,'Info Tables'!$A$119:$A$195,'Info Tables'!$B$119:$B$195)) -> U7 L7 | D71: =IF(B71="None","N/A",$B$34*LOOKUP(B71,'Member Loads'!$A$13:$A$86,'Member Loads'!$B$13:$B$86)) -> 92.69 | E71: =IF(B71="None","N/A",$B$35*($E$58/100)*(IF($B$58="2F1",LOOKUP(B71,'Member Loads'!$D$13:$D$86,'Member Loads'!$E$13:$E$86),IF($B$58="3F1",LOOKUP(B71,'Member Loads'!$H$13:$H$86,'Member Loads'!$I$13:$I$86),IF($B$58="4F1",LOOKUP(B71,'Member Loads'!$L$13:$L$86,'Member Loads'!$M$13:$M$86),IF($B$58="5C1",LOOKUP(B71,'Member Loads'!$P$13:$P$86,'Member Loads'!$Q$13:$Q$86),IF($B$58="HS20-44",LOOKUP(B71,'Member Loads'!$T$13:$T$86,'Member Loads'!$U$13:$U$86),IF($B$58="Inventory",LOOKUP(B71,'Member Loads'!$X$13:$X$86,'Member Loads'!$Y$13:$Y$86),LOOKUP(B71,'Member Loads'!$AB$13:$AB$86,'Member Loads'!$AC$13:$AC$86))))))))) -> 0 | F71: =IF(B71="None","N/A",$B$35*($E$58/100)*(IF($B$58="2F1",LOOKUP(B71,'Member Loads'!$D$13:$D$86,'Member Loads'!$F$13:$F$86),IF($B$58="3F1",LOOKUP(B71,'Member Loads'!$H$13:$H$86,'Member Loads'!$J$13:$J$86),IF($B$58="4F1",LOOKUP(B71,'Member Loads'!$L$13:$L$86,'Member Loads'!$N$13:$N$86),IF($B$58="5C1",LOOKUP(B71,'Member Loads'!$P$13:$P$86,'Member Loads'!$R$13:$R$86),IF($B$58="HS20-44",LOOKUP(B71,'Member Loads'!$T$13:$T$86,'Member Loads'!$V$13:$V$86),IF($B$58="Inventory",LOOKUP(B71,'Member Loads'!$X$13:$X$86,'Member Loads'!$Z$13:$Z$86),LOOKUP(B71,'Member Loads'!$AB$13:$AB$86,'Member Loads'!$AD$13:$AD$86))))))))) -> 78.741 | G71: =IF(B71="None","N/A",IF(D71+E71<=0,D71+E71,"N/A")) -> N/A | H71: =IF(B71="None","N/A",IF(D71+F71>=0,D71+F71,"N/A")) -> 171.431 | I71: =IF(B71="None","N/A",LOOKUP($C$48,'Info Tables'!A253:A292,'Info Tables'!G253:G292)) -> 102.35 | J71: =IF(AND(G71="N/A",$H$71="N/A"),"N/A",IF(AND(G71<0,$H$71="N/A"),"Compression",IF(AND(G71="N/A",$H$71>0),"Tension",IF(AND(G71<0,$H$71>0),"Reversal",IF(AND(G71=0,$H$71=0),"Dead","N/A"))))) -> Tension | K71: =IF(B71="None","N/A",LOOKUP(B71,'Info Tables'!$A$653:$A$714,'Info Tables'!$C$653:$C$714)) -> Yes | L71: =IF(OR(K71="No",K71="N/A"),"N/A",LOOKUP(B71,'Info Tables'!$A$653:$A$714,'Info Tables'!$D$653:$D$714)) -> No
A77: Resolved Axial Loads into Horizontal and Vertical Components in Gusset Plates
A78: Location | B78: Member ID | C78: Member | D78: COS (Angle) | E78: SIN (Angle) | F78: Horizontal Component Factored Dead Load For Both Plates (kips) | G78: Vertical Component Factored Dead Load For Both Plates (kips) | H78: Horizontal Component Max. Factored Compression LL+I For Both Plates (kips) | I78: Vertical Component Max. Factored Compression LL+I For Both Plates (kips) | J78: Horizontal Component Max. Factored Tension LL+I For Both Plates (kips) | K78: Vertical Component Max. Factored Tension LL+I For Both Plates (kips) | L78: Horizontal Component Total Max. Factored Compressive Load DL+LL+I For Both Plates (kips) | M78: Vertical Component Total Max. Factored Compressive Load DL+LL+I For Both Plates (kips) | N78: Horizontal Component Total Max. Factored Tensile Load DL+LL+I For Both Plates (kips) | O78: Vertical Component Total Max. Factored Tensile Load DL+LL+I For Both Plates (kips)
A79: U/L Chord (LT) | B79: =$B$67 -> 2071 | C79: =$C$67 -> U6 U7 | D79: =IF($B$79="None",0,COS(RADIANS($I$67))) -> 1 | E79: =IF($B$79="None",0,SIN(RADIANS($I$67))) -> 0 | F79: =IF(D67="N/A",0,D67*D79) -> -398.58 | G79: =IF(D67="N/A",0,D67*E79) -> 0 | H79: =IF($E$67="N/A",0,E67*D79) -> -173.953 | I79: =IF($E$67="N/A",0,E67*E79) -> 0 | J79: =IF(F67="N/A",0,F67*D79) -> 0 | K79: =IF(F67="N/A",0,F67*E79) -> 0 | L79: =IF(G67="N/A",0,G67*D79) -> -572.533 | M79: =IF(G67="N/A",0,G67*E79) -> 0 | N79: =IF($H$67="N/A",0,$H$67*D79) -> 0 | O79: =IF($H$67="N/A",0,$H$67*E79) -> 0
A80: U/L Chord (RT) | B80: =$B$68 -> None | C80: =$C$68 -> N/A | D80: =IF($B$80="None",0,COS(RADIANS($I$68))) -> 0 | E80: =IF($B$80="None",0,SIN(RADIANS($I$68))) -> 0 | F80: =IF(D68="N/A",0,D68*D80) -> 0 | G80: =IF(D68="N/A",0,D68*E80) -> 0 | H80: =IF($E$68="N/A",0,E68*D80) -> 0 | I80: =IF($E$68="N/A",0,E68*E80) -> 0 | J80: =IF(F68="N/A",0,F68*D80) -> 0 | K80: =IF(F68="N/A",0,F68*E80) -> 0 | L80: =IF(G68="N/A",0,G68*D80) -> 0 | M80: =IF(G68="N/A",0,G68*E80) -> 0 | N80: =IF($H$68="N/A",0,$H$68*D80) -> 0 | O80: =IF($H$68="N/A",0,$H$68*E80) -> 0
A81: Diagonal (LT) | B81: =$B$69 -> 2074 | C81: =$C$69 -> U7 L6 | D81: =IF($B$81="None",0,COS(RADIANS($I$69))) -> 0.4717815027 | E81: =IF($B$81="None",0,SIN(RADIANS($I$69))) -> 0.8817154948 | F81: =IF(D69="N/A",0,D69*D81) -> 83.84029084 | G81: =IF(D69="N/A",0,D69*E81) -> 156.6896606 | H81: =IF($E$69="N/A",0,E69*D81) -> -10.0031832 | I81: =IF($E$69="N/A",0,E69*E81) -> -18.69501364 | J81: =IF(F69="N/A",0,F69*D81) -> 47.89384281 | K81: =IF(F69="N/A",0,F69*E81) -> 89.50911188 | L81: =IF(G69="N/A",0,G69*D81) -> 0 | M81: =IF(G69="N/A",0,G69*E81) -> 0 | N81: =IF($H$69="N/A",0,$H$69*D81) -> 131.7341337 | O81: =IF($H$69="N/A",0,$H$69*E81) -> 246.1987725
A82: Diagonal (RT) | B82: =$B$70 -> 2072 | C82: =$C$70 -> U7 L8 | D82: =IF($B$82="None",0,COS(RADIANS($I$70))) -> 0.7967409144 | E82: =IF($B$82="None",0,SIN(RADIANS($I$70))) -> 0.6043210366 | F82: =IF(D70="N/A",0,D70*D82) -> -335.8980021 | G82: =IF(D70="N/A",0,D70*E82) -> -254.7757058 | H82: =IF($E$70="N/A",0,E70*D82) -> -150.4860337 | I82: =IF($E$70="N/A",0,E70*E82) -> -114.1423444 | J82: =IF(F70="N/A",0,F70*D82) -> 0 | K82: =IF(F70="N/A",0,F70*E82) -> 0 | L82: =IF(G70="N/A",0,G70*D82) -> -486.3840358 | M82: =IF(G70="N/A",0,G70*E82) -> -368.9180503 | N82: =IF($H$70="N/A",0,$H$70*D82) -> 0 | O82: =IF($H$70="N/A",0,$H$70*E82) -> 0
A83: Vertical | B83: =$B$71 -> 2073 | C83: =$C$71 -> U7 L7 | D83: =IF($B$83="None",0,COS(RADIANS($I$71))) -> -0.2138829382 | E83: =IF($B$83="None",0,SIN(RADIANS($I$71))) -> 0.9768592983 | F83: =IF(D71="N/A",0,D71*ABS(D83)) -> 19.82480954 | G83: =IF(D71="N/A",0,D71*E83) -> 90.54508836 | H83: =IF($E$71="N/A",0,E71*ABS(D83)) -> 0 | I83: =IF($E$71="N/A",0,E71*E83) -> 0 | J83: =IF(F71="N/A",0,F71*ABS(D83)) -> 16.84135643 | K83: =IF(F71="N/A",0,F71*E83) -> 76.91887801 | L83: =IF(G71="N/A",0,G71*ABS(D83)) -> 0 | M83: =IF(G71="N/A",0,G71*E83) -> 0 | N83: =IF($H$71="N/A",0,$H$71*ABS(D83)) -> 36.66616597 | O83: =IF($H$71="N/A",0,$H$71*E83) -> 167.4639664
A89: Gusset Plate Geometric Properties
A90: Location | B90: ID | C90: Member | D90: Inner Gusset Plates Actual Thickness For Whitmore (in) | E90: Inner Gusset Plates Actual Thickness For Plate Shear (in) | F90: Outer Gusset Plates Actual Thickness For Whitmore (in) | G90: Outer Gusset Plates Actual Thickness For Plate Shear (in) | H90: Actual Base Metal Thickness At Member End Total for Both Sides (in) | I90: Total No. of Rivets At Member End in Both Plates | J90: Connection Length in One Plate (in) | K90: * Shear Resistance Reduction Factor | L90: Whitmore Effective Gross Width "b" For One Plate (in) | M90: Unbraced Column Length For One Plate (in) | N90: Inner Gusset Whitmore Area "A" For One Plate (in^2) | O90: Inner Gusset Moment of Inertia "I" For One Plate (in^4) | P90: Inner Gusset plate Radius of Gyration "r" For One Plate (in) | Q90: Inner Gusset Plate kl/r | R90: Maximum Axial StressFcr (ksi) | S90: Outer Gusset Whitmore Area "A" For One Plate (in^2) | T90: Outer Gusset Moment of Inertia "I" For One Plate (in^4) | U90: Outer Gusset Plate Radius of Gyration "r" For One Plate (in) | V90: Outer Gusset Plate kl/r | W90: Maximum Fcr (ksi)
A91: U/L Chord (LT) | B91: =$B$67 -> 2071 | C91: =$C$67 -> U6 U7 | D91: =IF(OR(B91="None",K67="No"),"N/A",$B$49*$G$50) -> 0.5 | E91: =IF(OR(B91="None",K67="No"),"N/A",$B$49*$G$51) -> 0.5 | F91: =IF(OR(B91="None",K67="No"),"N/A",$B$53*$G$54) -> 0.5 | G91: =IF(OR(B91="None",K67="No"),"N/A",$B$53*$G$55) -> 0.5 | H91: =IF(B91="None","N/A",(LOOKUP(B91,'Info Tables'!$A$119:$A$195,'Info Tables'!$F$119:$F$195))) -> 2.29 | I91: =IF(B91="None","N/A",(LOOKUP($C$48,'Info Tables'!$A$203:$A$242,'Info Tables'!$C$203:$C$242))) -> 52 | J91: =IF(B91="None","N/A",1*(LOOKUP($C$48,'Info Tables'!$A$203:$A$242,'Info Tables'!$K$203:$K$242))) -> 17.25 | K91: =IF(J91>50,0.8,1) -> 1 | L91: =IF(B91="None","N/A",(LOOKUP($C$48,'Info Tables'!$A$303:$A$342,'Info Tables'!$C$303:$C$342))) -> 20.843 | M91: =IF(B91="None","N/A",(LOOKUP($C$48,'Info Tables'!$A$353:$A$392,'Info Tables'!$C$353:$C$392))) -> 3.97 | N91: =IF(OR(B91="None",K67="No"),"N/A",D91*L91) -> 10.4215 | O91: =IF(OR(B91="None",K67="No"),"N/A",$L$91*D91^3/12) -> 0.2171145833 | P91: =IF(OR(B91="None",K67="No"),"N/A",SQRT(O91/N91)) -> 0.1443375673 | Q91: =IF(OR(B91="None",K67="No"),"N/A",($B$26*M91/P91)) -> 33.00596019 | R91: =IF(OR(Q91=0,Q91="N/A"),0,IF($B$37>Q91,$B$20*(1-(($B$20/(4*PI()^2*$B$22)))*Q91^2)/1000,((PI()^2*$B$22/Q91^2)/1000))) -> 31.96377304 | S91: =IF(OR(B91="None",K67="No"),"N/A",F91*L91) -> 10.4215 | T91: =IF(OR(B91="None",K67="No"),"N/A",$L$91*F91^3/12) -> 0.2171145833 | U91: =IF(OR(B91="None",K67="No"),"N/A",SQRT(T91/S91)) -> 0.1443375673 | V91: =IF(OR(B91="None",K67="No"),"N/A",($B$26*M91/U91)) -> 33.00596019 | W91: =IF(OR(V91=0,V91="N/A"),0,IF($B$37>V91,$B$20*(1-(($B$20/(4*PI()^2*$B$22)))*V91^2)/1000,((PI()^2*$B$22/V91^2)/1000))) -> 31.96377304
A92: U/L Chord (RT) | B92: =$B$68 -> None | C92: =$C$68 -> N/A | D92: =IF(OR($B$92="None",$K$68="No"),"N/A",$B$49*$H$50) -> N/A | E92: =IF(OR($B$92="None",$K$68="No"),"N/A",$B$49*$H$51) -> N/A | F92: =IF(OR($B$92="None",$K$68="No"),"N/A",$B$53*$H$54) -> N/A | G92: =IF(OR($B$92="None",$K$68="No"),"N/A",$B$53*$H$55) -> N/A | H92: =IF(B92="None","N/A",(LOOKUP(B92,'Info Tables'!$A$119:$A$195,'Info Tables'!$F$119:$F$195))) -> N/A | I92: =IF(B92="None","N/A",(LOOKUP($C$48,'Info Tables'!$A$203:$A$242,'Info Tables'!$D$203:$D$242))) -> N/A | J92: =IF(B92="None","N/A",1*(LOOKUP($C$48,'Info Tables'!$A$203:$A$242,'Info Tables'!$L$203:$L$242))) -> N/A | K92: =IF(J92>50,0.8,1) -> 0.8 | L92: =IF(B92="None","N/A",(LOOKUP($C$48,'Info Tables'!$A$303:$A$342,'Info Tables'!$D$303:$D$342))) -> N/A | M92: =IF(B92="None","N/A",(LOOKUP($C$48,'Info Tables'!$A$353:$A$392,'Info Tables'!$D$353:$D$392))) -> N/A | N92: =IF(OR($B$92="None",$K$68="No"),"N/A",D92*L92) -> N/A | O92: =IF(OR($B$92="None",$K$68="No"),"N/A",$L$92*D92^3/12) -> N/A | P92: =IF(OR($B$92="None",$K$68="No"),"N/A",SQRT(O92/N92)) -> N/A | Q92: =IF(OR($B$92="None",$K$68="No"),"N/A",($B$26*M92/P92)) -> N/A | R92: =IF(OR(Q92=0,Q92="N/A"),0,IF($B$37>Q92,$B$20*(1-(($B$20/(4*PI()^2*$B$22)))*Q92^2)/1000,((PI()^2*$B$22/Q92^2)/1000))) -> 0 | S92: =IF(OR($B$92="None",$K$68="No"),"N/A",F92*L92) -> N/A | T92: =IF(OR($B$92="None",$K$68="No"),"N/A",$L$92*F92^3/12) -> N/A | U92: =IF(OR($B$92="None",$K$68="No"),"N/A",SQRT(T92/S92)) -> N/A | V92: =IF(OR($B$92="None",$K$68="No"),"N/A",($B$26*M92/U92)) -> N/A | W92: =IF(OR(V92=0,V92="N/A"),0,IF($B$37>V92,$B$20*(1-(($B$20/(4*PI()^2*$B$22)))*V92^2)/1000,((PI()^2*$B$22/V92^2)/1000))) -> 0
A93: Diagonal (LT) | B93: =$B$69 -> 2074 | C93: =$C$69 -> U7 L6 | D93: =IF(OR(B93="None",K69="No"),"N/A",$B$49*$I$50) -> 0.5 | E93: =IF(OR(B93="None",K69="No"),"N/A",$B$49*$I$51) -> 0.5 | F93: =IF(OR(B93="None",K69="No"),"N/A",$B$53*$I$54) -> 0.5 | G93: =IF(OR(B93="None",K69="No"),"N/A",$B$53*$I$55) -> 0.5 | H93: =IF(B93="None","N/A",(LOOKUP(B93,'Info Tables'!$A$119:$A$195,'Info Tables'!$F$119:$F$195))) -> 1.282 | I93: =IF(B93="None","N/A",(LOOKUP($C$48,'Info Tables'!$A$203:$A$242,'Info Tables'!$E$203:$E$242))) -> 32 | J93: =IF(B93="None","N/A",1*(LOOKUP($C$48,'Info Tables'!$A$203:$A$242,'Info Tables'!$M$203:$M$242))) -> 22.5 | K93: =IF(J93>50,0.8,1) -> 1 | L93: =IF(B93="None","N/A",(LOOKUP($C$48,'Info Tables'!$A$303:$A$342,'Info Tables'!$E$303:$E$342))) -> 31.263 | M93: =IF(B93="None","N/A",(LOOKUP($C$48,'Info Tables'!$A$353:$A$392,'Info Tables'!$E$353:$E$392))) -> 3.86 | N93: =IF(OR(B93="None",K69="No"),"N/A",D93*L93) -> 15.6315 | O93: =IF(OR(B93="None",K69="No"),"N/A",$L$93*D93^3/12) -> 0.32565625 | P93: =IF(OR(B93="None",K69="No"),"N/A",SQRT(O93/N93)) -> 0.1443375673 | Q93: =IF(OR(B93="None",K69="No"),"N/A",($B$26*M93/P93)) -> 32.09143736 | R93: =IF(OR(Q93=0,Q93="N/A"),0,IF($B$37>Q93,$B$20*(1-(($B$20/(4*PI()^2*$B$22)))*Q93^2)/1000,((PI()^2*$B$22/Q93^2)/1000))) -> 32.02040066 | S93: =IF(OR(B93="None",K69="No"),"N/A",F93*L93) -> 15.6315 | T93: =IF(OR(B93="None",K69="No"),"N/A",$L$93*F93^3/12) -> 0.32565625 | U93: =IF(OR(B93="None",K69="No"),"N/A",SQRT(T93/S93)) -> 0.1443375673 | V93: =IF(OR(B93="None",K69="No"),"N/A",($B$26*M93/U93)) -> 32.09143736 | W93: =IF(OR(V93=0,V93="N/A"),0,IF($B$37>V93,$B$20*(1-(($B$20/(4*PI()^2*$B$22)))*V93^2)/1000,((PI()^2*$B$22/V93^2)/1000))) -> 32.02040066
A94: Diagonal (RT) | B94: =$B$70 -> 2072 | C94: =$C$70 -> U7 L8 | D94: =IF(OR(B94="None",K70="No"),"N/A",$B$49*$J$50) -> 0.5 | E94: =IF(OR(B94="None",K70="No"),"N/A",$B$49*$J$51) -> 0.5 | F94: =IF(OR(B94="None",K70="No"),"N/A",$B$53*$J$54) -> 0.5 | G94: =IF(OR(B94="None",K70="No"),"N/A",$B$53*$J$55) -> 0.5 | H94: =IF(B94="None","N/A",(LOOKUP(B94,'Info Tables'!$A$119:$A$195,'Info Tables'!$F$119:$F$195))) -> 2.182 | I94: =IF(B94="None","N/A",(LOOKUP($C$48,'Info Tables'!$A$203:$A$242,'Info Tables'!$F$203:$F$242))) -> 62 | J94: =IF(B94="None","N/A",1*(LOOKUP($C$48,'Info Tables'!$A$203:$A$242,'Info Tables'!$N$203:$N$242))) -> 28.076 | K94: =IF(J94>50,0.8,1) -> 1 | L94: =IF(B94="None","N/A",(LOOKUP($C$48,'Info Tables'!$A$303:$A$342,'Info Tables'!$F$303:$F$342))) -> 27.344 | M94: =IF(B94="None","N/A",(LOOKUP($C$48,'Info Tables'!$A$353:$A$392,'Info Tables'!$F$353:$F$392))) -> 5.39 | N94: =IF(OR(B94="None",K70="No"),"N/A",D94*L94) -> 13.672 | O94: =IF(OR(B94="None",K70="No"),"N/A",$L$94*D94^3/12) -> 0.2848333333 | P94: =IF(OR(B94="None",K70="No"),"N/A",SQRT(O94/N94)) -> 0.1443375673 | Q94: =IF(OR(B94="None",K70="No"),"N/A",($B$26*M94/P94)) -> 44.81161849 | R94: =IF(OR(Q94=0,Q94="N/A"),0,IF($B$37>Q94,$B$20*(1-(($B$20/(4*PI()^2*$B$22)))*Q94^2)/1000,((PI()^2*$B$22/Q94^2)/1000))) -> 31.08992067 | S94: =IF(OR(B94="None",K70="No"),"N/A",F94*L94) -> 13.672 | T94: =IF(OR(B94="None",K70="No"),"N/A",$L$94*F94^3/12) -> 0.2848333333 | U94: =IF(OR(B94="None",K70="No"),"N/A",SQRT(T94/S94)) -> 0.1443375673 | V94: =IF(OR(B94="None",K70="No"),"N/A",($B$26*M94/U94)) -> 44.81161849 | W94: =IF(OR(V94=0,V94="N/A"),0,IF($B$37>V94,$B$20*(1-(($B$20/(4*PI()^2*$B$22)))*V94^2)/1000,((PI()^2*$B$22/V94^2)/1000))) -> 31.08992067
A95: Vertical | B95: =$B$71 -> 2073 | C95: =$C$71 -> U7 L7 | D95: =IF(OR(B95="None",K71="No"),"N/A",$B$49*$K$50) -> 0.5 | E95: =IF(OR(B95="None",K71="No"),"N/A",$B$49*$K$51) -> 0.5 | F95: =IF(OR(B95="None",K71="No"),"N/A",$B$53*$K$54) -> 0.5 | G95: =IF(OR(B95="None",K71="No"),"N/A",$B$53*$K$55) -> 0.5 | H95: =IF(B95="None","N/A",(LOOKUP(B95,'Info Tables'!$A$119:$A$195,'Info Tables'!$F$119:$F$195))) -> 1.282 | I95: =IF(B95="None","N/A",(LOOKUP($C$48,'Info Tables'!$A$203:$A$242,'Info Tables'!$G$203:$G$242))) -> 24 | J95: =IF(B95="None","N/A",1*(LOOKUP($C$48,'Info Tables'!$A$203:$A$242,'Info Tables'!$O$203:$O$242))) -> 16.5 | K95: =IF(J95>50,0.8,1) -> 1 | L95: =IF(B95="None","N/A",(LOOKUP($C$48,'Info Tables'!$A$303:$A$342,'Info Tables'!$G$303:$G$342))) -> 22.313 | M95: =IF(B95="None","N/A",(LOOKUP($C$48,'Info Tables'!$A$353:$A$392,'Info Tables'!$G$353:$G$392))) -> 4.76 | N95: =IF(OR(B95="None",K71="No"),"N/A",D95*L95) -> 11.1565 | O95: =IF(OR(B95="None",K71="No"),"N/A",$L$95*D95^3/12) -> 0.2324270833 | P95: =IF(OR(B95="None",K71="No"),"N/A",SQRT(O95/N95)) -> 0.1443375673 | Q95: =IF(OR(B95="None",K71="No"),"N/A",($B$26*M95/P95)) -> 39.57389685 | R95: =IF(OR(Q95=0,Q95="N/A"),0,IF($B$37>Q95,$B$20*(1-(($B$20/(4*PI()^2*$B$22)))*Q95^2)/1000,((PI()^2*$B$22/Q95^2)/1000))) -> 31.51033786 | S95: =IF(OR(B95="None",K71="No"),"N/A",F95*L95) -> 11.1565 | T95: =IF(OR(B95="None",K71="No"),"N/A",$L$95*F95^3/12) -> 0.2324270833 | U95: =IF(OR(B95="None",K71="No"),"N/A",SQRT(T95/S95)) -> 0.1443375673 | V95: =IF(OR(B95="None",K71="No"),"N/A",($B$26*M95/U95)) -> 39.57389685 | W95: =IF(OR(V95=0,V95="N/A"),0,IF($B$37>V95,$B$20*(1-(($B$20/(4*PI()^2*$B$22)))*V95^2)/1000,((PI()^2*$B$22/V95^2)/1000))) -> 31.51033786
I96: * 0.8 if Connection Length > 50"
A102: Check Stresses:
AB104: Max D/C Ratio
A105: 1: Gusset Plate Minimum Edge Stiffness | AB105: N/A | AC105: =IF(SUM(AC115:AC116)=0,"OK","NG") -> OK | AD105: =A105 -> 1: Gusset Plate Minimum Edge Stiffness
A107: Fy = | B107: =B20 -> 33000 | C107: psi
A108: Inner Plate Thick. = | B108: =$B$49*LOOKUP($C$48,'Info Tables'!A19:A58,'Info Tables'!T19:T58) -> 0.5 | C108: inch
A109: Outer Plate Thick. = | B109: =B53*LOOKUP($C$48,'Info Tables'!A19:A58,'Info Tables'!U19:U58) -> 0.5 | C109: inch
A111: Max. Unstiffened Edge (L/t) Ratio = (11,000/(Fy)½) = | B111: =11000/SQRT(B107) -> 60.55300708 | C111: * t (inch) -- AASHTO 10.16.11
A112: Minimum Plate Thickness | B112: =5/16 -> 0.3125 | C112: inch -- AASHTO 10.8.3
A114: Location | B114: Joint ID | C114: Gusset Plate Actual Thickness (in) | D114: Maximum Unstiffened Actual Edge Length (in) | E114: Maximum Unstiffened Edge Length Not To Be Exceeded (in) | F114: Meets Requirement
A115: Inner Gusset Plate | B115: =$C$48 -> 207 | C115: =B108 -> 0.5 | D115: =LOOKUP($C$48,'Info Tables'!$A$19:$A$58,'Info Tables'!$J$19:$J$58) -> 23.62 | E115: =$B$111*C115 -> 30.27650354 | F115: =IF(D115="N/A","N/A",IF(AND(D115<=$B$111*$B$108,B112<=B108),"OK","NG")) -> OK | AC115: =IF(OR(AD115="NG",AE115="NG",AF115="NG",AG115="NG",AH115="NG"),1,0) -> 0 | AD115: =F115 -> OK | AE115: =G115 -> 0
A116: Outer Gusset Plate | B116: =$C$48 -> 207 | C116: =B109 -> 0.5 | D116: =LOOKUP($C$48,'Info Tables'!$A$19:$A$58,'Info Tables'!$K$19:$K$58) -> 23.62 | E116: =$B$111*C116 -> 30.27650354 | F116: =IF(D116="N/A","N/A",IF(AND(D116<=$B$111*$B$109,B112<=B109),"OK","NG")) -> OK | AC116: =IF(OR(AD116="NG",AE116="NG",AF116="NG",AG116="NG",AH116="NG"),1,0) -> 0 | AD116: =F116 -> OK | AE116: =G116 -> 0
A122: 2: Gusset Plate Local Compression Buckling Under Whitmore Effective Width | AA122: =MIN(AB135:AB139) -> 0 | AB122: =MIN(AF126:AG130) -> 0 | AC122: =IF(SUM(AC126:AC130)=0,"OK","NG") -> OK | AD122: =A122 -> 2: Gusset Plate Local Compression Buckling Under Whitmore Effective Width
A124: =$A$30 -> Compression Load Factor Ø: | B124: =$B$30 -> 0.85 | P124: C/D= Capacity/Demand
A125: \ | B125: ID | C125: Member | D125: Member Type | E125: Was Member Spliced at Joint Center? | F125: Was Member Butt End Milled? | G125: Total Max. Factored Compressive Load For Both Plates (kips) | H125: Inner Gusset Plates Area (sq in) | I125: Actual Outer Gusset Plates Area (sq in) | J125: Actual Inner Gusset Plates Stress (ksi) | K125: Outer Gusset Plates Stress (ksi) | L125: Factored Gusset Plate Axial Stress Fa (ksi) | M125: Factored Gusset Plate Axial Stress Fa (ksi) | N125: Inner Gusset Plate Meets Requirement | O125: Inner Gusset Plate Meets Requirement | P125: Inner Gusset Plate C/D Ratio | Q125: Inner Gusset Plate C/D Ratio
A126: =$A$91 -> U/L Chord (LT) | B126: =$B$91 -> 2071 | C126: =$C$91 -> U6 U7 | D126: =$J$67 -> Compression | E126: =$K$67 -> Yes | F126: =$L$67 -> Yes | G126: =IF(C126="N/A","N/A",IF(OR(E126="No",F126="Yes"),"N/A",G67)) -> N/A | H126: =IF($G$126="N/A","N/A",D91*L91) -> N/A | I126: =IF($G$126="N/A","N/A",F91*L91) -> N/A | J126: =IF($G$126="N/A","N/A",ABS(G126/(2*H126))) -> N/A | K126: =IF($G$126="N/A","N/A",ABS(G126/(2*I126))) -> N/A | L126: =IF($G$126="N/A","N/A",R91*$B$124) -> N/A | M126: =IF($G$126="N/A","N/A",W91*$B$124) -> N/A | N126: =IF(OR(G126="N/A",J126=0),"N/A",IF(J126<=L126,"OK","NG")) -> N/A | O126: =IF(OR(G126="N/A",K126=0),"N/A",IF(K126<=M126,"OK","NG")) -> N/A | P126: =IF(OR(G126="N/A",J126=0),"N/A",ABS(L126/J126)) -> N/A | Q126: =IF(OR(G126="N/A",K126=0),"N/A",ABS(M126/K126)) -> N/A | AC126: =IF(OR(AD126="NG",AE126="NG",AF126="NG",AG126="NG",AH126="NG"),1,0) -> 0 | AD126: =N126 -> N/A | AE126: N/A | AF126: N/A | AG126: N/A
A127: =$A$92 -> U/L Chord (RT) | B127: =$B$92 -> None | C127: =$C$92 -> N/A | D127: =$J$68 -> N/A | E127: =$K$68 -> N/A | F127: =$L$68 -> N/A | G127: =IF(C127="N/A","N/A",IF(OR(E127="No",F127="Yes"),"N/A",G68)) -> N/A | H127: =IF($G$127="N/A","N/A",D92*L92) -> N/A | I127: =IF($G$127="N/A","N/A",F92*L92) -> N/A | J127: =IF($G$127="N/A","N/A",ABS(G127/(2*H127))) -> N/A | K127: =IF($G$127="N/A","N/A",ABS(G127/(2*I127))) -> N/A | L127: =IF($G$127="N/A","N/A",R92*$B$124) -> N/A | M127: =IF($G$127="N/A","N/A",W92*$B$124) -> N/A | N127: =IF(OR(G127="N/A",J127=0),"N/A",IF(J127<=L127,"OK","NG")) -> N/A | O127: =IF(OR(G127="N/A",K127=0),"N/A",IF(K127<=M127,"OK","NG")) -> N/A | P127: =IF(OR(G127="N/A",J127=0),"N/A",ABS(L127/J127)) -> N/A | Q127: =IF(OR(G127="N/A",K127=0),"N/A",ABS(M127/K127)) -> N/A | AC127: =IF(OR(AD127="NG",AE127="NG",AF127="NG",AG127="NG",AH127="NG"),1,0) -> 0 | AD127: N/A | AE127: N/A | AF127: N/A | AG127: N/A
A128: =$A$93 -> Diagonal (LT) | B128: =$B$93 -> 2074 | C128: =$C$93 -> U7 L6 | D128: =$J$69 -> Tension | E128: =$K$69 -> Yes | F128: =$L$69 -> No | G128: =IF(C128="N/A","N/A",IF(OR(E128="No",F128="Yes"),"N/A",G69)) -> N/A | H128: =IF($G$128="N/A","N/A",D93*L93) -> N/A | I128: =IF($G$128="N/A","N/A",F93*L93) -> N/A | J128: =IF($G$128="N/A","N/A",ABS(G128/(2*H128))) -> N/A | K128: =IF($G$128="N/A","N/A",ABS(G128/(2*I128))) -> N/A | L128: =IF($G$128="N/A","N/A",R93*$B$124) -> N/A | M128: =IF($G$128="N/A","N/A",W93*$B$124) -> N/A | N128: =IF(OR(G128="N/A",J128=0),"N/A",IF(J128<=L128,"OK","NG")) -> N/A | O128: =IF(OR(G128="N/A",K128=0),"N/A",IF(K128<=M128,"OK","NG")) -> N/A | P128: =IF(OR(G128="N/A",J128=0),"N/A",ABS(L128/J128)) -> N/A | Q128: =IF(OR(G128="N/A",K128=0),"N/A",ABS(M128/K128)) -> N/A | AC128: =IF(OR(AD128="NG",AE128="NG",AF128="NG",AG128="NG",AH128="NG"),1,0) -> 0 | AD128: N/A | AE128: N/A | AF128: N/A | AG128: N/A
A129: =$A$94 -> Diagonal (RT) | B129: =$B$94 -> 2072 | C129: =$C$94 -> U7 L8 | D129: =$J$70 -> Compression | E129: =$K$70 -> Yes | F129: =$L$70 -> Yes | G129: =IF(C129="N/A","N/A",IF(OR(E129="No",F129="Yes"),"N/A",G70)) -> N/A | H129: =IF($G$129="N/A","N/A",D94*L94) -> N/A | I129: =IF($G$129="N/A","N/A",F94*L94) -> N/A | J129: =IF($G$129="N/A","N/A",ABS(G129/(2*H129))) -> N/A | K129: =IF($G$129="N/A","N/A",ABS(G129/(2*I129))) -> N/A | L129: =IF($G$129="N/A","N/A",R94*$B$124) -> N/A | M129: =IF($G$129="N/A","N/A",W94*$B$124) -> N/A | N129: =IF(OR(G129="N/A",J129=0),"N/A",IF(J129<=L129,"OK","NG")) -> N/A | O129: =IF(OR(G129="N/A",K129=0),"N/A",IF(K129<=M129,"OK","NG")) -> N/A | P129: =IF(OR(G129="N/A",J129=0),"N/A",ABS(L129/J129)) -> N/A | Q129: =IF(OR(G129="N/A",K129=0),"N/A",ABS(M129/K129)) -> N/A | AC129: =IF(OR(AD129="NG",AE129="NG",AF129="NG",AG129="NG",AH129="NG"),1,0) -> 0 | AD129: N/A | AE129: N/A | AF129: N/A | AG129: N/A
A130: =$A$95 -> Vertical | B130: =$B$95 -> 2073 | C130: =$C$95 -> U7 L7 | D130: =$J$71 -> Tension | E130: =$K$71 -> Yes | F130: =$L$71 -> No | G130: =IF(C130="N/A","N/A",IF(OR(E130="No",F130="Yes"),"N/A",G71)) -> N/A | H130: =IF($G$130="N/A","N/A",D95*L95) -> N/A | I130: =IF($G$130="N/A","N/A",F95*L95) -> N/A | J130: =IF($G$130="N/A","N/A",ABS(G130/(2*H130))) -> N/A | K130: =IF($G$130="N/A","N/A",ABS(G130/(2*I130))) -> N/A | L130: =IF($G$130="N/A","N/A",R95*$B$124) -> N/A | M130: =IF($G$130="N/A","N/A",W95*$B$124) -> N/A | N130: =IF(OR(G130="N/A",J130=0),"N/A",IF(J130<=L130,"OK","NG")) -> N/A | O130: =IF(OR(G130="N/A",K130=0),"N/A",IF(K130<=M130,"OK","NG")) -> N/A | P130: =IF(OR(G130="N/A",J130=0),"N/A",ABS(L130/J130)) -> N/A | Q130: =IF(OR(G130="N/A",K130=0),"N/A",ABS(M130/K130)) -> N/A | AC130: =IF(OR(AD130="NG",AE130="NG",AF130="NG",AG130="NG",AH130="NG"),1,0) -> 0 | AD130: N/A | AE130: N/A | AF130: N/A | AG130: N/A
L131: Note: Buckling is ignored if butt-end surfaces are milled in chord members
A133: Rating Factor For Local Compression Buckling Under Whitmore Effective Width
A134: Location | B134: ID | C134: Member | D134: Member Type | E134: Total Factored Joint Capacity (kips) | F134: Total Joint Factored Dead Load (kips) | G134: Total Joint Factored Live Load + I (kips) | H134: Rating Factor (C - f1*DL) / (f2*LL+I) | AB134: 2. RF
A135: =$A$91 -> U/L Chord (LT) | B135: =$B$91 -> 2071 | C135: =$C$91 -> U6 U7 | D135: =$J$67 -> Compression | E135: =IF(G126="N/A","N/A",(H126*L126)+(I126*M126)) -> N/A | F135: =IF(OR(E135="N/A",D135="N/A"),"N/A",ABS(D67)) -> N/A | G135: =IF(OR(E135="N/A",D135="N/A"),"N/A",ABS(E67)) -> N/A | H135: =IF(OR(E135="N/A",D135="N/A"),"N/A",(E135-F135)/G135) -> N/A | AB135: =H135 -> N/A
A136: =$A$92 -> U/L Chord (RT) | B136: =$B$92 -> None | C136: =$C$92 -> N/A | D136: =$J$68 -> N/A | E136: =IF(G127="N/A","N/A",(H127*L127)+(I127*M127)) -> N/A | F136: =IF(OR(E136="N/A",D136="N/A"),"N/A",ABS(D68)) -> N/A | G136: =IF(OR(E136="N/A",D136="N/A"),"N/A",ABS(E68)) -> N/A | H136: =IF(OR(E136="N/A",D136="N/A"),"N/A",(E136-F136)/G136) -> N/A | AB136: =H136 -> N/A
A137: =$A$93 -> Diagonal (LT) | B137: =$B$93 -> 2074 | C137: =$C$93 -> U7 L6 | D137: =$J$69 -> Tension | E137: =IF(G128="N/A","N/A",(H128*L128)+(I128*M128)) -> N/A | F137: =IF(OR(E137="N/A",D137="N/A"),"N/A",ABS(D69)) -> N/A | G137: =IF(OR(E137="N/A",D137="N/A"),"N/A",ABS(E69)) -> N/A | H137: =IF(OR(E137="N/A",D137="N/A"),"N/A",(E137-F137)/G137) -> N/A | AB137: =H137 -> N/A
A138: =$A$94 -> Diagonal (RT) | B138: =$B$94 -> 2072 | C138: =$C$94 -> U7 L8 | D138: =$J$70 -> Compression | E138: =IF(G129="N/A","N/A",(H129*L129)+(I129*M129)) -> N/A | F138: =IF(OR(E138="N/A",D138="N/A"),"N/A",ABS(D70)) -> N/A | G138: =IF(OR(E138="N/A",D138="N/A"),"N/A",ABS(E70)) -> N/A | H138: =IF(OR(E138="N/A",D138="N/A"),"N/A",(E138-F138)/G138) -> N/A | AB138: =H138 -> N/A
A139: =$A$95 -> Vertical | B139: =$B$95 -> 2073 | C139: =$C$95 -> U7 L7 | D139: =$J$71 -> Tension | E139: =IF(G130="N/A","N/A",(H130*L130)+(I130*M130)) -> N/A | F139: =IF(OR(E139="N/A",D139="N/A"),"N/A",ABS(D71)) -> N/A | G139: =IF(OR(E139="N/A",D139="N/A"),"N/A",ABS(E71)) -> N/A | H139: =IF(OR(E139="N/A",D139="N/A"),"N/A",(E139-F139)/G139) -> N/A | AB139: =H139 -> N/A
A145: 3: Minimum Rivet Count Requirement | AA145: =MIN(AB165:AB169) -> 1.91303997 | AB145: =MIN(AH156:AK160) -> 1.391304348 | AC145: =IF(SUM(AC156:AC160)=0,"OK","NG") -> OK | AD145: =A145 -> 3: Minimum Rivet Count Requirement
A147: Rivet Diameter = | B147: =$B$23 -> 0.875 | C147: inch
A148: Rivet Area = | B148: =PI()*($B$23/2)^2 -> 0.6013204689 | C148: sq inch
A150: Maximum Plate Bearing Stress (ksi) | B150: Maximum Rivet Shear stress (ksi)
A151: =$F$42 -> 29.7 | B151: =$G$42 -> 21
A154: Axial Loading Acting to Shear Rivets
A155: Location | B155: ID | C155: Member | D155: Member Type | E155: Was Member Spliced at Joint Center? | F155: Was Member Butt End Milled? | G155: Max. Axial Factored Load* For Both Plates (kips) | H155: Total No. of Rivets At Member End for Both Plates (Provided) | I155: Inner Gusset Plates Actual Thickness (in) | J155: Outer Gusset Plates Actual Thickness (in) | K155: Actual Base Metal Thickness Total at Member End (in) | L155: Total No. of Rivets At Member End (Needed for Bearing on Gussets) | M155: Total No. of Rivets At Member End (Needed for Bearing on Base Metal) | N155: Total No. of Rivets At Member End (Needed for Shear in Rivets) | O155: Bearing on Gusset Plates Meets Requirement | P155: Bearing on Base Metal Meets Requirement | Q155: Shear in Rivets Meets Requirement | R155: Bearing on Gusset Plates C/D Ratio | S155: Bearing on Base Metal C/D Ratio | T155: Shear in Rivets C/D Ratio
A156: =$A$91 -> U/L Chord (LT) | B156: =$B$91 -> 2071 | C156: =$C$91 -> U6 U7 | D156: =J67 -> Compression | E156: =$K$67 -> Yes | F156: =$L$67 -> Yes | G156: =IF(C156="N/A","N/A",IF(E156="No","N/A",IF(AND(D156="Compression",F156="Yes"),ABS(G67)/2,IF(D156="Compression",ABS(G67),IF(D156="Tension",ABS(H67),MAX(ABS(G67),ABS(H67))))))) -> 286.2665 | H156: =$I$91 -> 52 | I156: =IF(OR($B$49="N/A",$G$52="N/A"),"N/A",$B$49*$G$52) -> 0.5 | J156: =IF(OR($B$53="N/A",$G$56="N/A"),"N/A",$B$53*$G$56) -> 0.5 | K156: =$H$91 -> 2.29 | L156: =IF(C156="N/A","N/A",IF(E156="No","N/A",(INT(G156/((I156+J156)*$B$147*$A$151))+1))) -> 12 | M156: =IF(C156="N/A","N/A",IF(E156="No","N/A",INT(G156/((K156)*$B$147*$A$151))+1)) -> 5 | N156: =IF(C156="N/A","N/A",IF(E156="No","N/A",INT(G156/($B$148*$B$151*K91))+1)) -> 23 | O156: =IF(C156="N/A","N/A",IF(E156="No","N/A",IF(H156>=L156,"OK","NG"))) -> OK | P156: =IF(C156="N/A","N/A",IF(E156="No","N/A",IF(H156>=M156,"OK","NG"))) -> OK | Q156: =IF(C156="N/A","N/A",IF(E156="No","N/A",IF(H156>=N156,"OK","NG"))) -> OK | R156: =IF(G156=0,"N/A",IF(C156="N/A","N/A",IF(E156="No","N/A",(H156/L156)))) -> 4.333333333 | S156: =IF(G156=0,"N/A",IF(C156="N/A","N/A",IF(E156="No","N/A",(H156/M156)))) -> 10.4 | T156: =IF(G156=0,"N/A",IF(C156="N/A","N/A",IF(E156="No","N/A",(H156/N156)))) -> 2.260869565 | AB156: =IF(OR(AD156="N/A",AE156="N/A",AF156="N/A"),0,1) -> 1 | AC156: =IF(OR(AD156="NG",AE156="NG",AF156="NG",AG156="NG",AH156="NG",AI156="NG"),1,0) -> 0 | AD156: =O156 -> OK | AE156: OK | AF156: OK | AG156: 4.333333333 | AH156: 10.4 | AI156: 2.260869565
A157: =$A$92 -> U/L Chord (RT) | B157: =$B$92 -> None | C157: =$C$92 -> N/A | D157: =J68 -> N/A | E157: =$K$68 -> N/A | F157: =$L$68 -> N/A | G157: =IF(C157="N/A","N/A",IF(E157="No","N/A",IF(AND(D157="Compression",F157="Yes"),ABS(G68)/2,IF(D157="Compression",ABS(G68),IF(D157="Tension",ABS(H68),MAX(ABS(G68),ABS(H68))))))) -> N/A | H157: =$I$92 -> N/A | I157: =IF(OR($B$49="N/A",$H$52="N/A"),"N/A",$B$49*$H$52) -> N/A | J157: =IF(OR($B$53="N/A",$H$56="N/A"),"N/A",$B$53*$H$56) -> N/A | K157: =$H$92 -> N/A | L157: =IF(C157="N/A","N/A",IF(E157="No","N/A",(INT(G157/((I157+J157)*$B$147*$A$151))+1))) -> N/A | M157: =IF(C157="N/A","N/A",IF(E157="No","N/A",INT(G157/((K157)*$B$147*$A$151))+1)) -> N/A | N157: =IF(C157="N/A","N/A",IF(E157="No","N/A",INT(G157/($B$148*$B$151*K92))+1)) -> N/A | O157: =IF(C157="N/A","N/A",IF(E157="No","N/A",IF(H157>=L157,"OK","NG"))) -> N/A | P157: =IF(C157="N/A","N/A",IF(E157="No","N/A",IF(H157>=M157,"OK","NG"))) -> N/A | Q157: =IF(C157="N/A","N/A",IF(E157="No","N/A",IF(H157>=N157,"OK","NG"))) -> N/A | R157: =IF(G157=0,"N/A",IF(C157="N/A","N/A",IF(E157="No","N/A",(H157/L157)))) -> N/A | S157: =IF(G157=0,"N/A",IF(C157="N/A","N/A",IF(E157="No","N/A",(H157/M157)))) -> N/A | T157: =IF(G157=0,"N/A",IF(C157="N/A","N/A",IF(E157="No","N/A",(H157/N157)))) -> N/A | AB157: =IF(OR(AD157="N/A",AE157="N/A",AF157="N/A"),0,1) -> 0 | AC157: =IF(OR(AD157="NG",AE157="NG",AF157="NG",AG157="NG",AH157="NG",AI157="NG"),1,0) -> 0 | AD157: N/A | AE157: N/A | AF157: N/A | AG157: N/A | AH157: N/A | AI157: N/A
A158: =$A$93 -> Diagonal (LT) | B158: =$B$93 -> 2074 | C158: =$C$93 -> U7 L6 | D158: =J69 -> Tension | E158: =$K$69 -> Yes | F158: =$L$69 -> No | G158: =IF(C158="N/A","N/A",IF(E158="No","N/A",IF(AND(D158="Compression",F158="Yes"),ABS(G69)/2,IF(D158="Compression",ABS(G69),IF(D158="Tension",ABS(H69),MAX(ABS(G69),ABS(H69))))))) -> 279.227 | H158: =$I$93 -> 32 | I158: =IF(OR($B$49="N/A",$I$52="N/A"),"N/A",$B$49*$I$52) -> 0.5 | J158: =IF(OR($B$53="N/A",$I$56="N/A"),"N/A",$B$53*$I$56) -> 0.5 | K158: =$H$93 -> 1.282 | L158: =IF(C158="N/A","N/A",IF(E158="No","N/A",(INT(G158/((I158+J158)*$B$147*$A$151))+1))) -> 11 | M158: =IF(C158="N/A","N/A",IF(E158="No","N/A",INT(G158/((K158)*$B$147*$A$151))+1)) -> 9 | N158: =IF(C158="N/A","N/A",IF(E158="No","N/A",INT(G158/($B$148*$B$151*K93))+1)) -> 23 | O158: =IF(C158="N/A","N/A",IF(E158="No","N/A",IF(H158>=L158,"OK","NG"))) -> OK | P158: =IF(C158="N/A","N/A",IF(E158="No","N/A",IF(H158>=M158,"OK","NG"))) -> OK | Q158: =IF(C158="N/A","N/A",IF(E158="No","N/A",IF(H158>=N158,"OK","NG"))) -> OK | R158: =IF(G158=0,"N/A",IF(C158="N/A","N/A",IF(E158="No","N/A",(H158/L158)))) -> 2.909090909 | S158: =IF(G158=0,"N/A",IF(C158="N/A","N/A",IF(E158="No","N/A",(H158/M158)))) -> 3.555555556 | T158: =IF(G158=0,"N/A",IF(C158="N/A","N/A",IF(E158="No","N/A",(H158/N158)))) -> 1.391304348 | AB158: =IF(OR(AD158="N/A",AE158="N/A",AF158="N/A"),0,1) -> 1 | AC158: =IF(OR(AD158="NG",AE158="NG",AF158="NG",AG158="NG",AH158="NG",AI158="NG"),1,0) -> 0 | AD158: OK | AE158: OK | AF158: OK | AG158: 2.909090909 | AH158: 3.555555556 | AI158: 1.391304348
A159: =$A$94 -> Diagonal (RT) | B159: =$B$94 -> 2072 | C159: =$C$94 -> U7 L8 | D159: =J70 -> Compression | E159: =$K$70 -> Yes | F159: =$L$70 -> Yes | G159: =IF(C159="N/A","N/A",IF(E159="No","N/A",IF(AND(D159="Compression",F159="Yes"),ABS(G70)/2,IF(D159="Compression",ABS(G70),IF(D159="Tension",ABS(H70),MAX(ABS(G70),ABS(H70))))))) -> 305.2335 | H159: =$I$94 -> 62 | I159: =IF(OR($B$49="N/A",$J$52="N/A"),"N/A",$B$49*$J$52) -> 0.5 | J159: =IF(OR($B$53="N/A",$J$56="N/A"),"N/A",$B$53*$J$56) -> 0.5 | K159: =$H$94 -> 2.182 | L159: =IF(C159="N/A","N/A",IF(E159="No","N/A",(INT(G159/((I159+J159)*$B$147*$A$151))+1))) -> 12 | M159: =IF(C159="N/A","N/A",IF(E159="No","N/A",INT(G159/((K159)*$B$147*$A$151))+1)) -> 6 | N159: =IF(C159="N/A","N/A",IF(E159="No","N/A",INT(G159/($B$148*$B$151*K94))+1)) -> 25 | O159: =IF(C159="N/A","N/A",IF(E159="No","N/A",IF(H159>=L159,"OK","NG"))) -> OK | P159: =IF(C159="N/A","N/A",IF(E159="No","N/A",IF(H159>=M159,"OK","NG"))) -> OK | Q159: =IF(C159="N/A","N/A",IF(E159="No","N/A",IF(H159>=N159,"OK","NG"))) -> OK | R159: =IF(G159=0,"N/A",IF(C159="N/A","N/A",IF(E159="No","N/A",(H159/L159)))) -> 5.166666667 | S159: =IF(G159=0,"N/A",IF(C159="N/A","N/A",IF(E159="No","N/A",(H159/M159)))) -> 10.33333333 | T159: =IF(G159=0,"N/A",IF(C159="N/A","N/A",IF(E159="No","N/A",(H159/N159)))) -> 2.48 | AB159: =IF(OR(AD159="N/A",AE159="N/A",AF159="N/A"),0,1) -> 1 | AC159: =IF(OR(AD159="NG",AE159="NG",AF159="NG",AG159="NG",AH159="NG",AI159="NG"),1,0) -> 0 | AD159: OK | AE159: OK | AF159: OK | AG159: 5.166666667 | AH159: 10.33333333 | AI159: 2.48
A160: =$A$95 -> Vertical | B160: =$B$95 -> 2073 | C160: =$C$95 -> U7 L7 | D160: =J71 -> Tension | E160: =$K$71 -> Yes | F160: =$L$71 -> No | G160: =IF(C160="N/A","N/A",IF(E160="No","N/A",IF(AND(D160="Compression",F160="Yes"),ABS(G71)/2,IF(D160="Compression",ABS(G71),IF(D160="Tension",ABS(H71),MAX(ABS(G71),ABS(H71))))))) -> 171.431 | H160: =$I$95 -> 24 | I160: =IF(OR($B$49="N/A",$K$52="N/A"),"N/A",$B$49*$K$52) -> 0.5 | J160: =IF(OR($B$53="N/A",$K$56="N/A"),"N/A",$B$53*$K$56) -> 0.5 | K160: =$H$95 -> 1.282 | L160: =IF(C160="N/A","N/A",IF(E160="No","N/A",(INT(G160/((I160+J160)*$B$147*$A$151))+1))) -> 7 | M160: =IF(C160="N/A","N/A",IF(E160="No","N/A",INT(G160/((K160)*$B$147*$A$151))+1)) -> 6 | N160: =IF(C160="N/A","N/A",IF(E160="No","N/A",INT(G160/($B$148*$B$151*K95))+1)) -> 14 | O160: =IF(C160="N/A","N/A",IF(E160="No","N/A",IF(H160>=L160,"OK","NG"))) -> OK | P160: =IF(C160="N/A","N/A",IF(E160="No","N/A",IF(H160>=M160,"OK","NG"))) -> OK | Q160: =IF(C160="N/A","N/A",IF(E160="No","N/A",IF(H160>=N160,"OK","NG"))) -> OK | R160: =IF(G160=0,"N/A",IF(C160="N/A","N/A",IF(E160="No","N/A",(H160/L160)))) -> 3.428571429 | S160: =IF(G160=0,"N/A",IF(C160="N/A","N/A",IF(E160="No","N/A",(H160/M160)))) -> 4 | T160: =IF(G160=0,"N/A",IF(C160="N/A","N/A",IF(E160="No","N/A",(H160/N160)))) -> 1.714285714 | AB160: =IF(OR(AD160="N/A",AE160="N/A",AF160="N/A"),0,1) -> 1 | AC160: =IF(OR(AD160="NG",AE160="NG",AF160="NG",AG160="NG",AH160="NG",AI160="NG"),1,0) -> 0 | AD160: OK | AE160: OK | AF160: OK | AG160: 3.428571429 | AH160: 4 | AI160: 1.714285714
G161: * Use 50% of the max compression load if butt ends were milled in chord members- AASHTO 10.18.3
A163: Rating Factor For Axial Loading Acting on Rivets | C163: Rating Factor For Axial Loading Acting on Rivets
A164: Location | B164: ID | C164: Member | D164: Member Type | E164: Total Joint Factored Capacity for Bearing on Gusset Plates (kips) | F164: Total Joint Factored Capacity for Bearing on Base Metal (kips) | G164: Total Joint Factored Capacity for Shear in Rivets (kips) | H164: Total Joint Factored Dead Load* (kips) | I164: Total Joint Factored Live Load + I* (kips) | J164: Rating Factor (C - f1*DL) / (f2*LL+I) | AB164: 3. RF
A165: =$A$91 -> U/L Chord (LT) | B165: =$B$91 -> 2071 | C165: =$C$91 -> U6 U7 | D165: =$J$67 -> Compression | E165: =IF(E156="No","N/A",IF(D165="N/A","N/A",IF(AND($D$156="Compression",$F$156="Yes"),0.5*(H156*(I156+J156)*($B$147)*$A$151),H156*(I156+J156)*($B$147)*$A$151))) -> 675.675 | F165: =IF(E156="No","N/A",IF(D165="N/A","N/A",IF(AND($D$156="Compression",$F$156="Yes"),0.5*(H156*(K156)*(B147)*$A$151),H156*(K156)*($B$147)*$A$151))) -> 1547.29575 | G165: =IF(E156="No","N/A",IF(D165="N/A","N/A",K91*(H156*$B$148*$B$151))) -> 656.641952 | H165: =IF(E156="No","N/A",IF(D165="N/A","N/A",IF(AND(D156="Compression",F156="Yes"),0.5*ABS(D67),ABS(D67)))) -> 199.29 | I165: =IF(E156="No","N/A",IF(D165="N/A","N/A",IF(AND(D67<=0,$D$156="Compression",$F$156="Yes"),0.5*ABS(E67),IF(AND(D67<=0,$D$156="Compression",$F$156="No"),ABS(E67),ABS(F67))))) -> 86.9765 | J165: =IF(G165="N/A","N/A",((MIN(E165:G165)-H165)/I165)) -> 5.258339344 | AB165: =J165 -> 5.258339344
A166: =$A$92 -> U/L Chord (RT) | B166: =$B$92 -> None | C166: =$C$92 -> N/A | D166: =$J$68 -> N/A | E166: =IF(E157="No","N/A",IF(D166="N/A","N/A",IF(AND($D$157="Compression",$F$157="Yes"),0.5*(H157*(I157+J157)*($B$147)*$A$151),H157*(I157+J157)*($B$147)*$A$151))) -> N/A | F166: =IF(E157="No","N/A",IF(D166="N/A","N/A",IF(AND($D$157="Compression",$F$157="Yes"),0.5*(H157*(K157)*(B147)*$A$151),H157*(K157)*($B$147)*$A$151))) -> N/A | G166: =IF(E157="No","N/A",IF(D166="N/A","N/A",K92*(H157*$B$148*$B$151))) -> N/A | H166: =IF(E157="No","N/A",IF(D166="N/A","N/A",IF(AND(D157="Compression",F157="Yes"),0.5*ABS(D68),ABS(D68)))) -> N/A | I166: =IF(E157="No","N/A",IF(D166="N/A","N/A",IF(AND(D68<=0,$D$157="Compression",$F$157="Yes"),0.5*ABS(E68),IF(AND(D68<=0,$D$157="Compression",$F$157="No"),ABS(E68),ABS(F68))))) -> N/A | J166: =IF(G166="N/A","N/A",((MIN(E166:G166)-H166)/I166)) -> N/A | AB166: =J166 -> N/A
A167: =$A$93 -> Diagonal (LT) | B167: =$B$93 -> 2074 | C167: =$C$93 -> U7 L6 | D167: =$J$69 -> Tension | E167: =IF(E158="No","N/A",IF(D167="N/A","N/A",H158*(I158+J158)*($B$147)*$A$151)) -> 831.6 | F167: =IF(E158="No","N/A",IF(D167="N/A","N/A",H158*(K158)*($B$147)*$A$151)) -> 1066.1112 | G167: =IF(E158="No","N/A",IF(D167="N/A","N/A",K93*(H158*$B$148*$B$151))) -> 404.0873551 | H167: =IF(E158="No","N/A",IF(D167="N/A","N/A",ABS(D69))) -> 177.71 | I167: =IF(E158="No","N/A",IF(D167="N/A","N/A",IF(D69<=0,ABS(E69),ABS(F69)))) -> 101.517 | J167: =IF(G167="N/A","N/A",((MIN(E167:G167)-H167)/I167)) -> 2.229945281 | AB167: =J167 -> 2.229945281
A168: =$A$94 -> Diagonal (RT) | B168: =$B$94 -> 2072 | C168: =$C$94 -> U7 L8 | D168: =$J$70 -> Compression | E168: =IF(E159="No","N/A",IF(D168="N/A","N/A",H159*(I159+J159)*($B$147)*$A$151)) -> 1611.225 | F168: =IF(E159="No","N/A",IF(D168="N/A","N/A",H159*(K159)*($B$147)*$A$151)) -> 3515.69295 | G168: =IF(E159="No","N/A",IF(D168="N/A","N/A",K94*(H159*$B$148*$B$151))) -> 782.9192504 | H168: =IF(E159="No","N/A",IF(D168="N/A","N/A",ABS(D70))) -> 421.59 | I168: =IF(E159="No","N/A",IF(D168="N/A","N/A",IF(D70<=0,ABS(E70),ABS(F70)))) -> 188.877 | J168: =IF(G168="N/A","N/A",((MIN(E168:G168)-H168)/I168)) -> 1.91303997 | AB168: =J168 -> 1.91303997
A169: =$A$95 -> Vertical | B169: =$B$95 -> 2073 | C169: =$C$95 -> U7 L7 | D169: =$J$71 -> Tension | E169: =IF(E160="No","N/A",IF(D169="N/A","N/A",H160*(I160+J160)*($B$147)*$A$151)) -> 623.7 | F169: =IF(E160="No","N/A",IF(D169="N/A","N/A",H160*(K160)*($B$147)*$A$151)) -> 799.5834 | G169: =IF(E160="No","N/A",IF(D169="N/A","N/A",K95*(H160*$B$148*$B$151))) -> 303.0655163 | H169: =IF(E160="No","N/A",IF(D169="N/A","N/A",ABS(D71))) -> 92.69 | I169: =IF(E160="No","N/A",IF(D169="N/A","N/A",IF(D71<=0,ABS(E71),ABS(F71)))) -> 78.741 | J169: =IF(G169="N/A","N/A",((MIN(E169:G169)-H169)/I169)) -> 2.671740469 | AB169: =J169 -> 2.671740469
F170: * Use 50% of the max compression load if butt ends were milled in chord members- AASHTO 10.18.3
A176: 4: Gusset Plate Local Tension Yield and Fracture | AA176: =MIN(AB193:AB197) -> 8.174127837 | AB176: =MIN(AE184:AE188) -> 3.694768056 | AC176: =IF(SUM(AC184:AC188)=0,"OK","NG") -> OK | AD176: =A176 -> 4: Gusset Plate Local Tension Yield and Fracture
A178: Fy = | B178: =B20/1000 -> 33 | C178: ksi (Yield/Fracture)
A179: Beta (β) = | B179: =$D$23 -> 0.15
A183: Location | B183: ID | C183: Member | D183: Member Type | E183: Was Member Spliced at Joint Center? | F183: Was Member Butt End Milled? | G183: Max. Axial Factored Load total for Both Plates(kips) | H183: Inner Gusset Plate Gross Area (g) | I183: Outer Gusset Plate Gross Area for One Plate Only (g) | J183: Inner Gusset Plate Net Area for One Plate Only (n) | K183: Outer Gusset Plate Net Area for One Plate Only (n) | L183: Ae - Effective Area for inner Plate (An + β*Ag) (sq in) | M183: Ae - Effective Area for Outer Plate (An + β*Ag) (sq in) | N183: Inner/Outer Gusset Plate Max Yield Stress Based on Effective Area (ksi) | O183: Meets Tension Stresses Yield & Fracture Requirement | P183: Tension Stresses Yield & Fracture C/D Ratio
A184: =$A$91 -> U/L Chord (LT) | B184: =$B$91 -> 2071 | C184: =$C$91 -> U6 U7 | D184: =$J$67 -> Compression | E184: =$K$67 -> Yes | F184: =$L$67 -> Yes | G184: =IF(D184="Compression","N/A",IF(C156="N/A","N/A",IF(OR(E156="No",F156="Yes"),"N/A",ABS(MAX(G67:H67))))) -> N/A | H184: =IF(G184="N/A","N/A",B49*G50*L91) -> N/A | I184: =IF(G184="N/A","N/A",B53*G54*L91) -> N/A | J184: =IF($G$184="N/A","N/A",B49*G50*(LOOKUP($C$48,'Info Tables'!$A$403:$A$442,'Info Tables'!$C$403:$C$442))) -> N/A | K184: =IF($G$184="N/A","N/A",B53*G54*(LOOKUP($C$48,'Info Tables'!$A$403:$A$442,'Info Tables'!$C$403:$C$442))) -> N/A | L184: =IF(H184="N/A","N/A",IF(J184+(H184*$B$179)>H184,H184,J184+(H184*$B$179))) -> N/A | M184: N/A | N184: =IF($G$184="N/A","N/A",MAX($G$184/$L$184,$G$184/$M$184)/2) -> N/A | O184: =IF(OR(G184="N/A",G184=0),"N/A",IF($B$178>=N184,"OK","NG")) -> N/A | P184: =IF(OR(G184="N/A",G184=0),"N/A",($B$178/N184)) -> N/A | AC184: =IF(OR(AD184="NG",AE184="NG",AF184="NG",AG184="NG",AH184="NG"),1,0) -> 0 | AD184: =O184 -> N/A | AE184: N/A
A185: =$A$92 -> U/L Chord (RT) | B185: =$B$92 -> None | C185: =$C$92 -> N/A | D185: =$J$68 -> N/A | E185: =$K$68 -> N/A | F185: =$L$68 -> N/A | G185: =IF(D185="Compression","N/A",IF(C157="N/A","N/A",IF(OR(E157="No",F157="Yes"),"N/A",ABS(MAX(G68:H68))))) -> N/A | H185: =IF(G185="N/A","N/A",B49*H50*L92) -> N/A | I185: =IF(G185="N/A","N/A",B53*H54*L92) -> N/A | J185: =IF($G$185="N/A","N/A",B49*H50*(LOOKUP($C$48,'Info Tables'!$A$403:$A$442,'Info Tables'!$D$403:$D$442))) -> N/A | K185: =IF($G$185="N/A","N/A",B53*H54*(LOOKUP($C$48,'Info Tables'!$A$403:$A$442,'Info Tables'!$D$403:$D$442))) -> N/A | L185: N/A | M185: N/A | N185: =IF($G$185="N/A","N/A",0.99*MAX($G$185/$L$185,$G$185/$M$185)/2) -> N/A | O185: =IF(OR(G185="N/A",G185=0),"N/A",IF($B$178>=N185,"OK","NG")) -> N/A | P185: =IF(OR(G185="N/A",G185=0),"N/A",($B$178/N185)) -> N/A | AC185: =IF(OR(AD185="NG",AE185="NG",AF185="NG",AG185="NG",AH185="NG"),1,0) -> 0 | AD185: N/A | AE185: N/A
A186: =$A$93 -> Diagonal (LT) | B186: =$B$93 -> 2074 | C186: =$C$93 -> U7 L6 | D186: =$J$69 -> Tension | E186: =$K$69 -> Yes | F186: =$L$69 -> No | G186: =IF(D186="Compression","N/A",IF(C158="N/A","N/A",IF(OR(E158="No",F158="Yes"),"N/A",ABS(MAX(G69:H69))))) -> 279.227 | H186: =IF(G186="N/A","N/A",B49*I50*L93) -> 15.6315 | I186: =IF(G186="N/A","N/A",B53*I54*L93) -> 15.6315 | J186: =IF($G$186="N/A","N/A",B49*I50*(LOOKUP($C$48,'Info Tables'!$A$403:$A$442,'Info Tables'!$E$403:$E$442))) -> 13.6315 | K186: =IF($G$186="N/A","N/A",B53*I54*(LOOKUP($C$48,'Info Tables'!$A$403:$A$442,'Info Tables'!$E$403:$E$442))) -> 13.6315 | L186: 15.6315 | M186: 15.6315 | N186: =IF($G$186="N/A","N/A",MAX($G$186/$L$186,$G$186/$M$186)/2) -> 8.931548476 | O186: =IF(OR(G186="N/A",G186=0),"N/A",IF($B$178>=N186,"OK","NG")) -> OK | P186: =IF(OR(G186="N/A",G186=0),"N/A",($B$178/N186)) -> 3.694768056 | AC186: =IF(OR(AD186="NG",AE186="NG",AF186="NG",AG186="NG",AH186="NG"),1,0) -> 0 | AD186: OK | AE186: 3.694768056
A187: =$A$94 -> Diagonal (RT) | B187: =$B$94 -> 2072 | C187: =$C$94 -> U7 L8 | D187: =$J$70 -> Compression | E187: =$K$70 -> Yes | F187: =$L$70 -> Yes | G187: =IF(D187="Compression","N/A",IF(C159="N/A","N/A",IF(OR(E159="No",F159="Yes"),"N/A",ABS(MAX(G70:H70))))) -> N/A | H187: =IF(G187="N/A","N/A",B49*J50*L94) -> N/A | I187: =IF(G187="N/A","N/A",B53*J54*L94) -> N/A | J187: =IF($G$187="N/A","N/A",B49*J50*(LOOKUP($C$48,'Info Tables'!$A$403:$A$442,'Info Tables'!$F$403:$F$442))) -> N/A | K187: =IF($G$187="N/A","N/A",B53*J54*(LOOKUP($C$48,'Info Tables'!$A$403:$A$442,'Info Tables'!$F$403:$F$442))) -> N/A | L187: N/A | M187: N/A | N187: =IF($G$187="N/A","N/A",MAX($G$187/$L$187,$G$187/$M$187)/2) -> N/A | O187: =IF(OR(G187="N/A",G187=0),"N/A",IF($B$178>=N187,"OK","NG")) -> N/A | P187: =IF(OR(G187="N/A",G187=0),"N/A",($B$178/N187)) -> N/A | AC187: =IF(OR(AD187="NG",AE187="NG",AF187="NG",AG187="NG",AH187="NG"),1,0) -> 0 | AD187: N/A | AE187: N/A
A188: =$A$95 -> Vertical | B188: =$B$95 -> 2073 | C188: =$C$95 -> U7 L7 | D188: =$J$71 -> Tension | E188: =$K$71 -> Yes | F188: =$L$71 -> No | G188: =IF(D188="Compression","N/A",IF(C160="N/A","N/A",IF(OR(E160="No",F160="Yes"),"N/A",ABS(MAX(G71:H71))))) -> 171.431 | H188: =IF(G188="N/A","N/A",B49*K50*L95) -> 11.1565 | I188: =IF(G188="N/A","N/A",B53*K54*L95) -> 11.1565 | J188: =IF($G$188="N/A","N/A",B49*K50*(LOOKUP($C$48,'Info Tables'!$A$403:$A$442,'Info Tables'!$G$403:$G$442))) -> 10.1565 | K188: =IF($G$188="N/A","N/A",B53*K54*(LOOKUP($C$48,'Info Tables'!$A$403:$A$442,'Info Tables'!$G$403:$G$442))) -> 10.1565 | L188: 11.1565 | M188: 11.1565 | N188: =IF($G$188="N/A","N/A",MAX($G$188/$L$188,$G$188/$M$188)/2) -> 7.683009905 | O188: =IF(OR(G188="N/A",G188=0),"N/A",IF($B$178>=N188,"OK","NG")) -> OK | P188: =IF(OR(G188="N/A",G188=0),"N/A",($B$178/N188)) -> 4.295191651 | AC188: =IF(OR(AD188="NG",AE188="NG",AF188="NG",AG188="NG",AH188="NG"),1,0) -> 0 | AD188: OK | AE188: 4.295191651
A191: Rating Factor For Local Tension and Fracture
A192: Location | B192: ID | C192: Member | D192: Member Type | E192: Inner Gusset Plates Actual Thickness For Whitmore (in) | F192: Outer Gusset Plates Actual Thickness For Whitmore (in) | G192: Whitmore Effective Gross Width "b" For One Plate (in) | H192: Whitmore Effective Net Width "b" For One Plate (in) | I192: Ag - Gross Area for Both Plates (sq in) | J192: An - Net Area for Both Plates (sq in) | K192: Ae - Effective Area for Both Plates (An + β*Ag) (sq in) | L192: Total Joint Factored Capacity (kips) | M192: Total Joint Factored Dead Load (kips) | N192: Total Joint Factored Live Load + I (kips) | O192: Rating Factor (C - f1*DL) / (f2*LL+I) | AB192: 4. RF
A193: =$A$91 -> U/L Chord (LT) | B193: =$B$91 -> 2071 | C193: =$C$91 -> U6 U7 | D193: =$J$67 -> Compression | E193: =IF(OR(B193="None",K67="No"),"N/A",$B$49*$G$50) -> 0.5 | F193: =IF(OR(B193="None",K67="No"),"N/A",$B$53*$G$54) -> 0.5 | G193: =IF(B193="None","N/A",(LOOKUP($C$48,'Info Tables'!$A$303:$A$342,'Info Tables'!$C$303:$C$342))) -> 20.843 | H193: =IF(B193="None","N/A",(LOOKUP($C$48,'Info Tables'!$A$403:$A$442,'Info Tables'!$C$403:$C$442))) -> 16.843 | I193: =IF(OR(B193="None",K67="No"),"N/A",(E193+F193)*G193) -> 20.843 | J193: =IF(OR(B193="None",K67="No"),"N/A",(E193+F193)*H193) -> 16.843 | K193: =IF(OR(B193="None",K67="No"),"N/A",IF(J193+($B$179*I193)>=I193,I193,(J193+($B$179*I193)))) -> 19.96945 | L193: =IF(OR(D193="Compression",D193="N/A",E184="No"),"N/A",MIN((I193*$B$178),(K193*$B$178))) -> N/A | M193: =IF(OR(D193="Compression",D193="N/A",E184="No"),"N/A",ABS($D$67)) -> N/A | N193: =IF(OR(D193="Compression",D193="N/A",E184="No"),"N/A",ABS($F$67)) -> N/A | O193: =IF(L193="N/A","N/A",(L193-M193)/N193) -> N/A | AB193: =O193 -> N/A
A194: =$A$92 -> U/L Chord (RT) | B194: =$B$92 -> None | C194: =$C$92 -> N/A | D194: =$J$68 -> N/A | E194: =IF(OR(B194="None",K68="No"),"N/A",$B$49*$H$50) -> N/A | F194: =IF(OR(B194="None",K68="No"),"N/A",$B$53*$H$54) -> N/A | G194: =IF(B194="None","N/A",(LOOKUP($C$48,'Info Tables'!$A$303:$A$342,'Info Tables'!$D$303:$D$342))) -> N/A | H194: =IF(B194="None","N/A",(LOOKUP($C$48,'Info Tables'!$A$403:$A$442,'Info Tables'!$D$403:$D$442))) -> N/A | I194: =IF(OR(B194="None",K68="No"),"N/A",(E194+F194)*G194) -> N/A | J194: =IF(OR(B194="None",K68="No"),"N/A",(E194+F194)*H194) -> N/A | K194: =IF(OR(B194="None",K68="No"),"N/A",IF(J194+($B$179*I194)>=I194,I194,(J194+($B$179*I194)))) -> N/A | L194: =IF(OR(D194="Compression",D194="N/A",E185="No"),"N/A",MIN((I194*$B$178),(K194*$B$178))) -> N/A | M194: =IF(OR(D194="Compression",D194="N/A",E185="No"),"N/A",ABS($D$68)) -> N/A | N194: =IF(OR(D194="Compression",D194="N/A",E185="No"),"N/A",ABS($F$68)) -> N/A | O194: =IF(L194="N/A","N/A",(L194-M194)/N194) -> N/A | AB194: =O194 -> N/A
A195: =$A$93 -> Diagonal (LT) | B195: =$B$93 -> 2074 | C195: =$C$93 -> U7 L6 | D195: =$J$69 -> Tension | E195: =IF(OR(B195="None",K69="No"),"N/A",$B$49*$I$50) -> 0.5 | F195: =IF(OR(B195="None",K69="No"),"N/A",$B$53*$I$54) -> 0.5 | G195: =IF(B195="None","N/A",(LOOKUP($C$48,'Info Tables'!$A$303:$A$342,'Info Tables'!$E$303:$E$342))) -> 31.263 | H195: =IF(B195="None","N/A",(LOOKUP($C$48,'Info Tables'!$A$403:$A$442,'Info Tables'!$E$403:$E$442))) -> 27.263 | I195: =IF(OR(B195="None",K69="No"),"N/A",(E195+F195)*G195) -> 31.263 | J195: =IF(OR(B195="None",K69="No"),"N/A",(E195+F195)*H195) -> 27.263 | K195: =IF(OR(B195="None",K69="No"),"N/A",IF(J195+($B$179*I195)>=I195,I195,(J195+($B$179*I195)))) -> 31.263 | L195: =IF(OR(D195="Compression",D195="N/A",E186="No"),"N/A",MIN((I195*$B$178),(K195*$B$178))) -> 1031.679 | M195: =IF(OR(D195="Compression",D195="N/A",E186="No"),"N/A",ABS($D$69)) -> 177.71 | N195: =IF(OR(D195="Compression",D195="N/A",E186="No"),"N/A",ABS($F$69)) -> 101.517 | O195: =IF(L195="N/A","N/A",(L195-M195)/N195) -> 8.412078765 | AB195: =O195 -> 8.412078765
A196: =$A$94 -> Diagonal (RT) | B196: =$B$94 -> 2072 | C196: =$C$94 -> U7 L8 | D196: =$J$70 -> Compression | E196: =IF(OR(B196="None",K70="No"),"N/A",$B$49*$J$50) -> 0.5 | F196: =IF(OR(B196="None",K70="No"),"N/A",$B$53*$J$54) -> 0.5 | G196: =IF(B196="None","N/A",(LOOKUP($C$48,'Info Tables'!$A$303:$A$342,'Info Tables'!$F$303:$F$342))) -> 27.344 | H196: =IF(B196="None","N/A",(LOOKUP($C$48,'Info Tables'!$A$403:$A$442,'Info Tables'!$F$403:$F$442))) -> 23.344 | I196: =IF(OR(B196="None",K70="No"),"N/A",(E196+F196)*G196) -> 27.344 | J196: =IF(OR(B196="None",K70="No"),"N/A",(E196+F196)*H196) -> 23.344 | K196: =IF(OR(B196="None",K70="No"),"N/A",IF(J196+($B$179*I196)>=I196,I196,(J196+($B$179*I196)))) -> 27.344 | L196: =IF(OR(D196="Compression",D196="N/A",E187="No"),"N/A",MIN((I196*$B$178),(K196*$B$178))) -> N/A | M196: =IF(OR(D196="Compression",D196="N/A",E187="No"),"N/A",ABS($D$70)) -> N/A | N196: =IF(OR(D196="Compression",D196="N/A",E187="No"),"N/A",ABS($F$70)) -> N/A | O196: =IF(L196="N/A","N/A",(L196-M196)/N196) -> N/A | AB196: =O196 -> N/A
A197: =$A$95 -> Vertical | B197: =$B$95 -> 2073 | C197: =$C$95 -> U7 L7 | D197: =$J$71 -> Tension | E197: =IF(OR(B197="None",K71="No"),"N/A",$B$49*$K$50) -> 0.5 | F197: =IF(OR(B197="None",K71="No"),"N/A",$B$53*$K$54) -> 0.5 | G197: =IF(B197="None","N/A",(LOOKUP($C$48,'Info Tables'!$A$303:$A$342,'Info Tables'!$G$303:$G$342))) -> 22.313 | H197: =IF(B197="None","N/A",(LOOKUP($C$48,'Info Tables'!$A$403:$A$442,'Info Tables'!$G$403:$G$442))) -> 20.313 | I197: =IF(OR(B197="None",K71="No"),"N/A",(E197+F197)*G197) -> 22.313 | J197: =IF(OR(B197="None",K71="No"),"N/A",(E197+F197)*H197) -> 20.313 | K197: =IF(OR(B197="None",K71="No"),"N/A",IF(J197+($B$179*I197)>=I197,I197,(J197+($B$179*I197)))) -> 22.313 | L197: =IF(OR(D197="Compression",D197="N/A",E188="No"),"N/A",MIN((I197*$B$178),(K197*$B$178))) -> 736.329 | M197: =IF(OR(D197="Compression",D197="N/A",E188="No"),"N/A",ABS($D$71)) -> 92.69 | N197: =IF(OR(D197="Compression",D197="N/A",E188="No"),"N/A",ABS($F$71)) -> 78.741 | O197: =IF(L197="N/A","N/A",(L197-M197)/N197) -> 8.174127837 | AB197: =O197 -> 8.174127837
A203: 5: Gusset Plate Axial Tension & Shear Rupture Resistance (Block Shear) | AA203: =MIN(AB231:AB235) -> 7.584193749 | AB203: =MIN(AE213:AE217,AE222:AE226) -> 3.535134496 | AC203: =IF(SUM(AC213:AC217,AC222:AC226)=0,"OK","NG") -> OK | AD203: =A203 -> 5: Gusset Plate Axial Tension & Shear Rupture Resistance (Block Shear)
A204: For Tensile Members Only
A206: =$A$20 -> Gusset Plate Steel Fy | B206: =$B$20/1000 -> 33 | C206: ksi
A207: =$A$21 -> Gusset Plate Steel Fu | B207: =$B$21/1000 -> 60 | C207: ksi
A208: =$A$32 -> Block Shear Load Factor Ø: | B208: =$B$32 -> 0.85
A211: Inner Plate | H211: Shear Stress* | J211: Tensile Stress
A212: Location | B212: ID | C212: Member | D212: Member Type | E212: Was Member Spliced at Joint Center? | F212: Was Member Butt End Milled? | G212: Max. Joint Factored Axial Load For Both Plates (kips) | H212: Ag - Inner Gusset Plate Gross Area (sq in) | I212: An - Inner Gusset Plate Net Area* (sq in) | J212: Ag - Inner Gusset Plate Gross Area (sq in) | K212: An - Inner Gusset Plate Net Area (sq in) | L212: Maximum Load Capacity For Block Shear 1 Ø(FyAvg + FuAtn) (kips) | M212: Maximum Load Capacity For Block Shear 2 Ø( FuAvn + FyAtg) (kips) | N212: Meets Block Shear Rupture Resistance Requirement | O212: Block Shear Rupture Resistance C/D Ratio
A213: =$A$91 -> U/L Chord (LT) | B213: =$B$91 -> 2071 | C213: =$C$91 -> U6 U7 | D213: =$J$67 -> Compression | E213: =$K$67 -> Yes | F213: =$L$67 -> Yes | G213: =IF(D213="Compression","N/A",IF(C213="N/A","N/A",IF(OR(E213="No",F213="Yes"),"N/A",ABS(MAX(G67:H67))))) -> N/A | H213: =IF(D213="Compression","N/A",IF(C213="N/A","N/A",IF(OR(E213="No",F213="Yes"),"N/A",0.5*$E$91*LOOKUP($C$48,'Info Tables'!$A$553:$A$592,'Info Tables'!$C$553:$C$592)))) -> N/A | I213: =IF(D213="Compression","N/A",IF(C213="N/A","N/A",IF(OR(E213="No",F213="Yes"),"N/A",0.5*$E$91*LOOKUP($C$48,'Info Tables'!$A$603:$A$642,'Info Tables'!$C$603:$C$642)))) -> N/A | J213: =IF(D213="Compression","N/A",IF(C213="N/A","N/A",IF(OR(E213="No",F213="Yes"),"N/A",G49*$B$49*LOOKUP($C$48,'Info Tables'!$A$453:$A$492,'Info Tables'!$C$453:$C$492)))) -> N/A | K213: =IF(D213="Compression","N/A",IF(C213="N/A","N/A",IF(OR(E213="No",F213="Yes"),"N/A",G49*$B$49*LOOKUP($C$48,'Info Tables'!$A$503:$A$542,'Info Tables'!$C$503:$C$542)))) -> N/A | L213: =IF(D213="Compression","N/A",IF(C213="N/A","N/A",IF(OR(E213="No",F213="Yes"),"N/A",$B$208*(($B$206*0.58*H213)+($B$207*K213))))) -> N/A | M213: =IF(D213="Compression","N/A",IF(C213="N/A","N/A",IF(OR(E213="No",F213="Yes"),"N/A",$B$208*(($B$207*0.58*I213)+($B$206*J213))))) -> N/A | N213: =IF(D213="Compression","N/A",IF(OR(C213="N/A",G213=0),"N/A",IF(OR(E213="No",F213="Yes"),"N/A",IF(MIN(L213:M213)>=(G213/2),"OK","NG")))) -> N/A | O213: =IF(D213="Compression","N/A",IF(OR(C213="N/A",G213=0),"N/A",IF(OR(E213="No",F213="Yes"),"N/A",MIN(L213/(G213/2),M213/(G213/2))))) -> N/A | AC213: =IF(OR(AD213="NG",AE213="NG",AF213="NG",AG213="NG",AH213="NG"),1,0) -> 0 | AD213: =N213 -> N/A | AE213: N/A
A214: =$A$92 -> U/L Chord (RT) | B214: =$B$92 -> None | C214: =$C$92 -> N/A | D214: =$J$68 -> N/A | E214: =$K$68 -> N/A | F214: =$L$68 -> N/A | G214: =IF(D214="Compression","N/A",IF(C214="N/A","N/A",IF(OR(E214="No",F214="Yes"),"N/A",ABS(MAX(G68:H68))))) -> N/A | H214: =IF(D214="Compression","N/A",IF(C214="N/A","N/A",IF(OR(E214="No",F214="Yes"),"N/A",0.5*$E$92*LOOKUP($C$48,'Info Tables'!$A$553:$A$592,'Info Tables'!$D$553:$D$592)))) -> N/A | I214: =IF(D214="Compression","N/A",IF(C214="N/A","N/A",IF(OR(E214="No",F214="Yes"),"N/A",0.5*$E$92*LOOKUP($C$48,'Info Tables'!$A$603:$A$642,'Info Tables'!$D$603:$D$642)))) -> N/A | J214: =IF(D214="Compression","N/A",IF(C214="N/A","N/A",IF(OR(E214="No",F214="Yes"),"N/A",H49*$B$49*LOOKUP($C$48,'Info Tables'!$A$453:$A$492,'Info Tables'!$D$453:$D$492)))) -> N/A | K214: =IF(D214="Compression","N/A",IF(C214="N/A","N/A",IF(OR(E214="No",F214="Yes"),"N/A",H49*$B$49*(LOOKUP($C$48,'Info Tables'!$A$503:$A$542,'Info Tables'!$D$503:$D$542))))) -> N/A | L214: =IF(D214="Compression","N/A",IF(C214="N/A","N/A",IF(OR(E214="No",F214="Yes"),"N/A",$B$208*(($B$206*0.58*H214)+($B$207*K214))))) -> N/A | M214: =IF(D214="Compression","N/A",IF(C214="N/A","N/A",IF(OR(E214="No",F214="Yes"),"N/A",$B$208*(($B$207*0.58*I214)+($B$206*J214))))) -> N/A | N214: =IF(D214="Compression","N/A",IF(OR(C214="N/A",G214=0),"N/A",IF(OR(E214="No",F214="Yes"),"N/A",IF(MIN(L214:M214)>=(G214/2),"OK","NG")))) -> N/A | O214: =IF(D214="Compression","N/A",IF(OR(C214="N/A",G214=0),"N/A",IF(OR(E214="No",F214="Yes"),"N/A",MIN(L214/(G214/2),M214/(G214/2))))) -> N/A | AC214: =IF(OR(AD214="NG",AE214="NG",AF214="NG",AG214="NG",AH214="NG"),1,0) -> 0 | AD214: N/A | AE214: N/A
A215: =$A$93 -> Diagonal (LT) | B215: =$B$93 -> 2074 | C215: =$C$93 -> U7 L6 | D215: =$J$69 -> Tension | E215: =$K$69 -> Yes | F215: =$L$69 -> No | G215: =IF(D215="Compression","N/A",IF(C215="N/A","N/A",IF(OR(E215="No",F215="Yes"),"N/A",ABS(MAX(G69:H69))))) -> 279.227 | H215: =IF(D215="Compression","N/A",IF(C215="N/A","N/A",IF(OR(E215="No",F215="Yes"),"N/A",$E$93*LOOKUP($C$48,'Info Tables'!$A$553:$A$592,'Info Tables'!$E$553:$E$592)))) -> 22.5 | I215: =IF(D215="Compression","N/A",IF(C215="N/A","N/A",IF(OR(E215="No",F215="Yes"),"N/A",$E$93*LOOKUP($C$48,'Info Tables'!$A$603:$A$642,'Info Tables'!$E$603:$E$642)))) -> 14.5 | J215: =IF(D215="Compression","N/A",IF(C215="N/A","N/A",IF(OR(E215="No",F215="Yes"),"N/A",I49*$B$49*LOOKUP($C$48,'Info Tables'!$A$453:$A$492,'Info Tables'!$E$453:$E$492)))) -> 3.5 | K215: =IF(D215="Compression","N/A",IF(C215="N/A","N/A",IF(OR(E215="No",F215="Yes"),"N/A",I49*$B$49*(LOOKUP($C$48,'Info Tables'!$A$503:$A$542,'Info Tables'!$E$503:$E$542))))) -> 2.5 | L215: =IF(D215="Compression","N/A",IF(C215="N/A","N/A",IF(OR(E215="No",F215="Yes"),"N/A",$B$208*(($B$206*0.58*H215)+($B$207*K215))))) -> 493.5525 | M215: =IF(D215="Compression","N/A",IF(C215="N/A","N/A",IF(OR(E215="No",F215="Yes"),"N/A",$B$208*(($B$207*0.58*I215)+($B$206*J215))))) -> 527.085 | N215: =IF(D215="Compression","N/A",IF(OR(C215="N/A",G215=0),"N/A",IF(OR(E215="No",F215="Yes"),"N/A",IF(MIN(L215:M215)>=(G215/2),"OK","NG")))) -> OK | O215: =IF(D215="Compression","N/A",IF(OR(C215="N/A",G215=0),"N/A",IF(OR(E215="No",F215="Yes"),"N/A",MIN(L215/(G215/2),M215/(G215/2))))) -> 3.535134496 | AC215: =IF(OR(AD215="NG",AE215="NG",AF215="NG",AG215="NG",AH215="NG"),1,0) -> 0 | AD215: OK | AE215: 3.535134496
A216: =$A$94 -> Diagonal (RT) | B216: =$B$94 -> 2072 | C216: =$C$94 -> U7 L8 | D216: =$J$70 -> Compression | E216: =$K$70 -> Yes | F216: =$L$70 -> Yes | G216: =IF(D216="Compression","N/A",IF(C216="N/A","N/A",IF(OR(E216="No",F216="Yes"),"N/A",ABS(MAX(G70:H70))))) -> N/A | H216: =IF(D216="Compression","N/A",IF(C216="N/A","N/A",IF(OR(E216="No",F216="Yes"),"N/A",$E$94*LOOKUP($C$48,'Info Tables'!$A$553:$A$592,'Info Tables'!$F$553:$F$592)))) -> N/A | I216: =IF(D216="Compression","N/A",IF(C216="N/A","N/A",IF(OR(E216="No",F216="Yes"),"N/A",$E$94*LOOKUP($C$48,'Info Tables'!$A$603:$A$642,'Info Tables'!$F$603:$F$642)))) -> N/A | J216: =IF(D216="Compression","N/A",IF(C216="N/A","N/A",IF(OR(E216="No",F216="Yes"),"N/A",J49*$B$49*LOOKUP($C$48,'Info Tables'!$A$453:$A$492,'Info Tables'!$F$453:$F$492)))) -> N/A | K216: =IF(D216="Compression","N/A",IF(C216="N/A","N/A",IF(OR(E216="No",F216="Yes"),"N/A",J49*$B$49*(LOOKUP($C$48,'Info Tables'!$A$503:$A$542,'Info Tables'!$F$503:$F$542))))) -> N/A | L216: =IF(D216="Compression","N/A",IF(C216="N/A","N/A",IF(OR(E216="No",F216="Yes"),"N/A",$B$208*(($B$206*0.58*H216)+($B$207*K216))))) -> N/A | M216: =IF(D216="Compression","N/A",IF(C216="N/A","N/A",IF(OR(E216="No",F216="Yes"),"N/A",$B$208*(($B$207*0.58*I216)+($B$206*J216))))) -> N/A | N216: =IF(D216="Compression","N/A",IF(OR(C216="N/A",G216=0),"N/A",IF(OR(E216="No",F216="Yes"),"N/A",IF(MIN(L216:M216)>=(G216/2),"OK","NG")))) -> N/A | O216: =IF(D216="Compression","N/A",IF(OR(C216="N/A",G216=0),"N/A",IF(OR(E216="No",F216="Yes"),"N/A",MIN(L216/(G216/2),M216/(G216/2))))) -> N/A | AC216: =IF(OR(AD216="NG",AE216="NG",AF216="NG",AG216="NG",AH216="NG"),1,0) -> 0 | AD216: N/A | AE216: N/A
A217: =$A$95 -> Vertical | B217: =$B$95 -> 2073 | C217: =$C$95 -> U7 L7 | D217: =$J$71 -> Tension | E217: =$K$71 -> Yes | F217: =$L$71 -> No | G217: =IF(D217="Compression","N/A",IF(C217="N/A","N/A",IF(OR(E217="No",F217="Yes"),"N/A",ABS(MAX(G71:H71))))) -> 171.431 | H217: =IF(D217="Compression","N/A",IF(C217="N/A","N/A",IF(OR(E217="No",F217="Yes"),"N/A",$E$95*LOOKUP($C$48,'Info Tables'!$A$553:$A$592,'Info Tables'!$G$553:$G$592)))) -> 16.5 | I217: =IF(D217="Compression","N/A",IF(C217="N/A","N/A",IF(OR(E217="No",F217="Yes"),"N/A",$E$95*LOOKUP($C$48,'Info Tables'!$A$603:$A$642,'Info Tables'!$G$603:$G$642)))) -> 10.5 | J217: =IF(D217="Compression","N/A",IF(C217="N/A","N/A",IF(OR(E217="No",F217="Yes"),"N/A",K49*$B$49*LOOKUP($C$48,'Info Tables'!$A$453:$A$492,'Info Tables'!$G$453:$G$492)))) -> 2.5 | K217: =IF(D217="Compression","N/A",IF(C217="N/A","N/A",IF(OR(E217="No",F217="Yes"),"N/A",K49*$B$49*(LOOKUP($C$48,'Info Tables'!$A$503:$A$542,'Info Tables'!$G$503:$G$542))))) -> 1.5 | L217: =IF(D217="Compression","N/A",IF(C217="N/A","N/A",IF(OR(E217="No",F217="Yes"),"N/A",$B$208*(($B$206*0.58*H217)+($B$207*K217))))) -> 344.9385 | M217: =IF(D217="Compression","N/A",IF(C217="N/A","N/A",IF(OR(E217="No",F217="Yes"),"N/A",$B$208*(($B$207*0.58*I217)+($B$206*J217))))) -> 380.715 | N217: =IF(D217="Compression","N/A",IF(OR(C217="N/A",G217=0),"N/A",IF(OR(E217="No",F217="Yes"),"N/A",IF(MIN(L217:M217)>=(G217/2),"OK","NG")))) -> OK | O217: =IF(D217="Compression","N/A",IF(OR(C217="N/A",G217=0),"N/A",IF(OR(E217="No",F217="Yes"),"N/A",MIN(L217/(G217/2),M217/(G217/2))))) -> 4.02422549 | AC217: =IF(OR(AD217="NG",AE217="NG",AF217="NG",AG217="NG",AH217="NG"),1,0) -> 0 | AD217: OK | AE217: 4.02422549
I218: * Use 1/2 the shear length in chords due to fractured section
A220: Outer Plate | H220: Shear Stress* | J220: Tensile Stress
A221: Location | B221: ID | C221: Member | D221: Member Type | E221: Was Member Spliced at Joint Center? | F221: Was Member Butt End Milled? | G221: Max. Joint Axial Load For Both Plates (kips) | H221: Ag - Outer Gusset Plate Gross Area (sq in) | I221: An - Outer Gusset Plate Net Area* (sq in) | J221: Outer Gusset Plate Gross Area (sq in) | K221: Outer Gusset Plate Net Area (sq in) | L221: Maximum Load Capacity For Block Shear 1 Ø(FyAvg + FuAtn) (kips) | M221: Maximum Load Capacity For Block Shear 2 Ø( FuAvn + FyAtg) (kips) | N221: Meets Block Shear Rupture Resistance Requirement | O221: Block Shear Rupture Resistance C/D Ratio
A222: =$A$91 -> U/L Chord (LT) | B222: =$B$91 -> 2071 | C222: =$C$91 -> U6 U7 | D222: =$J$67 -> Compression | E222: =$K$67 -> Yes | F222: =$L$67 -> Yes | G222: =IF(D222="Compression","N/A",G213) -> N/A | H222: =IF(D222="Compression","N/A",IF(C222="N/A","N/A",IF(OR(E222="No",F222="Yes"),"N/A",0.5*$G$91*LOOKUP($C$48,'Info Tables'!$A$553:$A$592,'Info Tables'!$C$553:$C$592)))) -> N/A | I222: =IF(D222="Compression","N/A",IF(C222="N/A","N/A",IF(OR(E222="No",F222="Yes"),"N/A",0.5*$G$91*LOOKUP($C$48,'Info Tables'!$A$603:$A$642,'Info Tables'!$C$603:$C$642)))) -> N/A | J222: =IF(D222="Compression","N/A",IF(C222="N/A","N/A",IF(OR(E222="No",F222="Yes"),"N/A",G53*$B$53*LOOKUP($C$48,'Info Tables'!$A$453:$A$492,'Info Tables'!$C$453:$C$492)))) -> N/A | K222: =IF(D222="Compression","N/A",IF(C222="N/A","N/A",IF(OR(E222="No",F222="Yes"),"N/A",G53*$B$53*(LOOKUP($C$48,'Info Tables'!$A$503:$A$542,'Info Tables'!$C$503:$C$542))))) -> N/A | L222: =IF(D222="Compression","N/A",IF(C222="N/A","N/A",IF(OR(E222="No",F222="Yes"),"N/A",$B$208*(($B$206*0.58*H222)+($B$207*K222))))) -> N/A | M222: =IF(D222="Compression","N/A",IF(C222="N/A","N/A",IF(OR(E222="No",F222="Yes"),"N/A",$B$208*(($B$207*0.58*I222)+($B$206*J222))))) -> N/A | N222: =IF(D222="Compression","N/A",IF(OR(C222="N/A",G222=0),"N/A",IF(OR(E222="No",F222="Yes"),"N/A",IF(MIN(L222:M222)>=G222/2,"OK","NG")))) -> N/A | O222: =IF(D222="Compression","N/A",IF(OR(C222="N/A",G222=0),"N/A",IF(OR(E222="No",F222="Yes"),"N/A",MIN(L222/(G222/2),M222/(G222/2))))) -> N/A | AC222: =IF(OR(AD222="NG",AE222="NG",AF222="NG",AG222="NG",AH222="NG"),1,0) -> 0 | AD222: =N222 -> N/A | AE222: N/A
A223: =$A$92 -> U/L Chord (RT) | B223: =$B$92 -> None | C223: =$C$92 -> N/A | D223: =$J$68 -> N/A | E223: =$K$68 -> N/A | F223: =$L$68 -> N/A | G223: =IF(D223="Compression","N/A",G214) -> N/A | H223: =IF(D223="Compression","N/A",IF(C223="N/A","N/A",IF(OR(E223="No",F223="Yes"),"N/A",0.5*$G$92*LOOKUP($C$48,'Info Tables'!$A$553:$A$592,'Info Tables'!$D$553:$D$592)))) -> N/A | I223: =IF(D223="Compression","N/A",IF(C223="N/A","N/A",IF(OR(E223="No",F223="Yes"),"N/A",0.5*$G$92*LOOKUP($C$48,'Info Tables'!$A$603:$A$642,'Info Tables'!$D$603:$D$642)))) -> N/A | J223: =IF(D223="Compression","N/A",IF(C223="N/A","N/A",IF(OR(E223="No",F223="Yes"),"N/A",H53*$B$53*LOOKUP($C$48,'Info Tables'!$A$453:$A$492,'Info Tables'!$D$453:$D$492)))) -> N/A | K223: =IF(D223="Compression","N/A",IF(C223="N/A","N/A",IF(OR(E223="No",F223="Yes"),"N/A",H53*$B$53*(LOOKUP($C$48,'Info Tables'!$A$503:$A$542,'Info Tables'!$D$503:$D$542))))) -> N/A | L223: =IF(D223="Compression","N/A",IF(C223="N/A","N/A",IF(OR(E223="No",F223="Yes"),"N/A",$B$208*(($B$206*0.58*H223)+($B$207*K223))))) -> N/A | M223: =IF(D223="Compression","N/A",IF(C223="N/A","N/A",IF(OR(E223="No",F223="Yes"),"N/A",$B$208*(($B$207*0.58*I223)+($B$206*J223))))) -> N/A | N223: =IF(D223="Compression","N/A",IF(OR(C223="N/A",G223=0),"N/A",IF(OR(E223="No",F223="Yes"),"N/A",IF(MIN(L223:M223)>=G223/2,"OK","NG")))) -> N/A | O223: =IF(D223="Compression","N/A",IF(OR(C223="N/A",G223=0),"N/A",IF(OR(E223="No",F223="Yes"),"N/A",MIN(L223/(G223/2),M223/(G223/2))))) -> N/A | AC223: =IF(OR(AD223="NG",AE223="NG",AF223="NG",AG223="NG",AH223="NG"),1,0) -> 0 | AD223: N/A | AE223: N/A
A224: =$A$93 -> Diagonal (LT) | B224: =$B$93 -> 2074 | C224: =$C$93 -> U7 L6 | D224: =$J$69 -> Tension | E224: =$K$69 -> Yes | F224: =$L$69 -> No | G224: =IF(D224="Compression","N/A",G215) -> 279.227 | H224: =IF(D224="Compression","N/A",IF(C224="N/A","N/A",IF(OR(E224="No",F224="Yes"),"N/A",$G$93*LOOKUP($C$48,'Info Tables'!$A$553:$A$592,'Info Tables'!$E$553:$E$592)))) -> 22.5 | I224: =IF(D224="Compression","N/A",IF(C224="N/A","N/A",IF(OR(E224="No",F224="Yes"),"N/A",$G$93*LOOKUP($C$48,'Info Tables'!$A$603:$A$642,'Info Tables'!$E$603:$E$642)))) -> 14.5 | J224: =IF(D224="Compression","N/A",IF(C224="N/A","N/A",IF(OR(E224="No",F224="Yes"),"N/A",I53*$B$53*LOOKUP($C$48,'Info Tables'!$A$453:$A$492,'Info Tables'!$E$453:$E$492)))) -> 3.5 | K224: =IF(D224="Compression","N/A",IF(C224="N/A","N/A",IF(OR(E224="No",F224="Yes"),"N/A",I53*$B$53*(LOOKUP($C$48,'Info Tables'!$A$503:$A$542,'Info Tables'!$E$503:$E$542))))) -> 2.5 | L224: =IF(D224="Compression","N/A",IF(C224="N/A","N/A",IF(OR(E224="No",F224="Yes"),"N/A",$B$208*(($B$206*0.58*H224)+($B$207*K224))))) -> 493.5525 | M224: =IF(D224="Compression","N/A",IF(C224="N/A","N/A",IF(OR(E224="No",F224="Yes"),"N/A",$B$208*(($B$207*0.58*I224)+($B$206*J224))))) -> 527.085 | N224: =IF(D224="Compression","N/A",IF(OR(C224="N/A",G224=0),"N/A",IF(OR(E224="No",F224="Yes"),"N/A",IF(MIN(L224:M224)>=G224/2,"OK","NG")))) -> OK | O224: =IF(D224="Compression","N/A",IF(OR(C224="N/A",G224=0),"N/A",IF(OR(E224="No",F224="Yes"),"N/A",MIN(L224/(G224/2),M224/(G224/2))))) -> 3.535134496 | AC224: =IF(OR(AD224="NG",AE224="NG",AF224="NG",AG224="NG",AH224="NG"),1,0) -> 0 | AD224: OK | AE224: 3.535134496
A225: =$A$94 -> Diagonal (RT) | B225: =$B$94 -> 2072 | C225: =$C$94 -> U7 L8 | D225: =$J$70 -> Compression | E225: =$K$70 -> Yes | F225: =$L$70 -> Yes | G225: =IF(D225="Compression","N/A",G216) -> N/A | H225: =IF(D225="Compression","N/A",IF(C225="N/A","N/A",IF(OR(E225="No",F225="Yes"),"N/A",$G$94*LOOKUP($C$48,'Info Tables'!$A$553:$A$592,'Info Tables'!$F$553:$F$592)))) -> N/A | I225: =IF(D225="Compression","N/A",IF(C225="N/A","N/A",IF(OR(E225="No",F225="Yes"),"N/A",$G$94*LOOKUP($C$48,'Info Tables'!$A$603:$A$642,'Info Tables'!$F$603:$F$642)))) -> N/A | J225: =IF(D225="Compression","N/A",IF(C225="N/A","N/A",IF(OR(E225="No",F225="Yes"),"N/A",J53*$B$53*LOOKUP($C$48,'Info Tables'!$A$453:$A$492,'Info Tables'!$F$453:$F$492)))) -> N/A | K225: =IF(D225="Compression","N/A",IF(C225="N/A","N/A",IF(OR(E225="No",F225="Yes"),"N/A",J53*$B$53*(LOOKUP($C$48,'Info Tables'!$A$503:$A$542,'Info Tables'!$F$503:$F$542))))) -> N/A | L225: =IF(D225="Compression","N/A",IF(C225="N/A","N/A",IF(OR(E225="No",F225="Yes"),"N/A",$B$208*(($B$206*0.58*H225)+($B$207*K225))))) -> N/A | M225: =IF(D225="Compression","N/A",IF(C225="N/A","N/A",IF(OR(E225="No",F225="Yes"),"N/A",$B$208*(($B$207*0.58*I225)+($B$206*J225))))) -> N/A | N225: =IF(D225="Compression","N/A",IF(OR(C225="N/A",G225=0),"N/A",IF(OR(E225="No",F225="Yes"),"N/A",IF(MIN(L225:M225)>=G225/2,"OK","NG")))) -> N/A | O225: =IF(D225="Compression","N/A",IF(OR(C225="N/A",G225=0),"N/A",IF(OR(E225="No",F225="Yes"),"N/A",MIN(L225/(G225/2),M225/(G225/2))))) -> N/A | AC225: =IF(OR(AD225="NG",AE225="NG",AF225="NG",AG225="NG",AH225="NG"),1,0) -> 0 | AD225: N/A | AE225: N/A
A226: =$A$95 -> Vertical | B226: =$B$95 -> 2073 | C226: =$C$95 -> U7 L7 | D226: =$J$71 -> Tension | E226: =$K$71 -> Yes | F226: =$L$71 -> No | G226: =IF(D226="Compression","N/A",G217) -> 171.431 | H226: =IF(D226="Compression","N/A",IF(C226="N/A","N/A",IF(OR(E226="No",F226="Yes"),"N/A",$G$95*LOOKUP($C$48,'Info Tables'!$A$553:$A$592,'Info Tables'!$G$553:$G$592)))) -> 16.5 | I226: =IF(D226="Compression","N/A",IF(C226="N/A","N/A",IF(OR(E226="No",F226="Yes"),"N/A",$G$95*LOOKUP($C$48,'Info Tables'!$A$603:$A$642,'Info Tables'!$G$603:$G$642)))) -> 10.5 | J226: =IF(D226="Compression","N/A",IF(C226="N/A","N/A",IF(OR(E226="No",F226="Yes"),"N/A",K53*$B$53*LOOKUP($C$48,'Info Tables'!$A$453:$A$492,'Info Tables'!$G$453:$G$492)))) -> 2.5 | K226: =IF(D226="Compression","N/A",IF(C226="N/A","N/A",IF(OR(E226="No",F226="Yes"),"N/A",K53*$B$53*(LOOKUP($C$48,'Info Tables'!$A$503:$A$542,'Info Tables'!$G$503:$G$542))))) -> 1.5 | L226: =IF(D226="Compression","N/A",IF(C226="N/A","N/A",IF(OR(E226="No",F226="Yes"),"N/A",$B$208*(($B$206*0.58*H226)+($B$207*K226))))) -> 344.9385 | M226: =IF(D226="Compression","N/A",IF(C226="N/A","N/A",IF(OR(E226="No",F226="Yes"),"N/A",$B$208*(($B$207*0.58*I226)+($B$206*J226))))) -> 380.715 | N226: =IF(D226="Compression","N/A",IF(OR(C226="N/A",G226=0),"N/A",IF(OR(E226="No",F226="Yes"),"N/A",IF(MIN(L226:M226)>=G226/2,"OK","NG")))) -> OK | O226: =IF(D226="Compression","N/A",IF(OR(C226="N/A",G226=0),"N/A",IF(OR(E226="No",F226="Yes"),"N/A",MIN(L226/(G226/2),M226/(G226/2))))) -> 4.02422549 | AC226: =IF(OR(AD226="NG",AE226="NG",AF226="NG",AG226="NG",AH226="NG"),1,0) -> 0 | AD226: OK | AE226: 4.02422549
I227: * Use 1/2 the shear length in chords due to fractured section
A229: Rating Factor For Axial Tension & Shear Rupture Resistance (Block Shear)
A230: Location | B230: ID | C230: Member | D230: Member Type | E230: Block shear Capacity 1 (FyAvg + FuAtn) For Both Plates (kips) | F230: Block Shear Capacity 2 (FuAvn + FyAtg) For Both Plates (kips) | G230: Total Joint Block Shear Capacity For Both Plates (kips) | H230: Total Joint DL For Both Plates (kips) | I230: Total Joint LL + I For Both Plates (kips) | J230: Rating Factor (C - f1*DL) / (f2*LL+I) | AB230: 6. RF
A231: =$A$91 -> U/L Chord (LT) | B231: =$B$91 -> 2071 | C231: =$C$91 -> U6 U7 | D231: =$J$67 -> Compression | E231: =IF(G222="N/A","N/A",L213+L222) -> N/A | F231: =IF(H222="N/A","N/A",M213+M222) -> N/A | G231: =IF(F231="N/A","N/A",MIN(E231,F231)) -> N/A | H231: =IF(F231="N/A","N/A",ABS($D$67)) -> N/A | I231: =IF(C231="N/A","N/A",MAX(ABS($E$67),ABS($F$67))) -> 173.953 | J231: =IF(G231="N/A","N/A",(G231-H231)/I231) -> N/A | AB231: =J231 -> N/A
A232: =$A$92 -> U/L Chord (RT) | B232: =$B$92 -> None | C232: =$C$92 -> N/A | D232: =$J$68 -> N/A | E232: =IF(G223="N/A","N/A",L214+L223) -> N/A | F232: N/A | G232: =IF(F232="N/A","N/A",MIN(E232,F232)) -> N/A | H232: =IF(F232="N/A","N/A",ABS($D$68)) -> N/A | I232: =IF(C232="N/A","N/A",MAX(ABS($E$68),ABS($F$68))) -> N/A | J232: =IF(G232="N/A","N/A",(G232-H232)/I232) -> N/A | AB232: =J232 -> N/A
A233: =$A$93 -> Diagonal (LT) | B233: =$B$93 -> 2074 | C233: =$C$93 -> U7 L6 | D233: =$J$69 -> Tension | E233: 987.105 | F233: =IF(H224="N/A","N/A",M215+M224) -> 1054.17 | G233: =IF(F233="N/A","N/A",MIN(E233,F233)) -> 987.105 | H233: =IF(F233="N/A","N/A",ABS($D$69)) -> 177.71 | I233: =IF(C233="N/A","N/A",MAX(ABS($E$69),ABS($F$69))) -> 101.517 | J233: =IF(G233="N/A","N/A",(G233-H233)/I233) -> 7.972999596 | AB233: =J233 -> 7.972999596
A234: =$A$94 -> Diagonal (RT) | B234: =$B$94 -> 2072 | C234: =$C$94 -> U7 L8 | D234: =$J$70 -> Compression | E234: N/A | F234: N/A | G234: =IF(F234="N/A","N/A",MIN(E234,F234)) -> N/A | H234: =IF(C234="N/A","N/A",ABS($D$70)) -> 421.59 | I234: =IF(C234="N/A","N/A",MAX(ABS($E$70),ABS($F$70))) -> 188.877 | J234: =IF(G234="N/A","N/A",(G234-H234)/I234) -> N/A | AB234: =J234 -> N/A
A235: =$A$95 -> Vertical | B235: =$B$95 -> 2073 | C235: =$C$95 -> U7 L7 | D235: =$J$71 -> Tension | E235: 689.877 | F235: 761.43 | G235: =IF(F235="N/A","N/A",MIN(E235,F235)) -> 689.877 | H235: =IF(C235="N/A","N/A",ABS($D$71)) -> 92.69 | I235: =IF(C235="N/A","N/A",MAX(ABS($E$71),ABS($F$71))) -> 78.741 | J235: =IF(G235="N/A","N/A",(G235-H235)/I235) -> 7.584193749 | AB235: =J235 -> 7.584193749
A240: 6: Members Tear Out (Block Shear) | AA240: =MIN(AB254:AB258) -> 10.0548928 | AB240: =MIN(AE245:AE249) -> 4.532042424 | AC240: =IF(SUM(AC245:AC249)=0,"OK","NG") -> OK | AD240: =A240 -> 6: Members Tear Out (Block Shear)
A243: Base Metal Tear out | I243: Shear Stress | K243: Tensile Stress
A244: Location | B244: ID | C244: Member | D244: Member Type | E244: Was Member Spliced at Joint Center? | F244: Was Member Butt End Milled? | G244: Max. Factored Axial Load For Both Plates (kips) | H244: Total Base Metal Thickness For Both Sides (inch) | I244: Ag - Inner Gusset Plate Gross Area For Both Sides (sq in) | J244: An - Inner Gusset Plate Net Area For Both Sides (sq in) | K244: Outer Gusset Plate Gross Area For Both Sides (sq in) | L244: Outer Gusset Plate Net Area For Both Sides (sq in) | M244: Maximum Load Capacity For Block Shear 1 Ø(FyAvg + FuAtn) (kips) | N244: Maximum Load Capacity For Block Shear 2 Ø( FuAvn + FyAtg) (kips) | O244: Meets Block Shear Rupture Resistance Requirement | P244: Block Shear Rupture Resistance C/D Ratio
A245: =$A$91 -> U/L Chord (LT) | B245: =$B$91 -> 2071 | C245: =$C$91 -> U6 U7 | D245: =IF(E245="No","N/A",$J$67) -> Compression | E245: =$K$67 -> Yes | F245: =$L$67 -> Yes | G245: =IF(D245="Compression","N/A",IF(C245="N/A","N/A",IF(OR(E245="No",F245="Yes"),"N/A",ABS(MAX(G67:H67))))) -> N/A | H245: =IF(D245="Compression","N/A",IF(C245="N/A","N/A",IF(OR(E245="No",F245="Yes"),"N/A",K156))) -> N/A | I245: =IF(D245="Compression","N/A",IF(C245="N/A","N/A",IF(OR(E245="No",F245="Yes"),"N/A",H245*LOOKUP($C$48,'Info Tables'!$A$553:$A$592,'Info Tables'!$C$553:$C$592)))) -> N/A | J245: =IF(D245="Compression","N/A",IF(C245="N/A","N/A",IF(OR(E245="No",F245="Yes"),"N/A",H245*LOOKUP($C$48,'Info Tables'!$A$603:$A$642,'Info Tables'!$C$603:$C$642)))) -> N/A | K245: =IF(D245="Compression","N/A",IF(C245="N/A","N/A",IF(OR(E245="No",F245="Yes"),"N/A",H245*LOOKUP($C$48,'Info Tables'!$A$453:$A$492,'Info Tables'!$C$453:$C$492)))) -> N/A | L245: =IF(D245="Compression","N/A",IF(C245="N/A","N/A",IF(OR(E245="No",F245="Yes"),"N/A",H245*LOOKUP($C$48,'Info Tables'!$A$503:$A$542,'Info Tables'!$C$503:$C$542)))) -> N/A | M245: =IF(D245="Compression","N/A",IF(C245="N/A","N/A",IF(OR(E245="No",F245="Yes"),"N/A",$B$208*(($B$206*0.58*I245)+($B$207*L245))))) -> N/A | N245: =IF(D245="Compression","N/A",IF(C245="N/A","N/A",IF(OR(E245="No",F245="Yes"),"N/A",$B$208*(($B$207*0.58*J245)+($B$206*K245))))) -> N/A | O245: =IF(D245="Compression","N/A",IF(OR(C245="N/A",G245=0),"N/A",IF(OR(E245="No",F245="Yes"),"N/A",IF(MIN(M245:N245)>=G245,"OK","NG")))) -> N/A | P245: =IF(D245="Compression","N/A",IF(OR(C245="N/A",G245=0),"N/A",IF(OR(E245="No",F245="Yes"),"N/A",MIN(M245/G245,N245/G245)))) -> N/A | AC245: =IF(OR(AD245="NG",AE245="NG",AF245="NG",AG245="NG",AH245="NG"),1,0) -> 0 | AD245: =O245 -> N/A | AE245: N/A
A246: =$A$92 -> U/L Chord (RT) | B246: =$B$92 -> None | C246: =$C$92 -> N/A | D246: =IF(E246="No","N/A",$J$68) -> N/A | E246: =$K$68 -> N/A | F246: =$L$68 -> N/A | G246: =IF(D246="Compression","N/A",IF(C246="N/A","N/A",IF(OR(E246="No",F246="Yes"),"N/A",ABS(MAX(G68:H68))))) -> N/A | H246: =IF(D246="Compression","N/A",IF(C246="N/A","N/A",IF(OR(E246="No",F246="Yes"),"N/A",K157))) -> N/A | I246: =IF(D246="Compression","N/A",IF(C246="N/A","N/A",IF(OR(E246="No",F246="Yes"),"N/A",H246*LOOKUP($C$48,'Info Tables'!$A$553:$A$592,'Info Tables'!$D$553:$D$592)))) -> N/A | J246: =IF(D246="Compression","N/A",IF(C246="N/A","N/A",IF(OR(E246="No",F246="Yes"),"N/A",H246*LOOKUP($C$48,'Info Tables'!$A$603:$A$642,'Info Tables'!$D$603:$D$642)))) -> N/A | K246: =IF(D246="Compression","N/A",IF(C246="N/A","N/A",IF(OR(E246="No",F246="Yes"),"N/A",H246*LOOKUP($C$48,'Info Tables'!$A$453:$A$492,'Info Tables'!$D$453:$D$492)))) -> N/A | L246: =IF(D246="Compression","N/A",IF(C246="N/A","N/A",IF(OR(E246="No",F246="Yes"),"N/A",H246*LOOKUP($C$48,'Info Tables'!$A$503:$A$542,'Info Tables'!$D$503:$D$542)))) -> N/A | M246: =IF(D246="Compression","N/A",IF(C246="N/A","N/A",IF(OR(E246="No",F246="Yes"),"N/A",$B$208*(($B$206*0.58*I246)+($B$207*L246))))) -> N/A | N246: =IF(D246="Compression","N/A",IF(C246="N/A","N/A",IF(OR(E246="No",F246="Yes"),"N/A",$B$208*(($B$207*0.58*J246)+($B$206*K246))))) -> N/A | O246: =IF(D246="Compression","N/A",IF(OR(C246="N/A",G246=0),"N/A",IF(OR(E246="No",F246="Yes"),"N/A",IF(MIN(M246:N246)>=G246,"OK","NG")))) -> N/A | P246: =IF(D246="Compression","N/A",IF(OR(C246="N/A",G246=0),"N/A",IF(OR(E246="No",F246="Yes"),"N/A",MIN(M246/G246,N246/G246)))) -> N/A | AC246: =IF(OR(AD246="NG",AE246="NG",AF246="NG",AG246="NG",AH246="NG"),1,0) -> 0 | AD246: N/A | AE246: N/A
A247: =$A$93 -> Diagonal (LT) | B247: =$B$93 -> 2074 | C247: =$C$93 -> U7 L6 | D247: =$J$69 -> Tension | E247: =$K$69 -> Yes | F247: =$L$69 -> No | G247: =IF(D247="Compression","N/A",IF(C247="N/A","N/A",IF(OR(E247="No",F247="Yes"),"N/A",ABS(MAX(G69:H69))))) -> 279.227 | H247: =IF(D247="Compression","N/A",IF(C247="N/A","N/A",IF(OR(E247="No",F247="Yes"),"N/A",K158))) -> 1.282 | I247: =IF(D247="Compression","N/A",IF(C247="N/A","N/A",IF(OR(E247="No",F247="Yes"),"N/A",H247*LOOKUP($C$48,'Info Tables'!$A$553:$A$592,'Info Tables'!$E$553:$E$592)))) -> 57.69 | J247: =IF(D247="Compression","N/A",IF(C247="N/A","N/A",IF(OR(E247="No",F247="Yes"),"N/A",H247*LOOKUP($C$48,'Info Tables'!$A$603:$A$642,'Info Tables'!$E$603:$E$642)))) -> 37.178 | K247: =IF(D247="Compression","N/A",IF(C247="N/A","N/A",IF(OR(E247="No",F247="Yes"),"N/A",H247*LOOKUP($C$48,'Info Tables'!$A$453:$A$492,'Info Tables'!$E$453:$E$492)))) -> 8.974 | L247: =IF(D247="Compression","N/A",IF(C247="N/A","N/A",IF(OR(E247="No",F247="Yes"),"N/A",H247*LOOKUP($C$48,'Info Tables'!$A$503:$A$542,'Info Tables'!$E$503:$E$542)))) -> 6.41 | M247: =IF(D247="Compression","N/A",IF(C247="N/A","N/A",IF(OR(E247="No",F247="Yes"),"N/A",$B$208*(($B$206*0.58*I247)+($B$207*L247))))) -> 1265.46861 | N247: =IF(D247="Compression","N/A",IF(C247="N/A","N/A",IF(OR(E247="No",F247="Yes"),"N/A",$B$208*(($B$207*0.58*J247)+($B$206*K247))))) -> 1351.44594 | O247: =IF(D247="Compression","N/A",IF(OR(C247="N/A",G247=0),"N/A",IF(OR(E247="No",F247="Yes"),"N/A",IF(MIN(M247:N247)>=G247,"OK","NG")))) -> OK | P247: =IF(D247="Compression","N/A",IF(OR(C247="N/A",G247=0),"N/A",IF(OR(E247="No",F247="Yes"),"N/A",MIN(M247/G247,N247/G247)))) -> 4.532042424 | AC247: =IF(OR(AD247="NG",AE247="NG",AF247="NG",AG247="NG",AH247="NG"),1,0) -> 0 | AD247: OK | AE247: 4.532042424
A248: =$A$94 -> Diagonal (RT) | B248: =$B$94 -> 2072 | C248: =$C$94 -> U7 L8 | D248: =$J$70 -> Compression | E248: =$K$70 -> Yes | F248: =$L$70 -> Yes | G248: =IF(D248="Compression","N/A",IF(C248="N/A","N/A",IF(OR(E248="No",F248="Yes"),"N/A",ABS(MAX(G70:H70))))) -> N/A | H248: =IF(D248="Compression","N/A",IF(C248="N/A","N/A",IF(OR(E248="No",F248="Yes"),"N/A",K159))) -> N/A | I248: =IF(D248="Compression","N/A",IF(C248="N/A","N/A",IF(OR(E248="No",F248="Yes"),"N/A",H248*LOOKUP($C$48,'Info Tables'!$A$553:$A$592,'Info Tables'!$F$553:$F$592)))) -> N/A | J248: =IF(D248="Compression","N/A",IF(C248="N/A","N/A",IF(OR(E248="No",F248="Yes"),"N/A",H248*LOOKUP($C$48,'Info Tables'!$A$603:$A$642,'Info Tables'!$F$603:$F$642)))) -> N/A | K248: =IF(D248="Compression","N/A",IF(C248="N/A","N/A",IF(OR(E248="No",F248="Yes"),"N/A",H248*LOOKUP($C$48,'Info Tables'!$A$453:$A$492,'Info Tables'!$F$453:$F$492)))) -> N/A | L248: =IF(D248="Compression","N/A",IF(C248="N/A","N/A",IF(OR(E248="No",F248="Yes"),"N/A",H248*LOOKUP($C$48,'Info Tables'!$A$503:$A$542,'Info Tables'!$F$503:$F$542)))) -> N/A | M248: =IF(D248="Compression","N/A",IF(C248="N/A","N/A",IF(OR(E248="No",F248="Yes"),"N/A",$B$208*(($B$206*0.58*I248)+($B$207*L248))))) -> N/A | N248: =IF(D248="Compression","N/A",IF(C248="N/A","N/A",IF(OR(E248="No",F248="Yes"),"N/A",$B$208*(($B$207*0.58*J248)+($B$206*K248))))) -> N/A | O248: =IF(D248="Compression","N/A",IF(OR(C248="N/A",G248=0),"N/A",IF(OR(E248="No",F248="Yes"),"N/A",IF(MIN(M248:N248)>=G248,"OK","NG")))) -> N/A | P248: =IF(D248="Compression","N/A",IF(OR(C248="N/A",G248=0),"N/A",IF(OR(E248="No",F248="Yes"),"N/A",MIN(M248/G248,N248/G248)))) -> N/A | AC248: =IF(OR(AD248="NG",AE248="NG",AF248="NG",AG248="NG",AH248="NG"),1,0) -> 0 | AD248: N/A | AE248: N/A
A249: =$A$95 -> Vertical | B249: =$B$95 -> 2073 | C249: =$C$95 -> U7 L7 | D249: =$J$71 -> Tension | E249: =$K$71 -> Yes | F249: =$L$71 -> No | G249: =IF(D249="Compression","N/A",IF(C249="N/A","N/A",IF(OR(E249="No",F249="Yes"),"N/A",ABS(MAX(G71:H71))))) -> 171.431 | H249: =IF(D249="Compression","N/A",IF(C249="N/A","N/A",IF(OR(E249="No",F249="Yes"),"N/A",K160))) -> 1.282 | I249: =IF(D249="Compression","N/A",IF(C249="N/A","N/A",IF(OR(E249="No",F249="Yes"),"N/A",H249*LOOKUP($C$48,'Info Tables'!$A$553:$A$592,'Info Tables'!$G$553:$G$592)))) -> 42.306 | J249: =IF(D249="Compression","N/A",IF(C249="N/A","N/A",IF(OR(E249="No",F249="Yes"),"N/A",H249*LOOKUP($C$48,'Info Tables'!$A$603:$A$642,'Info Tables'!$G$603:$G$642)))) -> 26.922 | K249: =IF(D249="Compression","N/A",IF(C249="N/A","N/A",IF(OR(E249="No",F249="Yes"),"N/A",H249*LOOKUP($C$48,'Info Tables'!$A$453:$A$492,'Info Tables'!$G$453:$G$492)))) -> 6.41 | L249: =IF(D249="Compression","N/A",IF(C249="N/A","N/A",IF(OR(E249="No",F249="Yes"),"N/A",H249*LOOKUP($C$48,'Info Tables'!$A$503:$A$542,'Info Tables'!$G$503:$G$542)))) -> 3.846 | M249: =IF(D249="Compression","N/A",IF(C249="N/A","N/A",IF(OR(E249="No",F249="Yes"),"N/A",$B$208*(($B$206*0.58*I249)+($B$207*L249))))) -> 884.422314 | N249: =IF(D249="Compression","N/A",IF(C249="N/A","N/A",IF(OR(E249="No",F249="Yes"),"N/A",$B$208*(($B$207*0.58*J249)+($B$206*K249))))) -> 976.15326 | O249: =IF(D249="Compression","N/A",IF(OR(C249="N/A",G249=0),"N/A",IF(OR(E249="No",F249="Yes"),"N/A",IF(MIN(M249:N249)>=G249,"OK","NG")))) -> OK | P249: =IF(D249="Compression","N/A",IF(OR(C249="N/A",G249=0),"N/A",IF(OR(E249="No",F249="Yes"),"N/A",MIN(M249/G249,N249/G249)))) -> 5.159057078 | AC249: =IF(OR(AD249="NG",AE249="NG",AF249="NG",AG249="NG",AH249="NG"),1,0) -> 0 | AD249: OK | AE249: 5.159057078
A250: Note: Base metal thicknesses are conservative, and the corner angels may add more the capacity.
A252: Rating Factor For Tear Out (Block Shear)
A253: Location | B253: ID | C253: Member | D253: Member Type | E253: Block Shear Capacity 1 (FyAvg + FuAtn) For Both Plates (kips) | F253: Block shear Capacity 2 (FuAvn + FyAtg) For Both Plates (kips) | G253: Total Factored Joint Capacity For Both Plates (kips) | H253: Total Joint DL For Both Plates (kips) | I253: Total Joint LL + I For Both Plates (kips) | J253: Rating Factor (C - f1*DL) / (f2*LL+I) | AB253: 7. RF
A254: =$A$91 -> U/L Chord (LT) | B254: =$B$91 -> 2071 | C254: =$C$91 -> U6 U7 | D254: =$J$67 -> Compression | E254: =IF(G245="N/A","N/A",M245) -> N/A | F254: N/A | G254: =IF(F254="N/A","N/A",MIN(E254,F254)) -> N/A | H254: =IF(F254="N/A","N/A",ABS($D$67)) -> N/A | I254: =IF(C254="N/A","N/A",MAX(ABS($E$67),ABS($F$67))) -> 173.953 | J254: =IF(G254="N/A","N/A",(G254-H254)/I254) -> N/A | AB254: =J254 -> N/A
A255: =$A$92 -> U/L Chord (RT) | B255: =$B$92 -> None | C255: =$C$92 -> N/A | D255: =$J$68 -> N/A | E255: N/A | F255: N/A | G255: =IF(F255="N/A","N/A",MIN(E255,F255)) -> N/A | H255: =IF(F255="N/A","N/A",ABS($D$68)) -> N/A | I255: =IF(C255="N/A","N/A",MAX(ABS($E$68),ABS($F$68))) -> N/A | J255: =IF(G255="N/A","N/A",(G255-H255)/I255) -> N/A | AB255: =J255 -> N/A
A256: =$A$93 -> Diagonal (LT) | B256: =$B$93 -> 2074 | C256: =$C$93 -> U7 L6 | D256: =$J$69 -> Tension | E256: 1265.46861 | F256: 1351.44594 | G256: =IF(F256="N/A","N/A",MIN(E256,F256)) -> 1265.46861 | H256: =IF(F256="N/A","N/A",ABS($D$69)) -> 177.71 | I256: =IF(C256="N/A","N/A",MAX(ABS($E$69),ABS($F$69))) -> 101.517 | J256: =IF(G256="N/A","N/A",(G256-H256)/I256) -> 10.71503896 | AB256: =J256 -> 10.71503896
A257: =$A$94 -> Diagonal (RT) | B257: =$B$94 -> 2072 | C257: =$C$94 -> U7 L8 | D257: =$J$70 -> Compression | E257: N/A | F257: N/A | G257: =IF(F257="N/A","N/A",MIN(E257,F257)) -> N/A | H257: =IF(C257="N/A","N/A",ABS($D$70)) -> 421.59 | I257: =IF(C257="N/A","N/A",MAX(ABS($E$70),ABS($F$70))) -> 188.877 | J257: =IF(G257="N/A","N/A",(G257-H257)/I257) -> N/A | AB257: =J257 -> N/A
A258: =$A$95 -> Vertical | B258: =$B$95 -> 2073 | C258: =$C$95 -> U7 L7 | D258: =$J$71 -> Tension | E258: 884.422314 | F258: 976.15326 | G258: =IF(F258="N/A","N/A",MIN(E258,F258)) -> 884.422314 | H258: =IF(C258="N/A","N/A",ABS($D$71)) -> 92.69 | I258: =IF(C258="N/A","N/A",MAX(ABS($E$71),ABS($F$71))) -> 78.741 | J258: =IF(G258="N/A","N/A",(G258-H258)/I258) -> 10.0548928 | AB258: =J258 -> 10.0548928
A263: 7: Gusset Plate Combined Planes Shear Rupture Resistance | AA263: =MIN(AB309:AB312,AB335:AB338) -> 8.356691275 | AB263: =MIN(MIN(AF293:AG296),MIN(AF319:AG322)) -> 3.959800887 | AC263: =IF(SUM(AB293:AB296,AB319:AB322)=0,"N/A",IF(SUM(AC293:AC296,AC319:AC322)=0,"OK",IF(AND(AC297="N/A",AC323="N/A"),"N/A","NG"))) -> OK | AD263: =A263 -> 7: Gusset Plate Combined Planes Shear Rupture Resistance
A264: For Tensile Members Only
A266: =$A$20 -> Gusset Plate Steel Fy | B266: =$B$20/1000 -> 33 | C266: ksi
A267: =$A$21 -> Gusset Plate Steel Fu | B267: =$B$21/1000 -> 60 | C267: ksi
A268: =$A$32 -> Block Shear Load Factor Ø: | B268: =$B$32 -> 0.85
A272: Location | B272: ID | C272: Member | D272: Member Type | E272: Total Horizontal Component Max. Tensile Factored Load DL (kips) | F272: Total Vertical Component Max. Tensile Factored Load DL (kips) | G272: Total Horizontal Component Max. Tensile Load LL+I (kips) | H272: Total Vertical Component Max. Tensile Factored Load LL+I (kips) | I272: Total Horizontal Component Max. Tensile Factored Load DL+LL+I (kips) | J272: Total Vertical Component Max. Tensile Factored Load DL+LL+I (kips)
A273: =$A$93 -> Diagonal (LT) | B273: =$B$93 -> 2074 | C273: =$C$93 -> U7 L6 | D273: =$J$69 -> Tension | E273: =IF(OR(C273="N/A",F81<=0),0,F81) -> 83.84029084 | F273: =IF(OR(C273="N/A",G81<=0),0,G81) -> 156.6896606 | G273: =IF(C273="N/A",0,J81) -> 47.89384281 | H273: =IF(C273="N/A",0,K81) -> 89.50911188 | I273: =IF(C273="N/A",0,N81) -> 131.7341337 | J273: =IF(C273="N/A",0,O81) -> 246.1987725
A274: =$A$94 -> Diagonal (RT) | B274: =$B$94 -> 2072 | C274: =$C$94 -> U7 L8 | D274: =$J$70 -> Compression | E274: =IF(OR(C274="N/A",F82<=0),0,F82) -> 0 | F274: =IF(OR(C274="N/A",G82<=0),0,G82) -> 0 | G274: =IF(C274="N/A",0,J82) -> 0 | H274: =IF(C274="N/A",0,K82) -> 0 | I274: =IF(C274="N/A","0",N82) -> 0 | J274: =IF(C274="N/A","0",O82) -> 0
A275: =$A$95 -> Vertical | B275: =$B$95 -> 2073 | C275: =$C$95 -> U7 L7 | D275: =$J$71 -> Tension | E275: =IF(OR(C275="N/A",F83<=0),0,F83) -> 19.82480954 | F275: =IF(OR(C275="N/A",G83<=0),0,G83) -> 90.54508836 | G275: =IF(C275="N/A",0,J83) -> 16.84135643 | H275: =IF(C275="N/A",0,K83) -> 76.91887801 | I275: =IF(C275="N/A","0",N83) -> 36.66616597 | J275: =IF(C275="N/A","0",O83) -> 167.4639664
A279: Gusset Plate Quadrant | B279: Gross Width for One Gusset Only (inch) | C279: Net Width for One Gusset Only (inch) | D279: Inner & Outer Total Actual Thickness For Whitmore Width (inch) | E279: Gross Area For Both plates (sq. in.) | F279: Net Area For Both Plates (sq. in.) | G279: Side
A280: Diagonal (LT) Horizontal Direction | B280: =(LOOKUP($C$48,'Info Tables'!A725:A764,'Info Tables'!C725:C764)) -> 20.923 | C280: =(LOOKUP($C$48,'Info Tables'!A775:A814,'Info Tables'!C775:C814)) -> 14.923 | D280: =MIN($D$91,$D$93,$D$95)+MIN($F$91,$F$93,$F$95) -> 1 | E280: =IF(B280="None",0,B280*D280) -> 20.923 | F280: =IF(C280="None",0,C280*D280) -> 14.923 | G280: Left
A281: Diagonal (LT) Vertical Direction | B281: =(LOOKUP($C$48,'Info Tables'!A825:A864,'Info Tables'!C825:C864)) -> 32.016 | C281: =(LOOKUP($C$48,'Info Tables'!A875:A914,'Info Tables'!C875:C914)) -> 25.016 | D281: =MIN($D$91,$D$93,$D$95)+MIN($F$91,$F$93,$F$95) -> 1 | E281: =IF(B281="None",0,B281*D281) -> 32.016 | F281: =IF(C281="None",0,C281*D281) -> 25.016
A282: Diag. & Vert. (LT) Horizontal Dir | B282: =IF(AND(LOOKUP($C$48,'Info Tables'!A725:A764,'Info Tables'!C725:C764)="None",LOOKUP($C$48,'Info Tables'!A725:A764,'Info Tables'!E725:E764)="None"),"None",IF(AND(LOOKUP($C$48,'Info Tables'!A725:A764,'Info Tables'!C725:C764)="None",LOOKUP($C$48,'Info Tables'!A725:A764,'Info Tables'!E725:E764)<>"None"),LOOKUP($C$48,'Info Tables'!A725:A764,'Info Tables'!E725:E764),IF(AND(LOOKUP($C$48,'Info Tables'!A725:A764,'Info Tables'!C725:C764)<>"None",LOOKUP($C$48,'Info Tables'!A725:A764,'Info Tables'!E725:E764)="None"),LOOKUP($C$48,'Info Tables'!A725:A764,'Info Tables'!C725:C764),LOOKUP($C$48,'Info Tables'!A725:A764,'Info Tables'!C725:C764)+LOOKUP($C$48,'Info Tables'!A725:A764,'Info Tables'!E725:E764)))) -> 25.923 | C282: =IF(AND(LOOKUP($C$48,'Info Tables'!A775:A814,'Info Tables'!C775:C814)="None",LOOKUP($C$48,'Info Tables'!A775:A814,'Info Tables'!E775:E814)="None"),"None",IF(AND(LOOKUP($C$48,'Info Tables'!A775:A814,'Info Tables'!C775:C814)="None",LOOKUP($C$48,'Info Tables'!A775:A814,'Info Tables'!E775:E814)<>"None"),LOOKUP($C$48,'Info Tables'!A775:A814,'Info Tables'!E775:E814),IF(AND(LOOKUP($C$48,'Info Tables'!A775:A814,'Info Tables'!C775:C814)<>"None",LOOKUP($C$48,'Info Tables'!A775:A814,'Info Tables'!E775:E814)="None"),LOOKUP($C$48,'Info Tables'!A775:A814,'Info Tables'!C775:C814),LOOKUP($C$48,'Info Tables'!A775:A814,'Info Tables'!C775:C814)+LOOKUP($C$48,'Info Tables'!A775:A814,'Info Tables'!E775:E814)))) -> 17.923 | D282: =MIN($D$91,$D$93,$D$95)+MIN($F$91,$F$93,$F$95) -> 1 | E282: =IF(B282="None",0,B282*D282) -> 25.923 | F282: 17.923
A283: Diag. & Vert. (LT) Vertical Dir | B283: =IF(B281="None",0,B281) -> 32.016 | C283: =IF(C281="None",0,C281) -> 25.016 | D283: =MIN($D$91,$D$93,$D$95)+MIN($F$91,$F$93,$F$95) -> 1 | E283: 32.016 | F283: 25.016
A284: Diagonal (RT) Horizontal Direction | B284: =(LOOKUP($C$48,'Info Tables'!A725:A764,'Info Tables'!D725:D764)) -> 0 | C284: =(LOOKUP($C$48,'Info Tables'!A775:A814,'Info Tables'!D775:D814)) -> 0 | D284: =MIN($D$92,D94,D95)+MIN($F$92,F94,F95) -> 1 | E284: 0 | F284: 0 | G284: Right
A285: Diagonal (RT) Vertical Direction | B285: =(LOOKUP($C$48,'Info Tables'!A825:A864,'Info Tables'!D825:D864)) -> 0 | C285: =(LOOKUP($C$48,'Info Tables'!A875:A914,'Info Tables'!D875:D914)) -> 0 | D285: =MIN($D$92,D94,D95)+MIN($F$92,F94,F95) -> 1 | E285: 0 | F285: 0
A286: Diag. & Vert. (RT) Horizontal Dir | B286: =IF(AND(LOOKUP($C$48,'Info Tables'!A725:A764,'Info Tables'!D725:D764)="None",LOOKUP($C$48,'Info Tables'!A725:A764,'Info Tables'!E725:E764)="None"),"None",IF(AND(LOOKUP($C$48,'Info Tables'!A725:A764,'Info Tables'!D725:D764)="None",LOOKUP($C$48,'Info Tables'!A725:A764,'Info Tables'!E725:E764)<>"None"),LOOKUP($C$48,'Info Tables'!A725:A764,'Info Tables'!E725:E764),IF(AND(LOOKUP($C$48,'Info Tables'!A725:A764,'Info Tables'!E725:E764)="None",LOOKUP($C$48,'Info Tables'!A725:A764,'Info Tables'!D725:D764)<>"None"),LOOKUP($C$48,'Info Tables'!A725:A764,'Info Tables'!D725:D764),LOOKUP($C$48,'Info Tables'!A725:A764,'Info Tables'!D725:D764)+LOOKUP($C$48,'Info Tables'!A725:A764,'Info Tables'!E725:E764)))) -> 5 | C286: =IF(AND(LOOKUP($C$48,'Info Tables'!A775:A814,'Info Tables'!D775:D814)="None",LOOKUP($C$48,'Info Tables'!A775:A814,'Info Tables'!E775:E814)="None"),"None",IF(AND(LOOKUP($C$48,'Info Tables'!A775:A814,'Info Tables'!D775:D814)="None",LOOKUP($C$48,'Info Tables'!A775:A814,'Info Tables'!E775:E814)<>"None"),LOOKUP($C$48,'Info Tables'!A775:A814,'Info Tables'!E775:E814),IF(AND(LOOKUP($C$48,'Info Tables'!A775:A814,'Info Tables'!D775:D814)<>"None",LOOKUP($C$48,'Info Tables'!A775:A814,'Info Tables'!E775:E814)="None"),LOOKUP($C$48,'Info Tables'!A775:A814,'Info Tables'!D775:D814),LOOKUP($C$48,'Info Tables'!A775:A814,'Info Tables'!D775:D814)+LOOKUP($C$48,'Info Tables'!A775:A814,'Info Tables'!E775:E814)))) -> 3 | D286: =MIN($D$92,D94,D95)+MIN($F$92,F94,F95) -> 1 | E286: 5 | F286: 3
A287: Diag. & Vert. (RT) Vertical Dir | B287: =IF(B285="None",0,B285) -> 0 | C287: =IF(C285="None",0,C285) -> 0 | D287: =MIN($D$92,D94,D95)+MIN($F$92,F94,F95) -> 1 | E287: 0 | F287: 0
A291: A. Consider Shear Yield & Tension Fracture | C291: Assuming diagonals act alone or are combined with vertical members causing shear and tensile stresses. The loads act upon one quadrant of the gusset.
A292: Combined Members | B292: Combined Horizontal Component Total Max. Tensile Factored Load DL+LL+I (kips) | C292: Combined Vertical Component Total Max. Tensile Factored Load DL+LL+I (kips) | D292: Maximum Horizontal Capacity Based on Shear Yield (kips) | E292: Maximum Horizontal CapacityBased on Tension Fracture (kips) | F292: Total Facotred Horizontal Capacity (kips) | G292: Total Factored Vertical Capacity Based on Shear Yield (kips) | H292: Total Factored Vertical Capacity Based on Tension Fracture (kips) | I292: Total Factored Vertical Capacity (kips) | J292: Meets Horizontal Load Component Requirement | K292: Meets Vertical Load Component Requirement | L292: Gusset Plate Combined Planes Horizontal Shear Yield &Tension Fracture C/D Ratio | M292: Gusset Plate Combined Planes Vertical Shear Yield &Tension Fracture C/D Ratio
... 59 more rows

Sheet Member Loads
A1: Truss analysis member loads output are to be entered in this worksheet. Compression member loads shall be negative and tension loads shall be positive.
A2: 2F1, 3f1, 4F1, & 5C1 are Ohio's legal loads for operating rating. Inventory is the typical current design truck such as HS20-44.
A4: Note1: When loads are exactly equal to zero "0' when shown as "0"; i.e. a number that equals to 0.05 shall be manually entered as "0".
A5: Note2: To add more members, insert lines as needed. Excel will automatically included the new lines.
A6: Assumption: Pick maximum load values for each member from the truss analysis output at the considered truss joint and assume these loads are acting simultaneously.
A10: Dead Load | D10: 2F1 | H10: 3F1 | L10: 4F1 | P10: 5C1 | T10: (HS20-44) | X10: Inventory (HS20-44) | AB10: ODOT Truck Train
A11: Member | B11: Compression/Tension Load (kips) | D11: Member | E11: Compression Load (kips) | F11: Tension Load (kips) | H11: Member | I11: Compression Load (kips) | J11: Tension Load (kips) | L11: Member | M11: Compression Load (kips) | N11: Tension Load (kips) | P11: Member | Q11: Compression Load (kips) | R11: Tension Load (kips) | T11: Member | U11: Compression Load (kips) | V11: Tension Load (kips) | X11: Member | Y11: Compression Load (kips) | Z11: Tension Load (kips) | AB11: Member | AC11: Compression Load (kips) | AD11: Tension Load (kips)
A12: Lower Chord Members | D12: Lower Chord Members | H12: Lower Chord Members | L12: Lower Chord Members | P12: Lower Chord Members | T12: Lower Chord Members | X12: Lower Chord Members | AB12: Lower Chord Members
A13: ='Info Tables'!A119 -> 1001 | B13: =[1]Summary!B13 -> -324.3 | D13: ='Info Tables'!A119 -> 1001 | E13: =[1]Summary!E13 -> -49.76 | F13: =[1]Summary!F13 -> 0 | H13: ='Info Tables'!A119 -> 1001 | I13: =[1]Summary!I13 -> -75.47 | J13: =[1]Summary!J13 -> 0 | L13: ='Info Tables'!A119 -> 1001 | M13: =[1]Summary!M13 -> -87.51 | N13: =[1]Summary!N13 -> 0 | P13: ='Info Tables'!A119 -> 1001 | Q13: =[1]Summary!Q13 -> -115.8 | R13: =[1]Summary!R13 -> 0 | T13: ='Info Tables'!A119 -> 1001 | U13: =[1]Summary!U13 -> -147.63 | V13: =[1]Summary!V13 -> 0 | X13: ='Info Tables'!A119 -> 1001 | Y13: =[1]Summary!Y13 -> -147.63 | Z13: =[1]Summary!Z13 -> 0 | AB13: ='Info Tables'!A119 -> 1001 | AC13: =[1]Summary!AC13 -> -145.29 | AD13: =[1]Summary!AD13 -> 0
A14: ='Info Tables'!A120 -> 1002 | B14: =[1]Summary!B14 -> 210.6 | D14: ='Info Tables'!A120 -> 1002 | E14: =[1]Summary!E14 -> 0 | F14: =[1]Summary!F14 -> 32.32 | H14: ='Info Tables'!A120 -> 1002 | I14: =[1]Summary!I14 -> 0 | J14: =[1]Summary!J14 -> 49.01 | L14: ='Info Tables'!A120 -> 1002 | M14: =[1]Summary!M14 -> 0 | N14: =[1]Summary!N14 -> 56.84 | P14: ='Info Tables'!A120 -> 1002 | Q14: =[1]Summary!Q14 -> 0 | R14: =[1]Summary!R14 -> 75.21 | T14: ='Info Tables'!A120 -> 1002 | U14: =[1]Summary!U14 -> 0 | V14: =[1]Summary!V14 -> 87.09 | X14: ='Info Tables'!A120 -> 1002 | Y14: =[1]Summary!Y14 -> 0 | Z14: =[1]Summary!Z14 -> 87.09 | AB14: ='Info Tables'!A120 -> 1002 | AC14: =[1]Summary!AC14 -> 0 | AD14: =[1]Summary!AD14 -> 94.37
A15: ='Info Tables'!A121 -> 1011 | B15: =[1]Summary!B15 -> 210.6 | D15: ='Info Tables'!A121 -> 1011 | E15: =[1]Summary!E15 -> 0 | F15: =[1]Summary!F15 -> 32.32 | H15: ='Info Tables'!A121 -> 1011 | I15: =[1]Summary!I15 -> 0 | J15: =[1]Summary!J15 -> 49.01 | L15: ='Info Tables'!A121 -> 1011 | M15: =[1]Summary!M15 -> 0 | N15: =[1]Summary!N15 -> 56.84 | P15: ='Info Tables'!A121 -> 1011 | Q15: =[1]Summary!Q15 -> 0 | R15: =[1]Summary!R15 -> 75.21 | T15: ='Info Tables'!A121 -> 1011 | U15: =[1]Summary!U15 -> 0 | V15: =[1]Summary!V15 -> 87.09 | X15: ='Info Tables'!A121 -> 1011 | Y15: =[1]Summary!Y15 -> 0 | Z15: =[1]Summary!Z15 -> 87.09 | AB15: ='Info Tables'!A121 -> 1011 | AC15: =[1]Summary!AC15 -> 0 | AD15: =[1]Summary!AD15 -> 94.37
A16: ='Info Tables'!A122 -> 1012 | B16: =[1]Summary!B16 -> 71.3 | D16: ='Info Tables'!A122 -> 1012 | E16: =[1]Summary!E16 -> 0 | F16: =[1]Summary!F16 -> 42.28 | H16: ='Info Tables'!A122 -> 1012 | I16: =[1]Summary!I16 -> 0 | J16: =[1]Summary!J16 -> 62.45 | L16: ='Info Tables'!A122 -> 1012 | M16: =[1]Summary!M16 -> 0 | N16: =[1]Summary!N16 -> 69.25 | P16: ='Info Tables'!A122 -> 1012 | Q16: =[1]Summary!Q16 -> 0 | R16: =[1]Summary!R16 -> 60.81 | T16: ='Info Tables'!A122 -> 1012 | U16: =[1]Summary!U16 -> 0 | V16: =[1]Summary!V16 -> 79.55 | X16: ='Info Tables'!A122 -> 1012 | Y16: =[1]Summary!Y16 -> 0 | Z16: =[1]Summary!Z16 -> 79.55 | AB16: ='Info Tables'!A122 -> 1012 | AC16: =[1]Summary!AC16 -> 0 | AD16: =[1]Summary!AD16 -> 60.57
A17: ='Info Tables'!A123 -> 1013 | B17: =[1]Summary!B17 -> 210.6 | D17: ='Info Tables'!A123 -> 1013 | E17: =[1]Summary!E17 -> 0 | F17: =[1]Summary!F17 -> 32.32 | H17: ='Info Tables'!A123 -> 1013 | I17: =[1]Summary!I17 -> 0 | J17: =[1]Summary!J17 -> 49.01 | L17: ='Info Tables'!A123 -> 1013 | M17: =[1]Summary!M17 -> 0 | N17: =[1]Summary!N17 -> 56.84 | P17: ='Info Tables'!A123 -> 1013 | Q17: =[1]Summary!Q17 -> 0 | R17: =[1]Summary!R17 -> 75.21 | T17: ='Info Tables'!A123 -> 1013 | U17: =[1]Summary!U17 -> 0 | V17: =[1]Summary!V17 -> 87.09 | X17: ='Info Tables'!A123 -> 1013 | Y17: =[1]Summary!Y17 -> 0 | Z17: =[1]Summary!Z17 -> 87.09 | AB17: ='Info Tables'!A123 -> 1013 | AC17: =[1]Summary!AC17 -> 0 | AD17: =[1]Summary!AD17 -> 94.37
A18: ='Info Tables'!A124 -> 1021 | B18: =[1]Summary!B18 -> 210.6 | D18: ='Info Tables'!A124 -> 1021 | E18: =[1]Summary!E18 -> 0 | F18: =[1]Summary!F18 -> 32.32 | H18: ='Info Tables'!A124 -> 1021 | I18: =[1]Summary!I18 -> 0 | J18: =[1]Summary!J18 -> 49.01 | L18: ='Info Tables'!A124 -> 1021 | M18: =[1]Summary!M18 -> 0 | N18: =[1]Summary!N18 -> 56.84 | P18: ='Info Tables'!A124 -> 1021 | Q18: =[1]Summary!Q18 -> 0 | R18: =[1]Summary!R18 -> 75.21 | T18: ='Info Tables'!A124 -> 1021 | U18: =[1]Summary!U18 -> 0 | V18: =[1]Summary!V18 -> 87.09 | X18: ='Info Tables'!A124 -> 1021 | Y18: =[1]Summary!Y18 -> 0 | Z18: =[1]Summary!Z18 -> 87.09 | AB18: ='Info Tables'!A124 -> 1021 | AC18: =[1]Summary!AC18 -> 0 | AD18: =[1]Summary!AD18 -> 94.37
A19: ='Info Tables'!A125 -> 1022 | B19: =[1]Summary!B19 -> 136.7 | D19: ='Info Tables'!A125 -> 1022 | E19: =[1]Summary!E19 -> -13.65 | F19: =[1]Summary!F19 -> 29.53 | H19: ='Info Tables'!A125 -> 1022 | I19: =[1]Summary!I19 -> -19.1 | J19: =[1]Summary!J19 -> 44.69 | L19: ='Info Tables'!A125 -> 1022 | M19: =[1]Summary!M19 -> -20.06 | N19: =[1]Summary!N19 -> 51.71 | P19: ='Info Tables'!A125 -> 1022 | Q19: =[1]Summary!Q19 -> -16.47 | R19: =[1]Summary!R19 -> 67 | T19: ='Info Tables'!A125 -> 1022 | U19: =[1]Summary!U19 -> -23.93 | V19: =[1]Summary!V19 -> 77.7 | X19: ='Info Tables'!A125 -> 1022 | Y19: =[1]Summary!Y19 -> -23.93 | Z19: =[1]Summary!Z19 -> 77.7 | AB19: ='Info Tables'!A125 -> 1022 | AC19: =[1]Summary!AC19 -> -16.31 | AD19: =[1]Summary!AD19 -> 78.09
A20: ='Info Tables'!A126 -> 1023 | B20: =[1]Summary!B20 -> -43 | D20: ='Info Tables'!A126 -> 1023 | E20: =[1]Summary!E20 -> -18.93 | F20: =[1]Summary!F20 -> 21.91 | H20: ='Info Tables'!A126 -> 1023 | I20: =[1]Summary!I20 -> -28.58 | J20: =[1]Summary!J20 -> 32.23 | L20: ='Info Tables'!A126 -> 1023 | M20: =[1]Summary!M20 -> -32.98 | N20: =[1]Summary!N20 -> 36.08 | P20: ='Info Tables'!A126 -> 1023 | Q20: =[1]Summary!Q20 -> -41.42 | R20: =[1]Summary!R20 -> 32.16 | T20: ='Info Tables'!A126 -> 1023 | U20: =[1]Summary!U20 -> -44.05 | V20: =[1]Summary!V20 -> 45.49 | X20: ='Info Tables'!A126 -> 1023 | Y20: =[1]Summary!Y20 -> -44.05 | Z20: =[1]Summary!Z20 -> 45.49 | AB20: ='Info Tables'!A126 -> 1023 | AC20: =[1]Summary!AC20 -> -44.56 | AD20: =[1]Summary!AD20 -> 32.34
A21: ='Info Tables'!A127 -> 1024 | B21: =[1]Summary!B21 -> 299.4 | D21: ='Info Tables'!A127 -> 1024 | E21: =[1]Summary!E21 -> 0 | F21: =[1]Summary!F21 -> 46.5 | H21: ='Info Tables'!A127 -> 1024 | I21: =[1]Summary!I21 -> 0 | J21: =[1]Summary!J21 -> 70.39 | L21: ='Info Tables'!A127 -> 1024 | M21: =[1]Summary!M21 -> 0 | N21: =[1]Summary!N21 -> 81.44 | P21: ='Info Tables'!A127 -> 1024 | Q21: =[1]Summary!Q21 -> 0 | R21: =[1]Summary!R21 -> 107.51 | T21: ='Info Tables'!A127 -> 1024 | U21: =[1]Summary!U21 -> 0 | V21: =[1]Summary!V21 -> 125.72 | X21: ='Info Tables'!A127 -> 1024 | Y21: =[1]Summary!Y21 -> 0 | Z21: =[1]Summary!Z21 -> 125.72 | AB21: ='Info Tables'!A127 -> 1024 | AC21: =[1]Summary!AC21 -> 0 | AD21: =[1]Summary!AD21 -> 130.71
A22: ='Info Tables'!A128 -> 1031 | B22: =[1]Summary!B22 -> 299.4 | D22: ='Info Tables'!A128 -> 1031 | E22: =[1]Summary!E22 -> 0 | F22: =[1]Summary!F22 -> 46.5 | H22: ='Info Tables'!A128 -> 1031 | I22: =[1]Summary!I22 -> 0 | J22: =[1]Summary!J22 -> 70.39 | L22: ='Info Tables'!A128 -> 1031 | M22: =[1]Summary!M22 -> 0 | N22: =[1]Summary!N22 -> 81.44 | P22: ='Info Tables'!A128 -> 1031 | Q22: =[1]Summary!Q22 -> 0 | R22: =[1]Summary!R22 -> 107.51 | T22: ='Info Tables'!A128 -> 1031 | U22: =[1]Summary!U22 -> 0 | V22: =[1]Summary!V22 -> 125.72 | X22: ='Info Tables'!A128 -> 1031 | Y22: =[1]Summary!Y22 -> 0 | Z22: =[1]Summary!Z22 -> 125.72 | AB22: ='Info Tables'!A128 -> 1031 | AC22: =[1]Summary!AC22 -> 0 | AD22: =[1]Summary!AD22 -> 130.71
A23: ='Info Tables'!A129 -> 1032 | B23: =[1]Summary!B23 -> 95 | D23: ='Info Tables'!A129 -> 1032 | E23: =[1]Summary!E23 -> -17.4 | F23: =[1]Summary!F23 -> 28.91 | H23: ='Info Tables'!A129 -> 1032 | I23: =[1]Summary!I23 -> -25.6 | J23: =[1]Summary!J23 -> 43.64 | L23: ='Info Tables'!A129 -> 1032 | M23: =[1]Summary!M23 -> -28.66 | N23: =[1]Summary!N23 -> 50.34 | P23: ='Info Tables'!A129 -> 1032 | Q23: =[1]Summary!Q23 -> -25.11 | R23: =[1]Summary!R23 -> 63.23 | T23: ='Info Tables'!A129 -> 1032 | U23: =[1]Summary!U23 -> -36.13 | V23: =[1]Summary!V23 -> 68.47 | X23: ='Info Tables'!A129 -> 1032 | Y23: =[1]Summary!Y23 -> -36.13 | Z23: =[1]Summary!Z23 -> 68.47 | AB23: ='Info Tables'!A129 -> 1032 | AC23: =[1]Summary!AC23 -> -25.18 | AD23: =[1]Summary!AD23 -> 68.03
A24: ='Info Tables'!A130 -> 1033 | B24: =[1]Summary!B24 -> -13.7 | D24: ='Info Tables'!A130 -> 1033 | E24: =[1]Summary!E24 -> -19 | F24: =[1]Summary!F24 -> 21.1 | H24: ='Info Tables'!A130 -> 1033 | I24: =[1]Summary!I24 -> -28.56 | J24: =[1]Summary!J24 -> 31.5 | L24: ='Info Tables'!A130 -> 1033 | M24: =[1]Summary!M24 -> -32.79 | N24: =[1]Summary!N24 -> 35.88 | P24: ='Info Tables'!A130 -> 1033 | Q24: =[1]Summary!Q24 -> -39.19 | R24: =[1]Summary!R24 -> 39.08 | T24: ='Info Tables'!A130 -> 1033 | U24: =[1]Summary!U24 -> -42.63 | V24: =[1]Summary!V24 -> 46.19 | X24: ='Info Tables'!A130 -> 1033 | Y24: =[1]Summary!Y24 -> -42.63 | Z24: =[1]Summary!Z24 -> 46.19 | AB24: ='Info Tables'!A130 -> 1033 | AC24: =[1]Summary!AC24 -> -39.81 | AD24: =[1]Summary!AD24 -> 38.73
A25: ='Info Tables'!A131 -> 1034 | B25: =[1]Summary!B25 -> 0 | D25: ='Info Tables'!A131 -> 1034 | E25: =[1]Summary!E25 -> 0 | F25: =[1]Summary!F25 -> 20.49 | H25: ='Info Tables'!A131 -> 1034 | I25: =[1]Summary!I25 -> 0 | J25: =[1]Summary!J25 -> 30.59 | L25: ='Info Tables'!A131 -> 1034 | M25: =[1]Summary!M25 -> 0 | N25: =[1]Summary!N25 -> 34.84 | P25: ='Info Tables'!A131 -> 1034 | Q25: =[1]Summary!Q25 -> 0 | R25: =[1]Summary!R25 -> 37.95 | T25: ='Info Tables'!A131 -> 1034 | U25: =[1]Summary!U25 -> 0 | V25: =[1]Summary!V25 -> 44.86 | X25: ='Info Tables'!A131 -> 1034 | Y25: =[1]Summary!Y25 -> 0 | Z25: =[1]Summary!Z25 -> 44.86 | AB25: ='Info Tables'!A131 -> 1034 | AC25: =[1]Summary!AC25 -> 0 | AD25: =[1]Summary!AD25 -> 37.61
A26: ='Info Tables'!A132 -> 1035 | B26: =[1]Summary!B26 -> 354.9 | D26: ='Info Tables'!A132 -> 1035 | E26: =[1]Summary!E26 -> 0 | F26: =[1]Summary!F26 -> 54.96 | H26: ='Info Tables'!A132 -> 1035 | I26: =[1]Summary!I26 -> 0 | J26: =[1]Summary!J26 -> 83 | L26: ='Info Tables'!A132 -> 1035 | M26: =[1]Summary!M26 -> 0 | N26: =[1]Summary!N26 -> 96.76 | P26: ='Info Tables'!A132 -> 1035 | Q26: =[1]Summary!Q26 -> 0 | R26: =[1]Summary!R26 -> 126.24 | T26: ='Info Tables'!A132 -> 1035 | U26: =[1]Summary!U26 -> 0 | V26: =[1]Summary!V26 -> 149.29 | X26: ='Info Tables'!A132 -> 1035 | Y26: =[1]Summary!Y26 -> 0 | Z26: =[1]Summary!Z26 -> 149.29 | AB26: ='Info Tables'!A132 -> 1035 | AC26: =[1]Summary!AC26 -> 0 | AD26: =[1]Summary!AD26 -> 154.41
A27: ='Info Tables'!A133 -> 1041 | B27: =[1]Summary!B27 -> 354.9 | D27: ='Info Tables'!A133 -> 1041 | E27: =[1]Summary!E27 -> 0 | F27: =[1]Summary!F27 -> 54.96 | H27: ='Info Tables'!A133 -> 1041 | I27: =[1]Summary!I27 -> 0 | J27: =[1]Summary!J27 -> 83 | L27: ='Info Tables'!A133 -> 1041 | M27: =[1]Summary!M27 -> 0 | N27: =[1]Summary!N27 -> 96.76 | P27: ='Info Tables'!A133 -> 1041 | Q27: =[1]Summary!Q27 -> 0 | R27: =[1]Summary!R27 -> 126.24 | T27: ='Info Tables'!A133 -> 1041 | U27: =[1]Summary!U27 -> 0 | V27: =[1]Summary!V27 -> 149.29 | X27: ='Info Tables'!A133 -> 1041 | Y27: =[1]Summary!Y27 -> 0 | Z27: =[1]Summary!Z27 -> 149.29 | AB27: ='Info Tables'!A133 -> 1041 | AC27: =[1]Summary!AC27 -> 0 | AD27: =[1]Summary!AD27 -> 154.41
A28: ='Info Tables'!A134 -> 1042 | B28: =[1]Summary!B28 -> 41.1 | D28: ='Info Tables'!A134 -> 1042 | E28: =[1]Summary!E28 -> 0 | F28: =[1]Summary!F28 -> 27.02 | H28: ='Info Tables'!A134 -> 1042 | I28: =[1]Summary!I28 -> 0 | J28: =[1]Summary!J28 -> 40.62 | L28: ='Info Tables'!A134 -> 1042 | M28: =[1]Summary!M28 -> 0 | N28: =[1]Summary!N28 -> 46.65 | P28: ='Info Tables'!A134 -> 1042 | Q28: =[1]Summary!Q28 -> 0 | R28: =[1]Summary!R28 -> 55.75 | T28: ='Info Tables'!A134 -> 1042 | U28: =[1]Summary!U28 -> 0 | V28: =[1]Summary!V28 -> 60.64 | X28: ='Info Tables'!A134 -> 1042 | Y28: =[1]Summary!Y28 -> 0 | Z28: =[1]Summary!Z28 -> 60.64 | AB28: ='Info Tables'!A134 -> 1042 | AC28: =[1]Summary!AC28 -> 0 | AD28: =[1]Summary!AD28 -> 56.63
A29: ='Info Tables'!A135 -> 1043 | B29: =[1]Summary!B29 -> -5.7 | D29: ='Info Tables'!A135 -> 1043 | E29: =[1]Summary!E29 -> -16.91 | F29: =[1]Summary!F29 -> 22.31 | H29: ='Info Tables'!A135 -> 1043 | I29: =[1]Summary!I29 -> -25.25 | J29: =[1]Summary!J29 -> 33.54 | L29: ='Info Tables'!A135 -> 1043 | M29: =[1]Summary!M29 -> -28.76 | N29: =[1]Summary!N29 -> 38.52 | P29: ='Info Tables'!A135 -> 1043 | Q29: =[1]Summary!Q29 -> -31.33 | R29: =[1]Summary!R29 -> 46.03 | T29: ='Info Tables'!A135 -> 1043 | U29: =[1]Summary!U29 -> -37.03 | V29: =[1]Summary!V29 -> 50.06 | X29: ='Info Tables'!A135 -> 1043 | Y29: =[1]Summary!Y29 -> -37.03 | Z29: =[1]Summary!Z29 -> 50.06 | AB29: ='Info Tables'!A135 -> 1043 | AC29: =[1]Summary!AC29 -> -31.33 | AD29: =[1]Summary!AD29 -> 46.03
A30: ='Info Tables'!A136 -> 1044 | B30: =[1]Summary!B30 -> 41.1 | D30: ='Info Tables'!A136 -> 1044 | E30: =[1]Summary!E30 -> 0 | F30: =[1]Summary!F30 -> 27.02 | H30: ='Info Tables'!A136 -> 1044 | I30: =[1]Summary!I30 -> 0 | J30: =[1]Summary!J30 -> 40.63 | L30: ='Info Tables'!A136 -> 1044 | M30: =[1]Summary!M30 -> 0 | N30: =[1]Summary!N30 -> 46.65 | P30: ='Info Tables'!A136 -> 1044 | Q30: =[1]Summary!Q30 -> 0 | R30: =[1]Summary!R30 -> 55.75 | T30: ='Info Tables'!A136 -> 1044 | U30: =[1]Summary!U30 -> 0 | V30: =[1]Summary!V30 -> 60.64 | X30: ='Info Tables'!A136 -> 1044 | Y30: =[1]Summary!Y30 -> 0 | Z30: =[1]Summary!Z30 -> 60.64 | AB30: ='Info Tables'!A136 -> 1044 | AC30: =[1]Summary!AC30 -> 0 | AD30: =[1]Summary!AD30 -> 56.63
A31: ='Info Tables'!A137 -> 1045 | B31: =[1]Summary!B31 -> 354.9 | D31: ='Info Tables'!A137 -> 1045 | E31: =[1]Summary!E31 -> 0 | F31: =[1]Summary!F31 -> 54.96 | H31: ='Info Tables'!A137 -> 1045 | I31: =[1]Summary!I31 -> 0 | J31: =[1]Summary!J31 -> 83 | L31: ='Info Tables'!A137 -> 1045 | M31: =[1]Summary!M31 -> 0 | N31: =[1]Summary!N31 -> 96.76 | P31: ='Info Tables'!A137 -> 1045 | Q31: =[1]Summary!Q31 -> 0 | R31: =[1]Summary!R31 -> 126.24 | T31: ='Info Tables'!A137 -> 1045 | U31: =[1]Summary!U31 -> 0 | V31: =[1]Summary!V31 -> 149.29 | X31: ='Info Tables'!A137 -> 1045 | Y31: =[1]Summary!Y31 -> 0 | Z31: =[1]Summary!Z31 -> 149.29 | AB31: ='Info Tables'!A137 -> 1045 | AC31: =[1]Summary!AC31 -> 0 | AD31: =[1]Summary!AD31 -> 154.41
A32: ='Info Tables'!A138 -> 1051 | B32: =[1]Summary!B32 -> 354.9 | D32: ='Info Tables'!A138 -> 1051 | E32: =[1]Summary!E32 -> 0 | F32: =[1]Summary!F32 -> 54.96 | H32: ='Info Tables'!A138 -> 1051 | I32: =[1]Summary!I32 -> 0 | J32: =[1]Summary!J32 -> 83 | L32: ='Info Tables'!A138 -> 1051 | M32: =[1]Summary!M32 -> 0 | N32: =[1]Summary!N32 -> 96.76 | P32: ='Info Tables'!A138 -> 1051 | Q32: =[1]Summary!Q32 -> 0 | R32: =[1]Summary!R32 -> 126.24 | T32: ='Info Tables'!A138 -> 1051 | U32: =[1]Summary!U32 -> 0 | V32: =[1]Summary!V32 -> 149.29 | X32: ='Info Tables'!A138 -> 1051 | Y32: =[1]Summary!Y32 -> 0 | Z32: =[1]Summary!Z32 -> 149.29 | AB32: ='Info Tables'!A138 -> 1051 | AC32: =[1]Summary!AC32 -> 0 | AD32: =[1]Summary!AD32 -> 154.41
A33: ='Info Tables'!A139 -> 1052 | B33: =[1]Summary!B33 -> 0 | D33: ='Info Tables'!A139 -> 1052 | E33: =[1]Summary!E33 -> 0 | F33: =[1]Summary!F33 -> 20.49 | H33: ='Info Tables'!A139 -> 1052 | I33: =[1]Summary!I33 -> 0 | J33: =[1]Summary!J33 -> 30.59 | L33: ='Info Tables'!A139 -> 1052 | M33: =[1]Summary!M33 -> 0 | N33: =[1]Summary!N33 -> 34.84 | P33: ='Info Tables'!A139 -> 1052 | Q33: =[1]Summary!Q33 -> 0 | R33: =[1]Summary!R33 -> 37.95 | T33: ='Info Tables'!A139 -> 1052 | U33: =[1]Summary!U33 -> 0 | V33: =[1]Summary!V33 -> 44.86 | X33: ='Info Tables'!A139 -> 1052 | Y33: =[1]Summary!Y33 -> 0 | Z33: =[1]Summary!Z33 -> 44.86 | AB33: ='Info Tables'!A139 -> 1052 | AC33: =[1]Summary!AC33 -> 0 | AD33: =[1]Summary!AD33 -> 37.61
A34: ='Info Tables'!A140 -> 1053 | B34: =[1]Summary!B34 -> -13.7 | D34: ='Info Tables'!A140 -> 1053 | E34: =[1]Summary!E34 -> -19 | F34: =[1]Summary!F34 -> 21.1 | H34: ='Info Tables'!A140 -> 1053 | I34: =[1]Summary!I34 -> -28.56 | J34: =[1]Summary!J34 -> 31.5 | L34: ='Info Tables'!A140 -> 1053 | M34: =[1]Summary!M34 -> -32.79 | N34: =[1]Summary!N34 -> 35.88 | P34: ='Info Tables'!A140 -> 1053 | Q34: =[1]Summary!Q34 -> -39.19 | R34: =[1]Summary!R34 -> 39.08 | T34: ='Info Tables'!A140 -> 1053 | U34: =[1]Summary!U34 -> -42.63 | V34: =[1]Summary!V34 -> 46.19 | X34: ='Info Tables'!A140 -> 1053 | Y34: =[1]Summary!Y34 -> -42.63 | Z34: =[1]Summary!Z34 -> 46.19 | AB34: ='Info Tables'!A140 -> 1053 | AC34: =[1]Summary!AC34 -> -39.81 | AD34: =[1]Summary!AD34 -> 38.73
A35: ='Info Tables'!A141 -> 1054 | B35: =[1]Summary!B35 -> 95 | D35: ='Info Tables'!A141 -> 1054 | E35: =[1]Summary!E35 -> -17.4 | F35: =[1]Summary!F35 -> 28.91 | H35: ='Info Tables'!A141 -> 1054 | I35: =[1]Summary!I35 -> -25.6 | J35: =[1]Summary!J35 -> 43.64 | L35: ='Info Tables'!A141 -> 1054 | M35: =[1]Summary!M35 -> -28.66 | N35: =[1]Summary!N35 -> 50.34 | P35: ='Info Tables'!A141 -> 1054 | Q35: =[1]Summary!Q35 -> -25.11 | R35: =[1]Summary!R35 -> 63.23 | T35: ='Info Tables'!A141 -> 1054 | U35: =[1]Summary!U35 -> -36.13 | V35: =[1]Summary!V35 -> 68.47 | X35: ='Info Tables'!A141 -> 1054 | Y35: =[1]Summary!Y35 -> -36.13 | Z35: =[1]Summary!Z35 -> 68.47 | AB35: ='Info Tables'!A141 -> 1054 | AC35: =[1]Summary!AC35 -> -25.18 | AD35: =[1]Summary!AD35 -> 68.03
A36: ='Info Tables'!A142 -> 1055 | B36: =[1]Summary!B36 -> 299.4 | D36: ='Info Tables'!A142 -> 1055 | E36: =[1]Summary!E36 -> 0 | F36: =[1]Summary!F36 -> 46.5 | H36: ='Info Tables'!A142 -> 1055 | I36: =[1]Summary!I36 -> 0 | J36: =[1]Summary!J36 -> 70.39 | L36: ='Info Tables'!A142 -> 1055 | M36: =[1]Summary!M36 -> 0 | N36: =[1]Summary!N36 -> 81.44 | P36: ='Info Tables'!A142 -> 1055 | Q36: =[1]Summary!Q36 -> 0 | R36: =[1]Summary!R36 -> 107.51 | T36: ='Info Tables'!A142 -> 1055 | U36: =[1]Summary!U36 -> 0 | V36: =[1]Summary!V36 -> 125.72 | X36: ='Info Tables'!A142 -> 1055 | Y36: =[1]Summary!Y36 -> 0 | Z36: =[1]Summary!Z36 -> 125.72 | AB36: ='Info Tables'!A142 -> 1055 | AC36: =[1]Summary!AC36 -> 0 | AD36: =[1]Summary!AD36 -> 130.71
A37: ='Info Tables'!A143 -> 1061 | B37: =[1]Summary!B37 -> 299.4 | D37: ='Info Tables'!A143 -> 1061 | E37: =[1]Summary!E37 -> 0 | F37: =[1]Summary!F37 -> 46.5 | H37: ='Info Tables'!A143 -> 1061 | I37: =[1]Summary!I37 -> 0 | J37: =[1]Summary!J37 -> 70.39 | L37: ='Info Tables'!A143 -> 1061 | M37: =[1]Summary!M37 -> 0 | N37: =[1]Summary!N37 -> 81.44 | P37: ='Info Tables'!A143 -> 1061 | Q37: =[1]Summary!Q37 -> 0 | R37: =[1]Summary!R37 -> 107.51 | T37: ='Info Tables'!A143 -> 1061 | U37: =[1]Summary!U37 -> 0 | V37: =[1]Summary!V37 -> 125.72 | X37: ='Info Tables'!A143 -> 1061 | Y37: =[1]Summary!Y37 -> 0 | Z37: =[1]Summary!Z37 -> 125.72 | AB37: ='Info Tables'!A143 -> 1061 | AC37: =[1]Summary!AC37 -> 0 | AD37: =[1]Summary!AD37 -> 130.71
A38: ='Info Tables'!A144 -> 1062 | B38: =[1]Summary!B38 -> -43 | D38: ='Info Tables'!A144 -> 1062 | E38: =[1]Summary!E38 -> -18.93 | F38: =[1]Summary!F38 -> 21.91 | H38: ='Info Tables'!A144 -> 1062 | I38: =[1]Summary!I38 -> -28.58 | J38: =[1]Summary!J38 -> 32.23 | L38: ='Info Tables'!A144 -> 1062 | M38: =[1]Summary!M38 -> -32.98 | N38: =[1]Summary!N38 -> 36.08 | P38: ='Info Tables'!A144 -> 1062 | Q38: =[1]Summary!Q38 -> -41.42 | R38: =[1]Summary!R38 -> 32.16 | T38: ='Info Tables'!A144 -> 1062 | U38: =[1]Summary!U38 -> -44.05 | V38: =[1]Summary!V38 -> 45.49 | X38: ='Info Tables'!A144 -> 1062 | Y38: =[1]Summary!Y38 -> -47.88 | Z38: =[1]Summary!Z38 -> 45.49 | AB38: ='Info Tables'!A144 -> 1062 | AC38: =[1]Summary!AC38 -> -44.56 | AD38: =[1]Summary!AD38 -> 32.34
A39: ='Info Tables'!A145 -> 1063 | B39: =[1]Summary!B39 -> 136.7 | D39: ='Info Tables'!A145 -> 1063 | E39: =[1]Summary!E39 -> -13.65 | F39: =[1]Summary!F39 -> 29.53 | H39: ='Info Tables'!A145 -> 1063 | I39: =[1]Summary!I39 -> -19.1 | J39: =[1]Summary!J39 -> 44.69 | L39: ='Info Tables'!A145 -> 1063 | M39: =[1]Summary!M39 -> -20.05 | N39: =[1]Summary!N39 -> 51.71 | P39: ='Info Tables'!A145 -> 1063 | Q39: =[1]Summary!Q39 -> -16.47 | R39: =[1]Summary!R39 -> 67 | T39: ='Info Tables'!A145 -> 1063 | U39: =[1]Summary!U39 -> -23.93 | V39: =[1]Summary!V39 -> 77.7 | X39: ='Info Tables'!A145 -> 1063 | Y39: =[1]Summary!Y39 -> -23.93 | Z39: =[1]Summary!Z39 -> 77.7 | AB39: ='Info Tables'!A145 -> 1063 | AC39: =[1]Summary!AC39 -> -16.31 | AD39: =[1]Summary!AD39 -> 78.09
A40: ='Info Tables'!A146 -> 1064 | B40: =[1]Summary!B40 -> 210.6 | D40: ='Info Tables'!A146 -> 1064 | E40: =[1]Summary!E40 -> 0 | F40: =[1]Summary!F40 -> 32.32 | H40: ='Info Tables'!A146 -> 1064 | I40: =[1]Summary!I40 -> 0 | J40: =[1]Summary!J40 -> 49.01 | L40: ='Info Tables'!A146 -> 1064 | M40: =[1]Summary!M40 -> 0 | N40: =[1]Summary!N40 -> 46.84 | P40: ='Info Tables'!A146 -> 1064 | Q40: =[1]Summary!Q40 -> 0 | R40: =[1]Summary!R40 -> 75.21 | T40: ='Info Tables'!A146 -> 1064 | U40: =[1]Summary!U40 -> 0 | V40: =[1]Summary!V40 -> 87.09 | X40: ='Info Tables'!A146 -> 1064 | Y40: =[1]Summary!Y40 -> 0 | Z40: =[1]Summary!Z40 -> 87.09 | AB40: ='Info Tables'!A146 -> 1064 | AC40: =[1]Summary!AC40 -> 0 | AD40: =[1]Summary!AD40 -> 94.37
A41: ='Info Tables'!A147 -> 1071 | B41: =[1]Summary!B41 -> 210.6 | D41: ='Info Tables'!A147 -> 1071 | E41: =[1]Summary!E41 -> 0 | F41: =[1]Summary!F41 -> 32.32 | H41: ='Info Tables'!A147 -> 1071 | I41: =[1]Summary!I41 -> 0 | J41: =[1]Summary!J41 -> 49.01 | L41: ='Info Tables'!A147 -> 1071 | M41: =[1]Summary!M41 -> 0 | N41: =[1]Summary!N41 -> 46.84 | P41: ='Info Tables'!A147 -> 1071 | Q41: =[1]Summary!Q41 -> 0 | R41: =[1]Summary!R41 -> 75.21 | T41: ='Info Tables'!A147 -> 1071 | U41: =[1]Summary!U41 -> 0 | V41: =[1]Summary!V41 -> 87.09 | X41: ='Info Tables'!A147 -> 1071 | Y41: =[1]Summary!Y41 -> 0 | Z41: =[1]Summary!Z41 -> 87.09 | AB41: ='Info Tables'!A147 -> 1071 | AC41: =[1]Summary!AC41 -> 0 | AD41: =[1]Summary!AD41 -> 94.37
A42: ='Info Tables'!A148 -> 1072 | B42: =[1]Summary!B42 -> 71.3 | D42: ='Info Tables'!A148 -> 1072 | E42: =[1]Summary!E42 -> 0 | F42: =[1]Summary!F42 -> 42.28 | H42: ='Info Tables'!A148 -> 1072 | I42: =[1]Summary!I42 -> 0 | J42: =[1]Summary!J42 -> 62.45 | L42: ='Info Tables'!A148 -> 1072 | M42: =[1]Summary!M42 -> 0 | N42: =[1]Summary!N42 -> 69.25 | P42: ='Info Tables'!A148 -> 1072 | Q42: =[1]Summary!Q42 -> 0 | R42: =[1]Summary!R42 -> 60.81 | T42: ='Info Tables'!A148 -> 1072 | U42: =[1]Summary!U42 -> 0 | V42: =[1]Summary!V42 -> 79.55 | X42: ='Info Tables'!A148 -> 1072 | Y42: =[1]Summary!Y42 -> 0 | Z42: =[1]Summary!Z42 -> 79.55 | AB42: ='Info Tables'!A148 -> 1072 | AC42: =[1]Summary!AC42 -> 0 | AD42: =[1]Summary!AD42 -> 60.57
A43: ='Info Tables'!A149 -> 1073 | B43: =[1]Summary!B43 -> 210.6 | D43: ='Info Tables'!A149 -> 1073 | E43: =[1]Summary!E43 -> 0 | F43: =[1]Summary!F43 -> 32.32 | H43: ='Info Tables'!A149 -> 1073 | I43: =[1]Summary!I43 -> 0 | J43: =[1]Summary!J43 -> 49.01 | L43: ='Info Tables'!A149 -> 1073 | M43: =[1]Summary!M43 -> 0 | N43: =[1]Summary!N43 -> 56.84 | P43: ='Info Tables'!A149 -> 1073 | Q43: =[1]Summary!Q43 -> 0 | R43: =[1]Summary!R43 -> 75.21 | T43: ='Info Tables'!A149 -> 1073 | U43: =[1]Summary!U43 -> 0 | V43: =[1]Summary!V43 -> 87.09 | X43: ='Info Tables'!A149 -> 1073 | Y43: =[1]Summary!Y43 -> 0 | Z43: =[1]Summary!Z43 -> 87.09 | AB43: ='Info Tables'!A149 -> 1073 | AC43: =[1]Summary!AC43 -> 0 | AD43: =[1]Summary!AD43 -> 94.37
A44: ='Info Tables'!A150 -> 1081 | B44: =[1]Summary!B44 -> 210.6 | D44: ='Info Tables'!A150 -> 1081 | E44: =[1]Summary!E44 -> 0 | F44: =[1]Summary!F44 -> 32.32 | H44: ='Info Tables'!A150 -> 1081 | I44: =[1]Summary!I44 -> 0 | J44: =[1]Summary!J44 -> 49.01 | L44: ='Info Tables'!A150 -> 1081 | M44: =[1]Summary!M44 -> 0 | N44: =[1]Summary!N44 -> 56.84 | P44: ='Info Tables'!A150 -> 1081 | Q44: =[1]Summary!Q44 -> 0 | R44: =[1]Summary!R44 -> 75.21 | T44: ='Info Tables'!A150 -> 1081 | U44: =[1]Summary!U44 -> 0 | V44: =[1]Summary!V44 -> 87.09 | X44: ='Info Tables'!A150 -> 1081 | Y44: =[1]Summary!Y44 -> 0 | Z44: =[1]Summary!Z44 -> 87.09 | AB44: ='Info Tables'!A150 -> 1081 | AC44: =[1]Summary!AC44 -> 0 | AD44: =[1]Summary!AD44 -> 94.37
A45: ='Info Tables'!A151 -> 1082 | B45: =[1]Summary!B45 -> -324.3 | D45: ='Info Tables'!A151 -> 1082 | E45: =[1]Summary!E45 -> -49.76 | F45: =[1]Summary!F45 -> 0 | H45: ='Info Tables'!A151 -> 1082 | I45: =[1]Summary!I45 -> -75.47 | J45: =[1]Summary!J45 -> 0 | L45: ='Info Tables'!A151 -> 1082 | M45: =[1]Summary!M45 -> -87.51 | N45: =[1]Summary!N45 -> 0 | P45: ='Info Tables'!A151 -> 1082 | Q45: =[1]Summary!Q45 -> -115.8 | R45: =[1]Summary!R45 -> 0 | T45: ='Info Tables'!A151 -> 1082 | U45: =[1]Summary!U45 -> -147.63 | V45: =[1]Summary!V45 -> 0 | X45: ='Info Tables'!A151 -> 1082 | Y45: =[1]Summary!Y45 -> -147.63 | Z45: =[1]Summary!Z45 -> 0 | AB45: ='Info Tables'!A151 -> 1082 | AC45: =[1]Summary!AC45 -> -145.29 | AD45: =[1]Summary!AD45 -> 0
A46: Upper Chord Members | D46: Upper Chord Members | H46: Upper Chord Members | L46: Upper Chord Members | P46: Upper Chord Members | T46: Upper Chord Members | X46: Upper Chord Members | AB46: Upper Chord Members
A47: ='Info Tables'!A152 -> 2011 | B47: =[1]Summary!B47 -> -324.3 | D47: ='Info Tables'!A152 -> 2011 | E47: =[1]Summary!E47 -> -49.76 | F47: =[1]Summary!F47 -> 0 | H47: ='Info Tables'!A152 -> 2011 | I47: =[1]Summary!I47 -> -75.47 | J47: =[1]Summary!J47 -> 0 | L47: ='Info Tables'!A152 -> 2011 | M47: =[1]Summary!M47 -> -87.51 | N47: =[1]Summary!N47 -> 0 | P47: ='Info Tables'!A152 -> 2011 | Q47: =[1]Summary!Q47 -> -115.8 | R47: =[1]Summary!R47 -> 0 | T47: ='Info Tables'!A152 -> 2011 | U47: =[1]Summary!U47 -> -147.63 | V47: =[1]Summary!V47 -> 0 | X47: ='Info Tables'!A152 -> 2011 | Y47: =[1]Summary!Y47 -> -147.63 | Z47: =[1]Summary!Z47 -> 0 | AB47: ='Info Tables'!A152 -> 2011 | AC47: =[1]Summary!AC47 -> -145.29 | AD47: =[1]Summary!AD47 -> 0
A48: ='Info Tables'!A153 -> 2012 | B48: =[1]Summary!B48 -> -306.6 | D48: ='Info Tables'!A153 -> 2012 | E48: =[1]Summary!E48 -> -47.61 | F48: =[1]Summary!F48 -> 0 | H48: ='Info Tables'!A153 -> 2012 | I48: =[1]Summary!I48 -> -72.06 | J48: =[1]Summary!J48 -> 0 | L48: ='Info Tables'!A153 -> 2012 | M48: =[1]Summary!M48 -> -83.88 | N48: =[1]Summary!N48 -> 0 | P48: ='Info Tables'!A153 -> 2012 | Q48: =[1]Summary!Q48 -> -110.07 | R48: =[1]Summary!R48 -> 0 | T48: ='Info Tables'!A153 -> 2012 | U48: =[1]Summary!U48 -> -128.71 | V48: =[1]Summary!V48 -> 0 | X48: ='Info Tables'!A153 -> 2012 | Y48: =[1]Summary!Y48 -> -128.71 | Z48: =[1]Summary!Z48 -> 0 | AB48: ='Info Tables'!A153 -> 2012 | AC48: =[1]Summary!AC48 -> -133.81 | AD48: =[1]Summary!AD48 -> 0
A49: ='Info Tables'!A154 -> 2013 | B49: =[1]Summary!B49 -> 136.7 | D49: ='Info Tables'!A154 -> 2013 | E49: =[1]Summary!E49 -> -13.65 | F49: =[1]Summary!F49 -> 29.53 | H49: ='Info Tables'!A154 -> 2013 | I49: =[1]Summary!I49 -> -19.1 | J49: =[1]Summary!J49 -> 44.69 | L49: ='Info Tables'!A154 -> 2013 | M49: =[1]Summary!M49 -> -20.06 | N49: =[1]Summary!N49 -> 51.71 | P49: ='Info Tables'!A154 -> 2013 | Q49: =[1]Summary!Q49 -> -16.47 | R49: =[1]Summary!R49 -> 67 | T49: ='Info Tables'!A154 -> 2013 | U49: =[1]Summary!U49 -> -23.93 | V49: =[1]Summary!V49 -> 77.7 | X49: ='Info Tables'!A154 -> 2013 | Y49: =[1]Summary!Y49 -> -23.93 | Z49: =[1]Summary!Z49 -> 77.7 | AB49: ='Info Tables'!A154 -> 2013 | AC49: =[1]Summary!AC49 -> -16.31 | AD49: =[1]Summary!AD49 -> 78.09
A50: ='Info Tables'!A155 -> 2014 | B50: =[1]Summary!B50 -> 71.3 | D50: ='Info Tables'!A155 -> 2014 | E50: =[1]Summary!E50 -> 0 | F50: =[1]Summary!F50 -> 42.28 | H50: ='Info Tables'!A155 -> 2014 | I50: =[1]Summary!I50 -> 0 | J50: =[1]Summary!J50 -> 62.45 | L50: ='Info Tables'!A155 -> 2014 | M50: =[1]Summary!M50 -> 0 | N50: =[1]Summary!N50 -> 69.25 | P50: ='Info Tables'!A155 -> 2014 | Q50: =[1]Summary!Q50 -> 0 | R50: =[1]Summary!R50 -> 60.81 | T50: ='Info Tables'!A155 -> 2014 | U50: =[1]Summary!U50 -> 0 | V50: =[1]Summary!V50 -> 79.55 | X50: ='Info Tables'!A155 -> 2014 | Y50: =[1]Summary!Y50 -> 0 | Z50: =[1]Summary!Z50 -> 79.55 | AB50: ='Info Tables'!A155 -> 2014 | AC50: =[1]Summary!AC50 -> 0 | AD50: =[1]Summary!AD50 -> 60.57
A51: ='Info Tables'!A156 -> 2021 | B51: =[1]Summary!B51 -> -306.6 | D51: ='Info Tables'!A156 -> 2021 | E51: =[1]Summary!E51 -> -47.61 | F51: =[1]Summary!F51 -> 0 | H51: ='Info Tables'!A156 -> 2021 | I51: =[1]Summary!I51 -> -72.06 | J51: =[1]Summary!J51 -> 0 | L51: ='Info Tables'!A156 -> 2021 | M51: =[1]Summary!M51 -> -83.88 | N51: =[1]Summary!N51 -> 0 | P51: ='Info Tables'!A156 -> 2021 | Q51: =[1]Summary!Q51 -> -110.07 | R51: =[1]Summary!R51 -> 0 | T51: ='Info Tables'!A156 -> 2021 | U51: =[1]Summary!U51 -> -128.71 | V51: =[1]Summary!V51 -> 0 | X51: ='Info Tables'!A156 -> 2021 | Y51: =[1]Summary!Y51 -> -128.71 | Z51: =[1]Summary!Z51 -> 0 | AB51: ='Info Tables'!A156 -> 2021 | AC51: =[1]Summary!AC51 -> -133.81 | AD51: =[1]Summary!AD51 -> 0
A52: ='Info Tables'!A157 -> 2022 | B52: =[1]Summary!B52 -> -355.8 | D52: ='Info Tables'!A157 -> 2022 | E52: =[1]Summary!E52 -> -55.1 | F52: =[1]Summary!F52 -> 0 | H52: ='Info Tables'!A157 -> 2022 | I52: =[1]Summary!I52 -> -83.23 | J52: =[1]Summary!J52 -> 0 | L52: ='Info Tables'!A157 -> 2022 | M52: =[1]Summary!M52 -> -97.01 | N52: =[1]Summary!N52 -> 0 | P52: ='Info Tables'!A157 -> 2022 | Q52: =[1]Summary!Q52 -> -126.58 | R52: =[1]Summary!R52 -> 0 | T52: ='Info Tables'!A157 -> 2022 | U52: =[1]Summary!U52 -> -149.69 | V52: =[1]Summary!V52 -> 0 | X52: ='Info Tables'!A157 -> 2022 | Y52: =[1]Summary!Y52 -> -149.69 | Z52: =[1]Summary!Z52 -> 0 | AB52: ='Info Tables'!A157 -> 2022 | AC52: =[1]Summary!AC52 -> -154.82 | AD52: =[1]Summary!AD52 -> 0
A53: ='Info Tables'!A158 -> 2023 | B53: =[1]Summary!B53 -> 95 | D53: ='Info Tables'!A158 -> 2023 | E53: =[1]Summary!E53 -> -17.4 | F53: =[1]Summary!F53 -> 28.91 | H53: ='Info Tables'!A158 -> 2023 | I53: =[1]Summary!I53 -> -25.6 | J53: =[1]Summary!J53 -> 43.64 | L53: ='Info Tables'!A158 -> 2023 | M53: =[1]Summary!M53 -> -28.66 | N53: =[1]Summary!N53 -> 50.34 | P53: ='Info Tables'!A158 -> 2023 | Q53: =[1]Summary!Q53 -> -25.11 | R53: =[1]Summary!R53 -> 63.23 | T53: ='Info Tables'!A158 -> 2023 | U53: =[1]Summary!U53 -> -36.13 | V53: =[1]Summary!V53 -> 68.47 | X53: ='Info Tables'!A158 -> 2023 | Y53: =[1]Summary!Y53 -> -36.13 | Z53: =[1]Summary!Z53 -> 68.47 | AB53: ='Info Tables'!A158 -> 2023 | AC53: =[1]Summary!AC53 -> -25.18 | AD53: =[1]Summary!AD53 -> 68.03
A54: ='Info Tables'!A159 -> 2024 | B54: =[1]Summary!B54 -> -43 | D54: ='Info Tables'!A159 -> 2024 | E54: =[1]Summary!E54 -> -18.93 | F54: =[1]Summary!F54 -> 21.91 | H54: ='Info Tables'!A159 -> 2024 | I54: =[1]Summary!I54 -> -28.58 | J54: =[1]Summary!J54 -> 32.23 | L54: ='Info Tables'!A159 -> 2024 | M54: =[1]Summary!M54 -> -32.98 | N54: =[1]Summary!N54 -> 36.08 | P54: ='Info Tables'!A159 -> 2024 | Q54: =[1]Summary!Q54 -> -41.42 | R54: =[1]Summary!R54 -> 32.16 | T54: ='Info Tables'!A159 -> 2024 | U54: =[1]Summary!U54 -> -44.05 | V54: =[1]Summary!V54 -> 45.49 | X54: ='Info Tables'!A159 -> 2024 | Y54: =[1]Summary!Y54 -> -44.05 | Z54: =[1]Summary!Z54 -> 45.49 | AB54: ='Info Tables'!A159 -> 2024 | AC54: =[1]Summary!AC54 -> -44.56 | AD54: =[1]Summary!AD54 -> 32.34
A55: ='Info Tables'!A160 -> 2031 | B55: =[1]Summary!B55 -> -355.8 | D55: ='Info Tables'!A160 -> 2031 | E55: =[1]Summary!E55 -> -55.1 | F55: =[1]Summary!F55 -> 0 | H55: ='Info Tables'!A160 -> 2031 | I55: =[1]Summary!I55 -> -83.23 | J55: =[1]Summary!J55 -> 0 | L55: ='Info Tables'!A160 -> 2031 | M55: =[1]Summary!M55 -> -97.01 | N55: =[1]Summary!N55 -> 0 | P55: ='Info Tables'!A160 -> 2031 | Q55: =[1]Summary!Q55 -> -126.58 | R55: =[1]Summary!R55 -> 0 | T55: ='Info Tables'!A160 -> 2031 | U55: =[1]Summary!U55 -> -149.69 | V55: =[1]Summary!V55 -> 0 | X55: ='Info Tables'!A160 -> 2031 | Y55: =[1]Summary!Y55 -> -149.69 | Z55: =[1]Summary!Z55 -> 0 | AB55: ='Info Tables'!A160 -> 2031 | AC55: =[1]Summary!AC55 -> -154.82 | AD55: =[1]Summary!AD55 -> 0
A56: ='Info Tables'!A161 -> 2032 | B56: =[1]Summary!B56 -> -378.1 | D56: ='Info Tables'!A161 -> 2032 | E56: =[1]Summary!E56 -> -58.2 | F56: =[1]Summary!F56 -> 0 | H56: ='Info Tables'!A161 -> 2032 | I56: =[1]Summary!I56 -> -88.51 | J56: =[1]Summary!J56 -> 0 | L56: ='Info Tables'!A161 -> 2032 | M56: =[1]Summary!M56 -> -102.66 | N56: =[1]Summary!N56 -> 0 | P56: ='Info Tables'!A161 -> 2032 | Q56: =[1]Summary!Q56 -> -131.76 | R56: =[1]Summary!R56 -> 0 | T56: ='Info Tables'!A161 -> 2032 | U56: =[1]Summary!U56 -> -159.25 | V56: =[1]Summary!V56 -> 0 | X56: ='Info Tables'!A161 -> 2032 | Y56: =[1]Summary!Y56 -> -159.25 | Z56: =[1]Summary!Z56 -> 0 | AB56: ='Info Tables'!A161 -> 2032 | AC56: =[1]Summary!AC56 -> -157.7 | AD56: =[1]Summary!AD56 -> 0
A57: ='Info Tables'!A162 -> 2033 | B57: =[1]Summary!B57 -> 41.1 | D57: ='Info Tables'!A162 -> 2033 | E57: =[1]Summary!E57 -> 0 | F57: =[1]Summary!F57 -> 27.02 | H57: ='Info Tables'!A162 -> 2033 | I57: =[1]Summary!I57 -> 0 | J57: =[1]Summary!J57 -> 40.62 | L57: ='Info Tables'!A162 -> 2033 | M57: =[1]Summary!M57 -> 0 | N57: =[1]Summary!N57 -> 46.65 | P57: ='Info Tables'!A162 -> 2033 | Q57: =[1]Summary!Q57 -> 0 | R57: =[1]Summary!R57 -> 55.75 | T57: ='Info Tables'!A162 -> 2033 | U57: =[1]Summary!U57 -> 0 | V57: =[1]Summary!V57 -> 60.64 | X57: ='Info Tables'!A162 -> 2033 | Y57: =[1]Summary!Y57 -> 0 | Z57: =[1]Summary!Z57 -> 60.64 | AB57: ='Info Tables'!A162 -> 2033 | AC57: =[1]Summary!AC57 -> 0 | AD57: =[1]Summary!AD57 -> 56.63
A58: ='Info Tables'!A163 -> 2034 | B58: =[1]Summary!B58 -> -13.7 | D58: ='Info Tables'!A163 -> 2034 | E58: =[1]Summary!E58 -> -19 | F58: =[1]Summary!F58 -> 21.1 | H58: ='Info Tables'!A163 -> 2034 | I58: =[1]Summary!I58 -> -28.56 | J58: =[1]Summary!J58 -> 31.5 | L58: ='Info Tables'!A163 -> 2034 | M58: =[1]Summary!M58 -> -32.79 | N58: =[1]Summary!N58 -> 35.88 | P58: ='Info Tables'!A163 -> 2034 | Q58: =[1]Summary!Q58 -> -39.19 | R58: =[1]Summary!R58 -> 39.08 | T58: ='Info Tables'!A163 -> 2034 | U58: =[1]Summary!U58 -> -42.63 | V58: =[1]Summary!V58 -> 46.19 | X58: ='Info Tables'!A163 -> 2034 | Y58: =[1]Summary!Y58 -> -42.63 | Z58: =[1]Summary!Z58 -> 46.19 | AB58: ='Info Tables'!A163 -> 2034 | AC58: =[1]Summary!AC58 -> -39.81 | AD58: =[1]Summary!AD58 -> 38.73
A59: ='Info Tables'!A164 -> 2041 | B59: =[1]Summary!B59 -> -378.1 | D59: ='Info Tables'!A164 -> 2041 | E59: =[1]Summary!E59 -> -58.2 | F59: =[1]Summary!F59 -> 0 | H59: ='Info Tables'!A164 -> 2041 | I59: =[1]Summary!I59 -> -88.51 | J59: =[1]Summary!J59 -> 0 | L59: ='Info Tables'!A164 -> 2041 | M59: =[1]Summary!M59 -> -102.66 | N59: =[1]Summary!N59 -> 0 | P59: ='Info Tables'!A164 -> 2041 | Q59: =[1]Summary!Q59 -> -131.76 | R59: =[1]Summary!R59 -> 0 | T59: ='Info Tables'!A164 -> 2041 | U59: =[1]Summary!U59 -> -159.25 | V59: =[1]Summary!V59 -> 0 | X59: ='Info Tables'!A164 -> 2041 | Y59: =[1]Summary!Y59 -> -159.25 | Z59: =[1]Summary!Z59 -> 0 | AB59: ='Info Tables'!A164 -> 2041 | AC59: =[1]Summary!AC59 -> -157.7 | AD59: =[1]Summary!AD59 -> 0
A60: ='Info Tables'!A165 -> 2042 | B60: =[1]Summary!B60 -> -378.1 | D60: ='Info Tables'!A165 -> 2042 | E60: =[1]Summary!E60 -> -58.2 | F60: =[1]Summary!F60 -> 0 | H60: ='Info Tables'!A165 -> 2042 | I60: =[1]Summary!I60 -> -88.51 | J60: =[1]Summary!J60 -> 0 | L60: ='Info Tables'!A165 -> 2042 | M60: =[1]Summary!M60 -> -102.66 | N60: =[1]Summary!N60 -> 0 | P60: ='Info Tables'!A165 -> 2042 | Q60: =[1]Summary!Q60 -> -131.76 | R60: =[1]Summary!R60 -> 0 | T60: ='Info Tables'!A165 -> 2042 | U60: =[1]Summary!U60 -> -159.25 | V60: =[1]Summary!V60 -> 0 | X60: ='Info Tables'!A165 -> 2042 | Y60: =[1]Summary!Y60 -> -159.25 | Z60: =[1]Summary!Z60 -> 0 | AB60: ='Info Tables'!A165 -> 2042 | AC60: =[1]Summary!AC60 -> -157.7 | AD60: =[1]Summary!AD60 -> 0
A61: ='Info Tables'!A166 -> 2043 | B61: =[1]Summary!B61 -> 0 | D61: ='Info Tables'!A166 -> 2043 | E61: =[1]Summary!E61 -> 0 | F61: =[1]Summary!F61 -> 20.49 | H61: ='Info Tables'!A166 -> 2043 | I61: =[1]Summary!I61 -> 0 | J61: =[1]Summary!J61 -> 30.59 | L61: ='Info Tables'!A166 -> 2043 | M61: =[1]Summary!M61 -> 0 | N61: =[1]Summary!N61 -> 34.84 | P61: ='Info Tables'!A166 -> 2043 | Q61: =[1]Summary!Q61 -> 0 | R61: =[1]Summary!R61 -> 37.95 | T61: ='Info Tables'!A166 -> 2043 | U61: =[1]Summary!U61 -> 0 | V61: =[1]Summary!V61 -> 44.86 | X61: ='Info Tables'!A166 -> 2043 | Y61: =[1]Summary!Y61 -> 0 | Z61: =[1]Summary!Z61 -> 44.86 | AB61: ='Info Tables'!A166 -> 2043 | AC61: =[1]Summary!AC61 -> 0 | AD61: =[1]Summary!AD61 -> 37.61
A62: ='Info Tables'!A167 -> 2044 | B62: =[1]Summary!B62 -> -5.7 | D62: ='Info Tables'!A167 -> 2044 | E62: =[1]Summary!E62 -> -16.91 | F62: =[1]Summary!F62 -> 22.31 | H62: ='Info Tables'!A167 -> 2044 | I62: =[1]Summary!I62 -> -25.25 | J62: =[1]Summary!J62 -> 33.54 | L62: ='Info Tables'!A167 -> 2044 | M62: =[1]Summary!M62 -> -28.76 | N62: =[1]Summary!N62 -> 38.52 | P62: ='Info Tables'!A167 -> 2044 | Q62: =[1]Summary!Q62 -> -31.33 | R62: =[1]Summary!R62 -> 46.03 | T62: ='Info Tables'!A167 -> 2044 | U62: =[1]Summary!U62 -> -37.03 | V62: =[1]Summary!V62 -> 50.06 | X62: ='Info Tables'!A167 -> 2044 | Y62: =[1]Summary!Y62 -> -37.03 | Z62: =[1]Summary!Z62 -> 50.06 | AB62: ='Info Tables'!A167 -> 2044 | AC62: =[1]Summary!AC62 -> -31.33 | AD62: =[1]Summary!AD62 -> 46.03
A63: ='Info Tables'!A168 -> 2045 | B63: =[1]Summary!B63 -> 0 | D63: ='Info Tables'!A168 -> 2045 | E63: =[1]Summary!E63 -> 0 | F63: =[1]Summary!F63 -> 20.49 | H63: ='Info Tables'!A168 -> 2045 | I63: =[1]Summary!I63 -> 0 | J63: =[1]Summary!J63 -> 30.59 | L63: ='Info Tables'!A168 -> 2045 | M63: =[1]Summary!M63 -> 0 | N63: =[1]Summary!N63 -> 34.84 | P63: ='Info Tables'!A168 -> 2045 | Q63: =[1]Summary!Q63 -> 0 | R63: =[1]Summary!R63 -> 37.95 | T63: ='Info Tables'!A168 -> 2045 | U63: =[1]Summary!U63 -> 0 | V63: =[1]Summary!V63 -> 44.86 | X63: ='Info Tables'!A168 -> 2045 | Y63: =[1]Summary!Y63 -> 0 | Z63: =[1]Summary!Z63 -> 44.86 | AB63: ='Info Tables'!A168 -> 2045 | AC63: =[1]Summary!AC63 -> 0 | AD63: =[1]Summary!AD63 -> 37.61
A64: ='Info Tables'!A169 -> 2051 | B64: =[1]Summary!B64 -> -378.1 | D64: ='Info Tables'!A169 -> 2051 | E64: =[1]Summary!E64 -> -58.2 | F64: =[1]Summary!F64 -> 0 | H64: ='Info Tables'!A169 -> 2051 | I64: =[1]Summary!I64 -> -88.51 | J64: =[1]Summary!J64 -> 0 | L64: ='Info Tables'!A169 -> 2051 | M64: =[1]Summary!M64 -> -102.66 | N64: =[1]Summary!N64 -> 0 | P64: ='Info Tables'!A169 -> 2051 | Q64: =[1]Summary!Q64 -> -131.76 | R64: =[1]Summary!R64 -> 0 | T64: ='Info Tables'!A169 -> 2051 | U64: =[1]Summary!U64 -> -159.25 | V64: =[1]Summary!V64 -> 0 | X64: ='Info Tables'!A169 -> 2051 | Y64: =[1]Summary!Y64 -> -159.25 | Z64: =[1]Summary!Z64 -> 0 | AB64: ='Info Tables'!A169 -> 2051 | AC64: =[1]Summary!AC64 -> -157.7 | AD64: =[1]Summary!AD64 -> 0
A65: ='Info Tables'!A170 -> 2052 | B65: =[1]Summary!B65 -> -355.8 | D65: ='Info Tables'!A170 -> 2052 | E65: =[1]Summary!E65 -> -55.1 | F65: =[1]Summary!F65 -> 0 | H65: ='Info Tables'!A170 -> 2052 | I65: =[1]Summary!I65 -> -83.23 | J65: =[1]Summary!J65 -> 0 | L65: ='Info Tables'!A170 -> 2052 | M65: =[1]Summary!M65 -> -97.01 | N65: =[1]Summary!N65 -> 0 | P65: ='Info Tables'!A170 -> 2052 | Q65: =[1]Summary!Q65 -> -126.58 | R65: =[1]Summary!R65 -> 0 | T65: ='Info Tables'!A170 -> 2052 | U65: =[1]Summary!U65 -> -149.69 | V65: =[1]Summary!V65 -> 0 | X65: ='Info Tables'!A170 -> 2052 | Y65: =[1]Summary!Y65 -> -149.69 | Z65: =[1]Summary!Z65 -> 0 | AB65: ='Info Tables'!A170 -> 2052 | AC65: =[1]Summary!AC65 -> -154.82 | AD65: =[1]Summary!AD65 -> 0
A66: ='Info Tables'!A171 -> 2053 | B66: =[1]Summary!B66 -> -13.7 | D66: ='Info Tables'!A171 -> 2053 | E66: =[1]Summary!E66 -> -19 | F66: =[1]Summary!F66 -> 21.1 | H66: ='Info Tables'!A171 -> 2053 | I66: =[1]Summary!I66 -> -28.56 | J66: =[1]Summary!J66 -> 31.5 | L66: ='Info Tables'!A171 -> 2053 | M66: =[1]Summary!M66 -> -32.79 | N66: =[1]Summary!N66 -> 35.88 | P66: ='Info Tables'!A171 -> 2053 | Q66: =[1]Summary!Q66 -> -39.19 | R66: =[1]Summary!R66 -> 39.08 | T66: ='Info Tables'!A171 -> 2053 | U66: =[1]Summary!U66 -> -42.63 | V66: =[1]Summary!V66 -> 46.19 | X66: ='Info Tables'!A171 -> 2053 | Y66: =[1]Summary!Y66 -> -42.63 | Z66: =[1]Summary!Z66 -> 46.19 | AB66: ='Info Tables'!A171 -> 2053 | AC66: =[1]Summary!AC66 -> -39.81 | AD66: =[1]Summary!AD66 -> 38.73
A67: ='Info Tables'!A172 -> 2054 | B67: =[1]Summary!B67 -> 41.1 | D67: ='Info Tables'!A172 -> 2054 | E67: =[1]Summary!E67 -> 0 | F67: =[1]Summary!F67 -> 27.02 | H67: ='Info Tables'!A172 -> 2054 | I67: =[1]Summary!I67 -> 0 | J67: =[1]Summary!J67 -> 40.63 | L67: ='Info Tables'!A172 -> 2054 | M67: =[1]Summary!M67 -> 0 | N67: =[1]Summary!N67 -> 46.65 | P67: ='Info Tables'!A172 -> 2054 | Q67: =[1]Summary!Q67 -> 0 | R67: =[1]Summary!R67 -> 55.75 | T67: ='Info Tables'!A172 -> 2054 | U67: =[1]Summary!U67 -> 0 | V67: =[1]Summary!V67 -> 60.64 | X67: ='Info Tables'!A172 -> 2054 | Y67: =[1]Summary!Y67 -> 0 | Z67: =[1]Summary!Z67 -> 60.64 | AB67: ='Info Tables'!A172 -> 2054 | AC67: =[1]Summary!AC67 -> 0 | AD67: =[1]Summary!AD67 -> 56.63
A68: ='Info Tables'!A173 -> 2061 | B68: =[1]Summary!B68 -> -355.8 | D68: ='Info Tables'!A173 -> 2061 | E68: =[1]Summary!E68 -> -55.1 | F68: =[1]Summary!F68 -> 0 | H68: ='Info Tables'!A173 -> 2061 | I68: =[1]Summary!I68 -> -83.23 | J68: =[1]Summary!J68 -> 0 | L68: ='Info Tables'!A173 -> 2061 | M68: =[1]Summary!M68 -> -97.01 | N68: =[1]Summary!N68 -> 0 | P68: ='Info Tables'!A173 -> 2061 | Q68: =[1]Summary!Q68 -> -126.58 | R68: =[1]Summary!R68 -> 0 | T68: ='Info Tables'!A173 -> 2061 | U68: =[1]Summary!U68 -> -149.69 | V68: =[1]Summary!V68 -> 0 | X68: ='Info Tables'!A173 -> 2061 | Y68: =[1]Summary!Y68 -> -149.69 | Z68: =[1]Summary!Z68 -> 0 | AB68: ='Info Tables'!A173 -> 2061 | AC68: =[1]Summary!AC68 -> -154.82 | AD68: =[1]Summary!AD68 -> 0
A69: ='Info Tables'!A174 -> 2062 | B69: =[1]Summary!B69 -> -306.6 | D69: ='Info Tables'!A174 -> 2062 | E69: =[1]Summary!E69 -> -47.61 | F69: =[1]Summary!F69 -> 0 | H69: ='Info Tables'!A174 -> 2062 | I69: =[1]Summary!I69 -> -72.06 | J69: =[1]Summary!J69 -> 0 | L69: ='Info Tables'!A174 -> 2062 | M69: =[1]Summary!M69 -> -83.38 | N69: =[1]Summary!N69 -> 0 | P69: ='Info Tables'!A174 -> 2062 | Q69: =[1]Summary!Q69 -> -110.07 | R69: =[1]Summary!R69 -> 0 | T69: ='Info Tables'!A174 -> 2062 | U69: =[1]Summary!U69 -> -128.71 | V69: =[1]Summary!V69 -> 0 | X69: ='Info Tables'!A174 -> 2062 | Y69: =[1]Summary!Y69 -> -128.71 | Z69: =[1]Summary!Z69 -> 0 | AB69: ='Info Tables'!A174 -> 2062 | AC69: =[1]Summary!AC69 -> -133.81 | AD69: =[1]Summary!AD69 -> 0
A70: ='Info Tables'!A175 -> 2063 | B70: =[1]Summary!B70 -> -43 | D70: ='Info Tables'!A175 -> 2063 | E70: =[1]Summary!E70 -> -18.93 | F70: =[1]Summary!F70 -> 21.91 | H70: ='Info Tables'!A175 -> 2063 | I70: =[1]Summary!I70 -> -28.58 | J70: =[1]Summary!J70 -> 32.23 | L70: ='Info Tables'!A175 -> 2063 | M70: =[1]Summary!M70 -> -32.98 | N70: =[1]Summary!N70 -> 36.08 | P70: ='Info Tables'!A175 -> 2063 | Q70: =[1]Summary!Q70 -> -41.42 | R70: =[1]Summary!R70 -> 32.16 | T70: ='Info Tables'!A175 -> 2063 | U70: =[1]Summary!U70 -> -44.05 | V70: =[1]Summary!V70 -> 45.49 | X70: ='Info Tables'!A175 -> 2063 | Y70: =[1]Summary!Y70 -> -47.88 | Z70: =[1]Summary!Z70 -> 45.49 | AB70: ='Info Tables'!A175 -> 2063 | AC70: =[1]Summary!AC70 -> -44.56 | AD70: =[1]Summary!AD70 -> 32.34
A71: ='Info Tables'!A176 -> 2064 | B71: =[1]Summary!B71 -> 95 | D71: ='Info Tables'!A176 -> 2064 | E71: =[1]Summary!E71 -> -17.4 | F71: =[1]Summary!F71 -> 28.91 | H71: ='Info Tables'!A176 -> 2064 | I71: =[1]Summary!I71 -> -25.6 | J71: =[1]Summary!J71 -> 43.64 | L71: ='Info Tables'!A176 -> 2064 | M71: =[1]Summary!M71 -> -28.66 | N71: =[1]Summary!N71 -> 50.34 | P71: ='Info Tables'!A176 -> 2064 | Q71: =[1]Summary!Q71 -> -25.11 | R71: =[1]Summary!R71 -> 63.23 | T71: ='Info Tables'!A176 -> 2064 | U71: =[1]Summary!U71 -> -36.13 | V71: =[1]Summary!V71 -> 68.47 | X71: ='Info Tables'!A176 -> 2064 | Y71: =[1]Summary!Y71 -> -36.13 | Z71: =[1]Summary!Z71 -> 68.47 | AB71: ='Info Tables'!A176 -> 2064 | AC71: =[1]Summary!AC71 -> -25.18 | AD71: =[1]Summary!AD71 -> 68.03
A72: ='Info Tables'!A177 -> 2071 | B72: =[1]Summary!B72 -> -306.6 | D72: ='Info Tables'!A177 -> 2071 | E72: =[1]Summary!E72 -> -47.61 | F72: =[1]Summary!F72 -> 0 | H72: ='Info Tables'!A177 -> 2071 | I72: =[1]Summary!I72 -> -72.06 | J72: =[1]Summary!J72 -> 0 | L72: ='Info Tables'!A177 -> 2071 | M72: =[1]Summary!M72 -> -83.38 | N72: =[1]Summary!N72 -> 0 | P72: ='Info Tables'!A177 -> 2071 | Q72: =[1]Summary!Q72 -> -110.07 | R72: =[1]Summary!R72 -> 0 | T72: ='Info Tables'!A177 -> 2071 | U72: =[1]Summary!U72 -> -128.71 | V72: =[1]Summary!V72 -> 0 | X72: ='Info Tables'!A177 -> 2071 | Y72: =[1]Summary!Y72 -> -128.71 | Z72: =[1]Summary!Z72 -> 0 | AB72: ='Info Tables'!A177 -> 2071 | AC72: =[1]Summary!AC72 -> -133.81 | AD72: =[1]Summary!AD72 -> 0
A73: ='Info Tables'!A178 -> 2072 | B73: =[1]Summary!B73 -> -324.3 | D73: ='Info Tables'!A178 -> 2072 | E73: =[1]Summary!E73 -> -49.76 | F73: =[1]Summary!F73 -> 0 | H73: ='Info Tables'!A178 -> 2072 | I73: =[1]Summary!I73 -> -75.47 | J73: =[1]Summary!J73 -> 0 | L73: ='Info Tables'!A178 -> 2072 | M73: =[1]Summary!M73 -> -87.51 | N73: =[1]Summary!N73 -> 0 | P73: ='Info Tables'!A178 -> 2072 | Q73: =[1]Summary!Q73 -> -115.8 | R73: =[1]Summary!R73 -> 0 | T73: ='Info Tables'!A178 -> 2072 | U73: =[1]Summary!U73 -> -147.63 | V73: =[1]Summary!V73 -> 0 | X73: ='Info Tables'!A178 -> 2072 | Y73: =[1]Summary!Y73 -> -147.63 | Z73: =[1]Summary!Z73 -> 0 | AB73: ='Info Tables'!A178 -> 2072 | AC73: =[1]Summary!AC73 -> -145.29 | AD73: =[1]Summary!AD73 -> 0
A74: ='Info Tables'!A179 -> 2073 | B74: =[1]Summary!B74 -> 71.3 | D74: ='Info Tables'!A179 -> 2073 | E74: =[1]Summary!E74 -> 0 | F74: =[1]Summary!F74 -> 42.28 | H74: ='Info Tables'!A179 -> 2073 | I74: =[1]Summary!I74 -> 0 | J74: =[1]Summary!J74 -> 62.45 | L74: ='Info Tables'!A179 -> 2073 | M74: =[1]Summary!M74 -> 0 | N74: =[1]Summary!N74 -> 69.25 | P74: ='Info Tables'!A179 -> 2073 | Q74: =[1]Summary!Q74 -> 0 | R74: =[1]Summary!R74 -> 60.81 | T74: ='Info Tables'!A179 -> 2073 | U74: =[1]Summary!U74 -> 0 | V74: =[1]Summary!V74 -> 79.55 | X74: ='Info Tables'!A179 -> 2073 | Y74: =[1]Summary!Y74 -> 0 | Z74: =[1]Summary!Z74 -> 79.55 | AB74: ='Info Tables'!A179 -> 2073 | AC74: =[1]Summary!AC74 -> 0 | AD74: =[1]Summary!AD74 -> 60.57
A75: ='Info Tables'!A180 -> 2074 | B75: =[1]Summary!B75 -> 136.7 | D75: ='Info Tables'!A180 -> 2074 | E75: =[1]Summary!E75 -> -13.65 | F75: =[1]Summary!F75 -> 29.53 | H75: ='Info Tables'!A180 -> 2074 | I75: =[1]Summary!I75 -> -19.1 | J75: =[1]Summary!J75 -> 44.69 | L75: ='Info Tables'!A180 -> 2074 | M75: =[1]Summary!M75 -> -20.05 | N75: =[1]Summary!N75 -> 51.71 | P75: ='Info Tables'!A180 -> 2074 | Q75: =[1]Summary!Q75 -> -16.47 | R75: =[1]Summary!R75 -> 67 | T75: ='Info Tables'!A180 -> 2074 | U75: =[1]Summary!U75 -> -23.93 | V75: =[1]Summary!V75 -> 77.7 | X75: ='Info Tables'!A180 -> 2074 | Y75: =[1]Summary!Y75 -> -23.93 | Z75: =[1]Summary!Z75 -> 77.7 | AB75: ='Info Tables'!A180 -> 2074 | AC75: =[1]Summary!AC75 -> -16.31 | AD75: =[1]Summary!AD75 -> 78.09

Sheet Info Tables
A1: Table | B1: 1
A2: Inventory Load Rating
A3: Operating Load Rating
A5: Table | B5: 2
A6: 2F1
A7: 3F1
A8: 4F1
A9: 5C1
A10: Inventory
A13: Note: To add more joints or members, just insert lines as needed. Excel will automatically include the new lines.
A16: Table | B16: 3
A17: Joints | C17: Dimensions from Project Plans | L17: Dimensions from Field Measurements
A18: ID | B18: Joint | C18: No. of Member End Gusset Plates | D18: Gusset Plate Thickness on Each Side (1-PLT Only) (in) | E18: Total Gusset Plate Thickness at Joint Both Sides (in) | F18: Gusset Plate Gross Horizontal Width (in) | G18: Gusset Plate Gross Vertical Depth/Height (in) | H18: Gusset Plate Net Horizontal Width (in) | I18: Gusset Plate Net Vertical Depth/Height (in) | J18: Max Unsupported Edge Distance Inner (in) | K18: Max Unsupported Edge Distance Outer (in) | L18: Plate Thickness Loss (Inner) | M18: Plate Thickness Loss (Outer) | N18: Remaining Plate Thickness (Inner) | O18: Remaining Plate Thickness (Outer) | P18: % Remaining Plate Thickness For Global Horizontal Shear (Inner Plate) | Q18: % Remaining Plate Thickness For Global Horizontal Shear (Outer Plate) | R18: % Remaining Plate Thickness For Global Vertical Shear (Inner Plate) | S18: % Remaining Plate Thickness For Global Vertical Shear (Outer Plate) | T18: % Remaining Plate Thickness For Maximum Edge Stiffness (Inner Plate) | U18: % Remaining Plate Thickness For Maximum Edge Stiffness (Outer Plate)
A19: 100 | B19: L0 | C19: 2 | D19: 0.625 | E19: =2*D19 -> 1.25 | F19: 49.984 | G19: 70.937 | H19: =F19-8*1 -> 41.984 | I19: =G19-13*1 -> 57.937 | J19: 27.925 | K19: 27.9252 | N19: =D19-L19 -> 0.625 | O19: =D19-M19 -> 0.625 | P19: ='[2]North Truss summary'!B3 -> 1 | Q19: ='[2]North Truss summary'!C3 -> 1 | R19: ='[2]North Truss summary'!D3 -> 0.88 | S19: ='[2]North Truss summary'!E3 -> 1 | T19: 1 | U19: 1 | W19: 1
A20: 101 | B20: L1 | C20: 2 | D20: 0.5 | E20: =2*D20 -> 1 | F20: 15.5 | G20: 39.25 | H20: =F20-4*1 -> 11.5 | I20: =G20-10*1 -> 29.25 | J20: 24.502 | K20: 24.502 | N20: =D20-L20 -> 0.5 | O20: =D20-M20 -> 0.5 | P20: ='[2]North Truss summary'!B4 -> 1 | Q20: ='[2]North Truss summary'!C4 -> 1 | R20: ='[2]North Truss summary'!D4 -> 1 | S20: ='[2]North Truss summary'!E4 -> 1 | T20: 1 | U20: 1
A21: 102 | B21: L2 | C21: 2 | D21: 0.5 | E21: 1 | F21: 50.992 | G21: 41.5 | H21: =F21-14*1 -> 36.992 | I21: =G21-6*1 -> 35.5 | J21: 27.286 | K21: 27.286 | N21: 0.5 | O21: 0.5 | P21: ='[2]North Truss summary'!B5 -> 1 | Q21: ='[2]North Truss summary'!C5 -> 1 | R21: ='[2]North Truss summary'!D5 -> 1 | S21: ='[2]North Truss summary'!E5 -> 1 | T21: 1 | U21: 1
A22: 103 | B22: L3 | C22: 2 | D22: 0.5 | E22: 1 | F22: 62 | G22: 39.25 | H22: =F22-19*1 -> 43 | I22: =G22-10*1 -> 29.25 | J22: 26.971 | K22: 26.971 | N22: 0.5 | O22: 0.5 | P22: ='[2]North Truss summary'!B6 -> 1 | Q22: ='[2]North Truss summary'!C6 -> 1 | R22: ='[2]North Truss summary'!D6 -> 1 | S22: ='[2]North Truss summary'!E6 -> 1 | T22: 1 | U22: 1
A23: 104 | B23: L4 | C23: 2 | D23: 0.5 | E23: 1 | F23: 36.125 | G23: 35.5 | H23: =F23-10*1 -> 26.125 | I23: =G23-9*1 -> 26.5 | J23: 15.614 | K23: 9.269 | N23: 0.5 | O23: 0.5 | P23: ='[2]North Truss summary'!B7 -> 1 | Q23: ='[2]North Truss summary'!C7 -> 1 | R23: ='[2]North Truss summary'!D7 -> 0.92 | S23: ='[2]North Truss summary'!E7 -> 0.98 | T23: 1 | U23: 0.97
A24: 105 | B24: L5 | C24: 2 | D24: 0.5 | E24: 1 | F24: 62 | G24: 39.25 | H24: =F24-19*1 -> 43 | I24: =G24-10*1 -> 29.25 | J24: 26.971 | K24: 26.971 | N24: 0.5 | O24: 0.5 | P24: ='[2]North Truss summary'!B8 -> 1 | Q24: ='[2]North Truss summary'!C8 -> 1 | R24: ='[2]North Truss summary'!D8 -> 1 | S24: ='[2]North Truss summary'!E8 -> 1 | T24: 1 | U24: 1
A25: 106 | B25: L6 | C25: 2 | D25: 0.5 | E25: 1 | F25: 50.992 | G25: 41.5 | H25: =F25-14*1 -> 36.992 | I25: =G25-6*1 -> 35.5 | J25: 27.286 | K25: 27.286 | N25: 0.5 | O25: 0.5 | P25: ='[2]North Truss summary'!B9 -> 1 | Q25: ='[2]North Truss summary'!C9 -> 0.98 | R25: ='[2]North Truss summary'!D9 -> 1 | S25: ='[2]North Truss summary'!E9 -> 1 | T25: 1 | U25: 1
A26: 107 | B26: L7 | C26: 2 | D26: 0.5 | E26: 1 | F26: 15.5 | G26: 39.25 | H26: =F26-4*1 -> 11.5 | I26: =G26-10*1 -> 29.25 | J26: 24.502 | K26: 24.502 | N26: 0.5 | O26: 0.5 | P26: ='[2]North Truss summary'!B10 -> 1 | Q26: ='[2]North Truss summary'!C10 -> 1 | R26: ='[2]North Truss summary'!D10 -> 1 | S26: ='[2]North Truss summary'!E10 -> 1 | T26: 1 | U26: 1
A27: 108 | B27: L8 | C27: 2 | D27: 0.625 | E27: 1.25 | F27: 49.984 | G27: 70.937 | H27: =F27-11*1 -> 38.984 | I27: =G27-13*1 -> 57.937 | J27: 27.925 | K27: 27.9252 | N27: 0.625 | O27: 0.625 | P27: ='[2]North Truss summary'!B11 -> 1 | Q27: ='[2]North Truss summary'!C11 -> 1 | R27: ='[2]North Truss summary'!D11 -> 1 | S27: ='[2]North Truss summary'!E11 -> 1 | T27: 1 | U27: 1
A28: 201 | B28: U1 | C28: 2 | D28: 0.5 | E28: 1 | F28: 49.579 | G28: 42.215 | H28: =F28-11*1 -> 38.579 | I28: =G28-9*1 -> 33.215 | J28: 23.62 | K28: 23.62 | N28: 0.5 | O28: 0.5 | P28: ='[2]North Truss summary'!B12 -> 1.38 | Q28: ='[2]North Truss summary'!C12 -> 1.38 | R28: ='[2]North Truss summary'!D12 -> 1 | S28: ='[2]North Truss summary'!E12 -> 1 | T28: 1 | U28: 1
A29: 202 | B29: U2 | C29: 2 | D29: 0.5 | E29: 1 | F29: 36.656 | G29: 36.468 | H29: =F29-7*1 -> 29.656 | I29: =G29-5*1 -> 31.468 | J29: 21.348 | K29: 21.348 | N29: 0.5 | O29: 0.5 | P29: ='[2]North Truss summary'!B13 -> 1 | Q29: ='[2]North Truss summary'!C13 -> 1 | R29: ='[2]North Truss summary'!D13 -> 1 | S29: ='[2]North Truss summary'!E13 -> 1 | T29: 1 | U29: 1
A30: 203 | B30: U3 | C30: 2 | D30: 0.5 | E30: 1 | F30: 34.537 | G30: 30.36 | H30: =F30-7*1 -> 27.537 | I30: =G30-9*1 -> 21.36 | J30: 19.035 | K30: 19.035 | N30: 0.5 | O30: 0.5 | P30: ='[2]North Truss summary'!B14 -> 1 | Q30: ='[2]North Truss summary'!C14 -> 1 | R30: ='[2]North Truss summary'!D14 -> 1 | S30: ='[2]North Truss summary'!E14 -> 1 | T30: 1 | U30: 1
A31: 204 | B31: U4 | C31: 2 | D31: 0.5 | E31: 1 | F31: 38 | G31: 30.7 | H31: =F31-10*1 -> 28 | I31: =G31-7*1 -> 23.7 | J31: 14.747 | K31: 14.747 | N31: 0.5 | O31: 0.5 | P31: ='[2]North Truss summary'!B15 -> 1 | Q31: ='[2]North Truss summary'!C15 -> 1 | R31: ='[2]North Truss summary'!D15 -> 1 | S31: ='[2]North Truss summary'!E15 -> 1 | T31: 1 | U31: 1
A32: 205 | B32: U5 | C32: 2 | D32: 0.5 | E32: 1 | F32: 34.537 | G32: 30.36 | H32: =F32-7*1 -> 27.537 | I32: =G32-9*1 -> 21.36 | J32: 19.035 | K32: 19.035 | N32: 0.5 | O32: 0.5 | P32: ='[2]North Truss summary'!B16 -> 1 | Q32: ='[2]North Truss summary'!C16 -> 1 | R32: ='[2]North Truss summary'!D16 -> 1 | S32: ='[2]North Truss summary'!E16 -> 1 | T32: 1 | U32: 1
A33: 206 | B33: U6 | C33: 2 | D33: 0.5 | E33: 1 | F33: 36.656 | G33: 36.468 | H33: =F33-7*1 -> 29.656 | I33: =G33-5*1 -> 31.468 | J33: 21.348 | K33: 21.348 | N33: 0.5 | O33: 0.5 | P33: ='[2]North Truss summary'!B17 -> 1 | Q33: ='[2]North Truss summary'!C17 -> 1 | R33: ='[2]North Truss summary'!D17 -> 1 | S33: ='[2]North Truss summary'!E17 -> 1 | T33: 1 | U33: 1
A34: 207 | B34: U7 | C34: 2 | D34: 0.5 | E34: 1 | F34: 49.579 | G34: 42.215 | H34: =F34-11*1 -> 38.579 | I34: =G34-9*1 -> 33.215 | J34: 23.62 | K34: 23.62 | N34: 0.5 | O34: =D34-M34 -> 0.5 | P34: ='[2]North Truss summary'!B18 -> 1.38 | Q34: ='[2]North Truss summary'!C18 -> 1.38 | R34: ='[2]North Truss summary'!D18 -> 1 | S34: ='[2]North Truss summary'!E18 -> 1 | T34: 1 | U34: 1
N35: =D35-L35 -> 0 | O35: =D35-M35 -> 0 | P35: 1 | Q35: 1 | R35: 1 | S35: 1 | T35: 1 | U35: 1
N36: 0 | O36: 0 | P36: 1 | Q36: 1 | R36: 1 | S36: 1 | T36: 1 | U36: 1
N37: 0 | O37: 0 | P37: 1 | Q37: 1 | R37: 1 | S37: 1 | T37: 1 | U37: 1
N38: 0 | O38: 0 | P38: 1 | Q38: 1 | R38: 1 | S38: 1 | T38: 1 | U38: 1
N39: 0 | O39: 0 | P39: 1 | Q39: 1 | R39: 1 | S39: 1 | T39: 1 | U39: 1
N40: 0 | O40: 0 | P40: 1 | Q40: 1 | R40: 1 | S40: 1 | T40: 1 | U40: 1
N41: 0 | O41: 0 | P41: 1 | Q41: 1 | R41: 1 | S41: 1 | T41: 1 | U41: 1
N42: 0 | O42: 0 | P42: 1 | Q42: 1 | R42: 1 | S42: 1 | T42: 1 | U42: 1
N43: 0 | O43: 0 | P43: 1 | Q43: 1 | R43: 1 | S43: 1 | T43: 1 | U43: 1
N44: 0 | O44: 0 | P44: 1 | Q44: 1 | R44: 1 | S44: 1 | T44: 1 | U44: 1
N45: 0 | O45: 0 | P45: 1 | Q45: 1 | R45: 1 | S45: 1 | T45: 1 | U45: 1
N46: 0 | O46: 0 | P46: 1 | Q46: 1 | R46: 1 | S46: 1 | T46: 1 | U46: 1
N47: 0 | O47: 0 | P47: 1 | Q47: 1 | R47: 1 | S47: 1 | T47: 1 | U47: 1
N48: 0 | O48: 0 | P48: 1 | Q48: 1 | R48: 1 | S48: 1 | T48: 1 | U48: 1
N49: 0 | O49: 0 | P49: 1 | Q49: 1 | R49: 1 | S49: 1 | T49: 1 | U49: 1
N50: 0 | O50: 0 | P50: 1 | Q50: 1 | R50: 1 | S50: 1 | T50: 1 | U50: 1
N51: 0 | O51: 0 | P51: 1 | Q51: 1 | R51: 1 | S51: 1 | T51: 1 | U51: 1
N52: 0 | O52: 0 | P52: 1 | Q52: 1 | R52: 1 | S52: 1 | T52: 1 | U52: 1
N53: 0 | O53: 0 | P53: 1 | Q53: 1 | R53: 1 | S53: 1 | T53: 1 | U53: 1
N54: 0 | O54: 0 | P54: 1 | Q54: 1 | R54: 1 | S54: 1 | T54: 1 | U54: 1
N55: 0 | O55: 0 | P55: 1 | Q55: 1 | R55: 1 | S55: 1 | T55: 1 | U55: 1
N56: 0 | O56: 0 | P56: 1 | Q56: 1 | R56: 1 | S56: 1 | T56: 1 | U56: 1
N57: 0 | O57: 0 | P57: 1 | Q57: 1 | R57: 1 | S57: 1 | T57: 1 | U57: 1
N58: 0 | O58: 0 | P58: 1 | Q58: 1 | R58: 1 | S58: 1 | T58: 1 | U58: 1
A67: Table | B67: 4
A68: Member Incidences | G68: Put "None" if member nonexistent
A69: Joint | B69: Chord (LT) | C69: Chord (RT) | D69: Diagonal (LT) | E69: Diagonal (RT) | F69: Vertical
A70: 100 | B70: None | C70: 1002 | D70: None | E70: 1001 | F70: None
A71: 101 | B71: 1011 | C71: 1013 | D71: None | E71: None | F71: 1012
A72: 102 | B72: 1021 | C72: 1024 | D72: 1022 | E72: None | F72: 1023
A73: 103 | B73: 1031 | C73: 1035 | D73: 1032 | E73: 1034 | F73: 1033
A74: 104 | B74: 1041 | C74: 1045 | D74: 1042 | E74: 1044 | F74: 1043
A75: 105 | B75: 1051 | C75: 1055 | D75: 1052 | E75: 1054 | F75: 1053
A76: 106 | B76: 1061 | C76: 1064 | D76: None | E76: 1063 | F76: 1062
A77: 107 | B77: 1071 | C77: 1073 | D77: None | E77: None | F77: 1072
A78: 108 | B78: 1081 | C78: None | D78: 1082 | E78: None | F78: None
A79: 201 | B79: None | C79: 2012 | D79: 2011 | E79: 2013 | F79: 2014
A80: 202 | B80: 2021 | C80: 2022 | D80: None | E80: 2023 | F80: 2024
A81: 203 | B81: 2031 | C81: 2032 | D81: None | E81: 2033 | F81: 2034
A82: 204 | B82: 2041 | C82: 2042 | D82: 2045 | E82: 2043 | F82: 2044
A83: 205 | B83: 2051 | C83: 2052 | D83: 2054 | E83: None | F83: 2053
A84: 206 | B84: 2061 | C84: 2062 | D84: 2064 | E84: None | F84: 2063
A85: 207 | B85: 2071 | C85: None | D85: 2074 | E85: 2072 | F85: 2073
A116: Table | B116: 5
A117: Member Ends
A118: ID | B118: Member | C118: Angle with Horizontal Measured CCW | D118: Base Metal Plate Thickness Per Side (in) | E118: No. of Sides | F118: Total Base Metal Plate Thickness At Member End (in) | G118: % Remaining Plate Thickness For Tensile Area (Inner Plate) | H118: % Remaining Plate Thickness For Whitmore Area (Inner Plate) | I118: % Remaining Plate Thickness For Shear Area (Inner Plate) | J118: % Remaining Plate Thickness For Rivet Count (Inner Plate) | K118: % Remaining Plate Thickness For Tensile Area (Outer Plate) | L118: % Remaining Plate Thickness For Whitmore Area (Outer Plate) | M118: % Remaining Plate Thickness For Shear Area (Outer Plate) | N118: % Remaining Plate Thickness For Rivet Count (Outer Plate)
A119: 1001 | B119: U1 L0 | C119: 49.5288 | D119: 0.716 | E119: 2 | F119: =D119*E119 -> 1.432 | G119: ='[2]North Truss summary'!H3 -> 1 | H119: ='[2]North Truss summary'!I3 -> 1 | I119: ='[2]North Truss summary'!J3 -> 0.99 | J119: 1 | K119: ='[2]North Truss summary'!K3 -> 1 | L119: ='[2]North Truss summary'!L3 -> 1 | M119: ='[2]North Truss summary'!M3 -> 1 | N119: 1
A120: 1002 | B120: L0 L1 | C120: 0 | D120: 0.75 | E120: 2 | F120: =D120*E120 -> 1.5 | G120: ='[2]North Truss summary'!H4 -> 1 | H120: ='[2]North Truss summary'!I4 -> 1 | I120: ='[2]North Truss summary'!J4 -> 1 | J120: 1 | K120: ='[2]North Truss summary'!K4 -> 1 | L120: ='[2]North Truss summary'!L4 -> 1 | M120: ='[2]North Truss summary'!M4 -> 1 | N120: 1
A121: 1011 | B121: L0 L1 | C121: 0 | D121: 0.75 | E121: 2 | F121: 1.5 | G121: ='[2]North Truss summary'!H5 -> N/A | H121: ='[2]North Truss summary'!I5 -> N/A | I121: ='[2]North Truss summary'!J5 -> N/A | J121: 1 | K121: ='[2]North Truss summary'!K5 -> N/A | L121: ='[2]North Truss summary'!L5 -> N/A | M121: ='[2]North Truss summary'!M5 -> N/A | N121: 1
A122: 1012 | B122: U1 L1 | C122: 90 | D122: =0.516+0.125 -> 0.641 | E122: 2 | F122: 1.282 | G122: ='[2]North Truss summary'!H6 -> 1 | H122: ='[2]North Truss summary'!I6 -> 1 | I122: ='[2]North Truss summary'!J6 -> 1 | J122: 1 | K122: ='[2]North Truss summary'!K6 -> 1 | L122: ='[2]North Truss summary'!L6 -> 1 | M122: ='[2]North Truss summary'!M6 -> 1 | N122: 1
A123: 1013 | B123: L1 L2 | C123: 0 | D123: 0.75 | E123: 2 | F123: 1.5 | G123: ='[2]North Truss summary'!H7 -> N/A | H123: ='[2]North Truss summary'!I7 -> N/A | I123: ='[2]North Truss summary'!J7 -> N/A | J123: 1 | K123: ='[2]North Truss summary'!K7 -> N/A | L123: ='[2]North Truss summary'!L7 -> N/A | M123: ='[2]North Truss summary'!M7 -> N/A | N123: 1
A124: 1021 | B124: L1 L2 | C124: 0 | D124: =0.75+0.5 -> 1.25 | E124: 2 | F124: 2.5 | G124: ='[2]North Truss summary'!H8 -> 2 | H124: ='[2]North Truss summary'!I8 -> 1 | I124: ='[2]North Truss summary'!J8 -> 2 | J124: 1 | K124: ='[2]North Truss summary'!K8 -> 2 | L124: ='[2]North Truss summary'!L8 -> 1 | M124: ='[2]North Truss summary'!M8 -> 2 | N124: 1
A125: 1022 | B125: U1 L2 | C125: 130.5022 | D125: 0.641 | E125: 2 | F125: 1.282 | G125: ='[2]North Truss summary'!H9 -> 1 | H125: ='[2]North Truss summary'!I9 -> 1 | I125: ='[2]North Truss summary'!J9 -> 1 | J125: 1 | K125: ='[2]North Truss summary'!K9 -> 1 | L125: ='[2]North Truss summary'!L9 -> 1 | M125: ='[2]North Truss summary'!M9 -> 1 | N125: 1
A126: 1023 | B126: U2 L2 | C126: 90 | D126: 0.606 | E126: 2 | F126: 1.212 | G126: ='[2]North Truss summary'!H10 -> 1 | H126: ='[2]North Truss summary'!I10 -> 1 | I126: ='[2]North Truss summary'!J10 -> 1 | J126: 1 | K126: ='[2]North Truss summary'!K10 -> 1 | L126: ='[2]North Truss summary'!L10 -> 1 | M126: ='[2]North Truss summary'!M10 -> 1 | N126: 1
A127: 1024 | B127: L2 L3 | C127: 0 | D127: =11/16+0.5 -> 1.1875 | E127: 2 | F127: 2.375 | G127: ='[2]North Truss summary'!H11 -> 2 | H127: ='[2]North Truss summary'!I11 -> 1 | I127: ='[2]North Truss summary'!J11 -> 2 | J127: 1 | K127: ='[2]North Truss summary'!K11 -> 2 | L127: ='[2]North Truss summary'!L11 -> 1 | M127: ='[2]North Truss summary'!M11 -> 2 | N127: 1
A128: 1031 | B128: L2 L3 | C128: 0 | D128: =11/16+3/8+3/16+0.5 -> 1.75 | E128: 2 | F128: 3.5 | G128: ='[2]North Truss summary'!H12 -> 2 | H128: ='[2]North Truss summary'!I12 -> 1.78 | I128: ='[2]North Truss summary'!J12 -> 2 | J128: 1 | K128: ='[2]North Truss summary'!K12 -> 2 | L128: ='[2]North Truss summary'!L12 -> 1.78 | M128: ='[2]North Truss summary'!M12 -> 2 | N128: 1
A129: 1032 | B129: U2 L3 | C129: 125.7243 | D129: 0.576 | E129: 2 | F129: 1.152 | G129: ='[2]North Truss summary'!H13 -> 1 | H129: ='[2]North Truss summary'!I13 -> 1 | I129: ='[2]North Truss summary'!J13 -> 1 | J129: 1 | K129: ='[2]North Truss summary'!K13 -> 1 | L129: ='[2]North Truss summary'!L13 -> 0.99 | M129: ='[2]North Truss summary'!M13 -> 0.96 | N129: 1
A130: 1033 | B130: U3 L3 | C130: 90 | D130: 0.54 | E130: 2 | F130: 1.08 | G130: ='[2]North Truss summary'!H14 -> 1 | H130: ='[2]North Truss summary'!I14 -> 1 | I130: ='[2]North Truss summary'!J14 -> 1 | J130: 1 | K130: ='[2]North Truss summary'!K14 -> 1 | L130: ='[2]North Truss summary'!L14 -> 1 | M130: ='[2]North Truss summary'!M14 -> 1 | N130: 1
A131: 1034 | B131: U4 L3 | C131: 55.6549 | D131: 0.54 | E131: 2 | F131: 1.08 | G131: ='[2]North Truss summary'!H15 -> 1 | H131: ='[2]North Truss summary'!I15 -> 1 | I131: ='[2]North Truss summary'!J15 -> 1 | J131: 1 | K131: ='[2]North Truss summary'!K15 -> 1 | L131: ='[2]North Truss summary'!L15 -> 1 | M131: ='[2]North Truss summary'!M15 -> 1 | N131: 1
A132: 1035 | B132: L3 L4 | C132: 0 | D132: =11/16+3/8+3/16+0.5 -> 1.75 | E132: 2 | F132: 3.5 | G132: ='[2]North Truss summary'!H16 -> 2 | H132: ='[2]North Truss summary'!I16 -> 1 | I132: ='[2]North Truss summary'!J16 -> 2 | J132: 1 | K132: ='[2]North Truss summary'!K16 -> 2 | L132: ='[2]North Truss summary'!L16 -> 1 | M132: ='[2]North Truss summary'!M16 -> 2 | N132: 1
A133: 1041 | B133: L3 L4 | C133: 0 | D133: =11/16+9/16 -> 1.25 | E133: 2 | F133: 2.5 | G133: ='[2]North Truss summary'!H17 -> N/A | H133: ='[2]North Truss summary'!I17 -> N/A | I133: ='[2]North Truss summary'!J17 -> N/A | J133: 1 | K133: ='[2]North Truss summary'!K17 -> N/A | L133: ='[2]North Truss summary'!L17 -> N/A | M133: ='[2]North Truss summary'!M17 -> N/A | N133: 1
A134: 1042 | B134: U3 L4 | C134: 124.3451 | D134: 0.54 | E134: 2 | F134: 1.08 | G134: ='[2]North Truss summary'!H18 -> 1 | H134: ='[2]North Truss summary'!I18 -> 0.99 | I134: ='[2]North Truss summary'!J18 -> 0.94 | J134: 1 | K134: ='[2]North Truss summary'!K18 -> 1 | L134: ='[2]North Truss summary'!L18 -> 1 | M134: ='[2]North Truss summary'!M18 -> 0.97 | N134: 1
A135: 1043 | B135: U4 L4 | C135: 90 | D135: 0.54 | E135: 2 | F135: 1.08 | G135: ='[2]North Truss summary'!H19 -> 1 | H135: ='[2]North Truss summary'!I19 -> 1 | I135: ='[2]North Truss summary'!J19 -> 0.92 | J135: 1 | K135: ='[2]North Truss summary'!K19 -> 1 | L135: ='[2]North Truss summary'!L19 -> 1 | M135: ='[2]North Truss summary'!M19 -> 0.98 | N135: 1
A136: 1044 | B136: U5 L4 | C136: 55.6549 | D136: 0.54 | E136: 2 | F136: 1.08 | G136: ='[2]North Truss summary'!H20 -> 1 | H136: ='[2]North Truss summary'!I20 -> 0.99 | I136: ='[2]North Truss summary'!J20 -> 0.97 | J136: 1 | K136: ='[2]North Truss summary'!K20 -> 1 | L136: ='[2]North Truss summary'!L20 -> 1 | M136: ='[2]North Truss summary'!M20 -> 0.97 | N136: 1
A137: 1045 | B137: L4 L5 | C137: 0 | D137: =11/16+9/16 -> 1.25 | E137: 2 | F137: 2.5 | G137: ='[2]North Truss summary'!H21 -> N/A | H137: ='[2]North Truss summary'!I21 -> N/A | I137: ='[2]North Truss summary'!J21 -> N/A | J137: 1 | K137: ='[2]North Truss summary'!K21 -> N/A | L137: ='[2]North Truss summary'!L21 -> N/A | M137: ='[2]North Truss summary'!M21 -> N/A | N137: 1
A138: 1051 | B138: L4 L5 | C138: 0 | D138: =11/16+3/8+3/16+0.5 -> 1.75 | E138: 2 | F138: 3.5 | G138: ='[2]North Truss summary'!H22 -> 2 | H138: ='[2]North Truss summary'!I22 -> 1 | I138: ='[2]North Truss summary'!J22 -> 2 | J138: 1 | K138: ='[2]North Truss summary'!K22 -> 2 | L138: ='[2]North Truss summary'!L22 -> 1 | M138: ='[2]North Truss summary'!M22 -> 2 | N138: 1
A139: 1052 | B139: U4 L5 | C139: 124.3451 | D139: 0.54 | E139: 2 | F139: 1.08 | G139: ='[2]North Truss summary'!H23 -> 1 | H139: ='[2]North Truss summary'!I23 -> 1 | I139: ='[2]North Truss summary'!J23 -> 1 | J139: 1 | K139: ='[2]North Truss summary'!K23 -> 1 | L139: ='[2]North Truss summary'!L23 -> 1 | M139: ='[2]North Truss summary'!M23 -> 1 | N139: 1
A140: 1053 | B140: U5 L5 | C140: 90 | D140: 0.54 | E140: 2 | F140: 1.08 | G140: ='[2]North Truss summary'!H24 -> 1 | H140: ='[2]North Truss summary'!I24 -> 1 | I140: ='[2]North Truss summary'!J24 -> 0.99 | J140: 0.99 | K140: ='[2]North Truss summary'!K24 -> 1 | L140: ='[2]North Truss summary'!L24 -> 1 | M140: ='[2]North Truss summary'!M24 -> 1 | N140: 1
A141: 1054 | B141: U6 L5 | C141: 54.2757 | D141: 0.576 | E141: 2 | F141: 1.152 | G141: ='[2]North Truss summary'!H25 -> 1 | H141: ='[2]North Truss summary'!I25 -> 1 | I141: ='[2]North Truss summary'!J25 -> 1 | J141: 1 | K141: ='[2]North Truss summary'!K25 -> 1 | L141: ='[2]North Truss summary'!L25 -> 1 | M141: ='[2]North Truss summary'!M25 -> 1 | N141: 1
A142: 1055 | B142: L5 L6 | C142: 0 | D142: =11/16+3/8+3/16+0.5 -> 1.75 | E142: 2 | F142: 3.5 | G142: ='[2]North Truss summary'!H26 -> 2 | H142: ='[2]North Truss summary'!I26 -> 1.78 | I142: ='[2]North Truss summary'!J26 -> 2 | J142: 1 | K142: ='[2]North Truss summary'!K26 -> 2 | L142: ='[2]North Truss summary'!L26 -> 1.78 | M142: ='[2]North Truss summary'!M26 -> 2 | N142: 1
A143: 1061 | B143: L5 L6 | C143: 0 | D143: =11/16+0.5 -> 1.1875 | E143: 2 | F143: 2.375 | G143: ='[2]North Truss summary'!H27 -> 2 | H143: ='[2]North Truss summary'!I27 -> 1 | I143: ='[2]North Truss summary'!J27 -> 2 | J143: 1 | K143: ='[2]North Truss summary'!K27 -> 2 | L143: ='[2]North Truss summary'!L27 -> 0.99 | M143: ='[2]North Truss summary'!M27 -> 1.99 | N143: 1
A144: 1062 | B144: U6 L6 | C144: 90 | D144: 0.606 | E144: 2 | F144: 1.212 | G144: ='[2]North Truss summary'!H28 -> 1 | H144: ='[2]North Truss summary'!I28 -> 1 | I144: ='[2]North Truss summary'!J28 -> 1 | J144: 1 | K144: ='[2]North Truss summary'!K28 -> 1 | L144: ='[2]North Truss summary'!L28 -> 1 | M144: ='[2]North Truss summary'!M28 -> 1 | N144: 1
A145: 1063 | B145: U7 L6 | C145: 49.4978 | D145: 0.641 | E145: 2 | F145: 1.282 | G145: ='[2]North Truss summary'!H29 -> 1 | H145: ='[2]North Truss summary'!I29 -> 1 | I145: ='[2]North Truss summary'!J29 -> 1 | J145: 1 | K145: ='[2]North Truss summary'!K29 -> 1 | L145: ='[2]North Truss summary'!L29 -> 1 | M145: ='[2]North Truss summary'!M29 -> 1 | N145: 1
A146: 1064 | B146: L6 L7 | C146: 0 | D146: =0.75+0.5 -> 1.25 | E146: 2 | F146: 2.5 | G146: ='[2]North Truss summary'!H30 -> 2 | H146: ='[2]North Truss summary'!I30 -> 1 | I146: ='[2]North Truss summary'!J30 -> 2 | J146: 1 | K146: ='[2]North Truss summary'!K30 -> 2 | L146: ='[2]North Truss summary'!L30 -> 1 | M146: ='[2]North Truss summary'!M30 -> 2 | N146: 1
A147: 1071 | B147: L6 L7 | C147: 0 | D147: 0.75 | E147: 2 | F147: 1.5 | G147: ='[2]North Truss summary'!H31 -> N/A | H147: ='[2]North Truss summary'!I31 -> N/A | I147: ='[2]North Truss summary'!J31 -> N/A | J147: 1 | K147: ='[2]North Truss summary'!K31 -> N/A | L147: ='[2]North Truss summary'!L31 -> N/A | M147: ='[2]North Truss summary'!M31 -> N/A | N147: 1
A148: 1072 | B148: U7 L7 | C148: 90 | D148: =0.516+0.125 -> 0.641 | E148: 2 | F148: 1.282 | G148: ='[2]North Truss summary'!H32 -> 1 | H148: ='[2]North Truss summary'!I32 -> 1 | I148: ='[2]North Truss summary'!J32 -> 1 | J148: 1 | K148: ='[2]North Truss summary'!K32 -> 1 | L148: ='[2]North Truss summary'!L32 -> 1 | M148: ='[2]North Truss summary'!M32 -> 1 | N148: 1
A149: 1073 | B149: L7 L8 | C149: 0 | D149: 0.75 | E149: 2 | F149: 1.5 | G149: ='[2]North Truss summary'!H33 -> N/A | H149: ='[2]North Truss summary'!I33 -> N/A | I149: ='[2]North Truss summary'!J33 -> N/A | J149: 1 | K149: ='[2]North Truss summary'!K33 -> N/A | L149: ='[2]North Truss summary'!L33 -> N/A | M149: ='[2]North Truss summary'!M33 -> N/A | N149: 1
A150: 1081 | B150: L7 L8 | C150: 0 | D150: 0.75 | E150: 2 | F150: 1.5 | G150: ='[2]North Truss summary'!H34 -> 1 | H150: ='[2]North Truss summary'!I34 -> 1 | I150: ='[2]North Truss summary'!J34 -> 1 | J150: 1 | K150: ='[2]North Truss summary'!K34 -> 1 | L150: ='[2]North Truss summary'!L34 -> 1 | M150: ='[2]North Truss summary'!M34 -> 1 | N150: 1
A151: 1082 | B151: U7 L8 | C151: 130.4712 | D151: 0.716 | E151: 2 | F151: 1.432 | G151: ='[2]North Truss summary'!H35 -> 1 | H151: ='[2]North Truss summary'!I35 -> 1 | I151: ='[2]North Truss summary'!J35 -> 0.94 | J151: 1 | K151: ='[2]North Truss summary'!K35 -> 1 | L151: ='[2]North Truss summary'!L35 -> 1 | M151: ='[2]North Truss summary'!M35 -> 1 | N151: 1
A152: 2011 | B152: U1 L0 | D152: =0.716+3/8 -> 1.091 | E152: 2 | F152: 2.182 | G152: ='[2]North Truss summary'!H36 -> 1 | H152: ='[2]North Truss summary'!I36 -> 1 | I152: ='[2]North Truss summary'!J36 -> 1 | J152: 1 | K152: ='[2]North Truss summary'!K36 -> 1 | L152: ='[2]North Truss summary'!L36 -> 1 | M152: ='[2]North Truss summary'!M36 -> 1 | N152: 1
A153: 2012 | B153: U1 U2 | D153: =0.52+0.25+3/8 -> 1.145 | E153: 2 | F153: 2.29 | G153: ='[2]North Truss summary'!H37 -> 1 | H153: ='[2]North Truss summary'!I37 -> 1 | I153: ='[2]North Truss summary'!J37 -> 1 | J153: 1 | K153: ='[2]North Truss summary'!K37 -> 1 | L153: ='[2]North Truss summary'!L37 -> 1 | M153: ='[2]North Truss summary'!M37 -> 1 | N153: 1
A154: 2013 | B154: U1 L2 | D154: 0.641 | E154: 2 | F154: 1.282 | G154: ='[2]North Truss summary'!H38 -> 1 | H154: ='[2]North Truss summary'!I38 -> 1 | I154: ='[2]North Truss summary'!J38 -> 1 | J154: 1 | K154: ='[2]North Truss summary'!K38 -> 1 | L154: ='[2]North Truss summary'!L38 -> 1 | M154: ='[2]North Truss summary'!M38 -> 1 | N154: 1
A155: 2014 | B155: U1 L1 | D155: =0.516+0.125 -> 0.641 | E155: 2 | F155: 1.282 | G155: ='[2]North Truss summary'!H39 -> 1 | H155: ='[2]North Truss summary'!I39 -> 1 | I155: ='[2]North Truss summary'!J39 -> 1 | J155: 1 | K155: ='[2]North Truss summary'!K39 -> 1 | L155: ='[2]North Truss summary'!L39 -> 1 | M155: ='[2]North Truss summary'!M39 -> 1 | N155: 1
A156: 2021 | B156: U1 U2 | D156: =0.52+3/8 -> 0.895 | E156: 2 | F156: 1.79 | G156: ='[2]North Truss summary'!H40 -> 1 | H156: ='[2]North Truss summary'!I40 -> 1 | I156: ='[2]North Truss summary'!J40 -> 1 | J156: 1 | K156: ='[2]North Truss summary'!K40 -> 1 | L156: ='[2]North Truss summary'!L40 -> 1 | M156: ='[2]North Truss summary'!M40 -> 1 | N156: 1
A157: 2022 | B157: U2 U3 | D157: =0.52+3/8 -> 0.895 | E157: 2 | F157: 1.79 | G157: ='[2]North Truss summary'!H41 -> 1 | H157: ='[2]North Truss summary'!I41 -> 1 | I157: ='[2]North Truss summary'!J41 -> 1 | J157: 1 | K157: ='[2]North Truss summary'!K41 -> 1 | L157: ='[2]North Truss summary'!L41 -> 1 | M157: ='[2]North Truss summary'!M41 -> 1 | N157: 1
A158: 2023 | B158: U2 L3 | D158: 0.576 | E158: 2 | F158: 1.152 | G158: ='[2]North Truss summary'!H42 -> 1 | H158: ='[2]North Truss summary'!I42 -> 1 | I158: ='[2]North Truss summary'!J42 -> 1 | J158: 1 | K158: ='[2]North Truss summary'!K42 -> 1 | L158: ='[2]North Truss summary'!L42 -> 1 | M158: ='[2]North Truss summary'!M42 -> 1 | N158: 1
A159: 2024 | B159: U2 L2 | D159: 0.606 | E159: 2 | F159: 1.212 | G159: ='[2]North Truss summary'!H43 -> 1 | H159: ='[2]North Truss summary'!I43 -> 1 | I159: ='[2]North Truss summary'!J43 -> 1 | J159: 1 | K159: ='[2]North Truss summary'!K43 -> 1 | L159: ='[2]North Truss summary'!L43 -> 1 | M159: ='[2]North Truss summary'!M43 -> 1 | N159: 1
A160: 2031 | B160: U2 U3 | D160: =0.52+0.25+3/8 -> 1.145 | E160: 2 | F160: 2.29 | G160: ='[2]North Truss summary'!H44 -> 1 | H160: ='[2]North Truss summary'!I44 -> 1 | I160: ='[2]North Truss summary'!J44 -> 1 | J160: 1 | K160: ='[2]North Truss summary'!K44 -> 1 | L160: ='[2]North Truss summary'!L44 -> 1 | M160: ='[2]North Truss summary'!M44 -> 1 | N160: 1
A161: 2032 | B161: U3 U4 | D161: =0.716+3/8 -> 1.091 | E161: 2 | F161: 2.182 | G161: ='[2]North Truss summary'!H45 -> 1 | H161: ='[2]North Truss summary'!I45 -> 1 | I161: ='[2]North Truss summary'!J45 -> 1 | J161: 1 | K161: ='[2]North Truss summary'!K45 -> 1 | L161: ='[2]North Truss summary'!L45 -> 1 | M161: ='[2]North Truss summary'!M45 -> 1 | N161: 1
A162: 2033 | B162: U3 L4 | D162: 0.54 | E162: 2 | F162: 1.08 | G162: ='[2]North Truss summary'!H46 -> 1 | H162: ='[2]North Truss summary'!I46 -> 1 | I162: ='[2]North Truss summary'!J46 -> 1 | J162: 1 | K162: ='[2]North Truss summary'!K46 -> 1 | L162: ='[2]North Truss summary'!L46 -> 1 | M162: ='[2]North Truss summary'!M46 -> 1 | N162: 1
A163: 2034 | B163: U3 L3 | D163: 0.54 | E163: 2 | F163: 1.08 | G163: ='[2]North Truss summary'!H47 -> 1 | H163: ='[2]North Truss summary'!I47 -> 1 | I163: ='[2]North Truss summary'!J47 -> 1 | J163: 1 | K163: ='[2]North Truss summary'!K47 -> 1 | L163: ='[2]North Truss summary'!L47 -> 1 | M163: ='[2]North Truss summary'!M47 -> 1 | N163: 1
A164: 2041 | B164: U3 U4 | D164: 0.716 | E164: 2 | F164: 1.432 | G164: ='[2]North Truss summary'!H48 -> 1 | H164: ='[2]North Truss summary'!I48 -> 1 | I164: ='[2]North Truss summary'!J48 -> 1 | J164: 1 | K164: ='[2]North Truss summary'!K48 -> 1 | L164: ='[2]North Truss summary'!L48 -> 1 | M164: ='[2]North Truss summary'!M48 -> 1 | N164: 1
A165: 2042 | B165: U4 U5 | D165: 0.716 | E165: 2 | F165: 1.432 | G165: ='[2]North Truss summary'!H49 -> 1 | H165: ='[2]North Truss summary'!I49 -> 1 | I165: ='[2]North Truss summary'!J49 -> 1 | J165: 1 | K165: ='[2]North Truss summary'!K49 -> 1 | L165: ='[2]North Truss summary'!L49 -> 1 | M165: ='[2]North Truss summary'!M49 -> 1 | N165: 1
A166: 2043 | B166: U4 L5 | D166: 0.54 | E166: 2 | F166: 1.08 | G166: ='[2]North Truss summary'!H50 -> 1 | H166: ='[2]North Truss summary'!I50 -> 1 | I166: ='[2]North Truss summary'!J50 -> 1 | J166: 1 | K166: ='[2]North Truss summary'!K50 -> 1 | L166: ='[2]North Truss summary'!L50 -> 1 | M166: ='[2]North Truss summary'!M50 -> 1 | N166: 1
A167: 2044 | B167: U4 L4 | D167: 0.54 | E167: 2 | F167: 1.08 | G167: ='[2]North Truss summary'!H51 -> 1 | H167: ='[2]North Truss summary'!I51 -> 1 | I167: ='[2]North Truss summary'!J51 -> 1 | J167: 1 | K167: ='[2]North Truss summary'!K51 -> 1 | L167: ='[2]North Truss summary'!L51 -> 1 | M167: ='[2]North Truss summary'!M51 -> 1 | N167: 1
A168: 2045 | B168: U4 L3 | D168: 0.54 | E168: 2 | F168: 1.08 | G168: ='[2]North Truss summary'!H52 -> 1 | H168: ='[2]North Truss summary'!I52 -> 1 | I168: ='[2]North Truss summary'!J52 -> 1 | J168: 1 | K168: ='[2]North Truss summary'!K52 -> 1 | L168: ='[2]North Truss summary'!L52 -> 1 | M168: ='[2]North Truss summary'!M52 -> 1 | N168: 1
A169: 2051 | B169: U4 U5 | D169: =0.716+3/8 -> 1.091 | E169: 2 | F169: 2.182 | G169: ='[2]North Truss summary'!H53 -> 1 | H169: ='[2]North Truss summary'!I53 -> 1 | I169: ='[2]North Truss summary'!J53 -> 1 | J169: 1 | K169: ='[2]North Truss summary'!K53 -> 1 | L169: ='[2]North Truss summary'!L53 -> 1 | M169: ='[2]North Truss summary'!M53 -> 1 | N169: 1
A170: 2052 | B170: U5 U6 | D170: =0.52+0.25+3/8 -> 1.145 | E170: 2 | F170: 2.29 | G170: ='[2]North Truss summary'!H54 -> 1 | H170: ='[2]North Truss summary'!I54 -> 1 | I170: ='[2]North Truss summary'!J54 -> 1 | J170: 1 | K170: ='[2]North Truss summary'!K54 -> 1 | L170: ='[2]North Truss summary'!L54 -> 1 | M170: ='[2]North Truss summary'!M54 -> 1 | N170: 1
A171: 2053 | B171: U5 L5 | D171: 0.54 | E171: 2 | F171: 1.08 | G171: ='[2]North Truss summary'!H55 -> 1 | H171: ='[2]North Truss summary'!I55 -> 1 | I171: ='[2]North Truss summary'!J55 -> 1 | J171: 1 | K171: ='[2]North Truss summary'!K55 -> 1 | L171: ='[2]North Truss summary'!L55 -> 1 | M171: ='[2]North Truss summary'!M55 -> 1 | N171: 1
A172: 2054 | B172: U5 L4 | D172: 0.54 | E172: 2 | F172: 1.08 | G172: ='[2]North Truss summary'!H56 -> 1 | H172: ='[2]North Truss summary'!I56 -> 1 | I172: ='[2]North Truss summary'!J56 -> 1 | J172: 1 | K172: ='[2]North Truss summary'!K56 -> 1 | L172: ='[2]North Truss summary'!L56 -> 1 | M172: ='[2]North Truss summary'!M56 -> 1 | N172: 1
A173: 2061 | B173: U5 U6 | D173: =0.52+3/8 -> 0.895 | E173: 2 | F173: 1.79 | G173: ='[2]North Truss summary'!H57 -> 1 | H173: ='[2]North Truss summary'!I57 -> 1 | I173: ='[2]North Truss summary'!J57 -> 1 | J173: 1 | K173: ='[2]North Truss summary'!K57 -> 1 | L173: ='[2]North Truss summary'!L57 -> 1 | M173: ='[2]North Truss summary'!M57 -> 1 | N173: 1
A174: 2062 | B174: U6 U7 | D174: =0.52+3/8 -> 0.895 | E174: 2 | F174: 1.79 | G174: ='[2]North Truss summary'!H58 -> 1 | H174: ='[2]North Truss summary'!I58 -> 1 | I174: ='[2]North Truss summary'!J58 -> 1 | J174: 1 | K174: ='[2]North Truss summary'!K58 -> 1 | L174: ='[2]North Truss summary'!L58 -> 1 | M174: ='[2]North Truss summary'!M58 -> 1 | N174: 1
A175: 2063 | B175: U6 L6 | D175: 0.606 | E175: 2 | F175: 1.212 | G175: ='[2]North Truss summary'!H59 -> 1 | H175: ='[2]North Truss summary'!I59 -> 1 | I175: ='[2]North Truss summary'!J59 -> 1 | J175: 1 | K175: ='[2]North Truss summary'!K59 -> 1 | L175: ='[2]North Truss summary'!L59 -> 1 | M175: ='[2]North Truss summary'!M59 -> 1 | N175: 1
A176: 2064 | B176: U6 L5 | D176: 0.576 | E176: 2 | F176: 1.152 | G176: ='[2]North Truss summary'!H60 -> 1 | H176: ='[2]North Truss summary'!I60 -> 1 | I176: ='[2]North Truss summary'!J60 -> 1 | J176: 1 | K176: ='[2]North Truss summary'!K60 -> 1 | L176: ='[2]North Truss summary'!L60 -> 1 | M176: ='[2]North Truss summary'!M60 -> 1 | N176: 1
A177: 2071 | B177: U6 U7 | D177: =0.52+0.25+3/8 -> 1.145 | E177: 2 | F177: 2.29 | G177: ='[2]North Truss summary'!H61 -> 1 | H177: ='[2]North Truss summary'!I61 -> 1 | I177: ='[2]North Truss summary'!J61 -> 1 | J177: 1 | K177: ='[2]North Truss summary'!K61 -> 1 | L177: ='[2]North Truss summary'!L61 -> 1 | M177: ='[2]North Truss summary'!M61 -> 1 | N177: 1
A178: 2072 | B178: U7 L8 | D178: =0.716+3/8 -> 1.091 | E178: 2 | F178: 2.182 | G178: ='[2]North Truss summary'!H62 -> 1 | H178: ='[2]North Truss summary'!I62 -> 1 | I178: ='[2]North Truss summary'!J62 -> 1 | J178: 1 | K178: ='[2]North Truss summary'!K62 -> 1 | L178: ='[2]North Truss summary'!L62 -> 1 | M178: ='[2]North Truss summary'!M62 -> 1 | N178: 1
A179: 2073 | B179: U7 L7 | D179: =0.516+0.125 -> 0.641 | E179: 2 | F179: 1.282 | G179: ='[2]North Truss summary'!H63 -> 1 | H179: ='[2]North Truss summary'!I63 -> 1 | I179: ='[2]North Truss summary'!J63 -> 1 | J179: 1 | K179: ='[2]North Truss summary'!K63 -> 1 | L179: ='[2]North Truss summary'!L63 -> 1 | M179: ='[2]North Truss summary'!M63 -> 1 | N179: 1
A180: 2074 | B180: U7 L6 | D180: 0.641 | E180: 2 | F180: 1.282 | G180: ='[2]North Truss summary'!H64 -> 1 | H180: ='[2]North Truss summary'!I64 -> 1 | I180: ='[2]North Truss summary'!J64 -> 1 | J180: 1 | K180: ='[2]North Truss summary'!K64 -> 1 | L180: ='[2]North Truss summary'!L64 -> 1 | M180: ='[2]North Truss summary'!M64 -> 1 | N180: 1
A200: Table | B200: 6 | I200: Table | J200: 6a
A201: Total Number of Connectors for Both Plates at Member Ends (Each) | I201: Connection Length For One Line of Connrctors For One Plate at Member Ends (Each)
A202: ID | B202: Joint | C202: U/L Chord (LT) | D202: U/L Chord (RT) | E202: Diagonal (LT) | F202: Diagonal (RT) | G202: Vertical | I202: ID | J202: Joint | K202: U/L Chord (LT) | L202: U/L Chord (RT) | M202: Diagonal (LT) | N202: Diagonal (RT) | O202: Vertical
A203: 100 | B203: L0 | C203: None | D203: 44 | E203: None | F203: 74 | G203: None | I203: 100 | J203: L0 | K203: None | L203: 16.5 | M203: None | N203: 29.914 | O203: None
A204: 101 | B204: L1 | C204: None | D204: None | E204: None | F204: None | G204: 28 | I204: 101 | J204: L1 | K204: None | L204: None | M204: None | N204: None | O204: 22.75
A205: 102 | B205: L2 | C205: =24*2 -> 48 | D205: =2*60 -> 120 | E205: 32 | F205: None | G205: 36 | I205: 102 | J205: L2 | K205: 10.5 | L205: =34.996+1.5 -> 36.496 | M205: 22.5 | N205: None | O205: 25
A206: 103 | B206: L3 | C206: =2*30 -> 60 | D206: =2*78 -> 156 | E206: 24 | F206: 20 | G206: 28 | I206: 103 | J206: L3 | K206: 14 | L206: 44.5 | M206: 15.5 | N206: 13.5 | O206: 21.25
A207: 104 | B207: L4 | C207: None | D207: None | E207: 20 | F207: 20 | G207: 24 | I207: 104 | J207: L4 | K207: None | L207: None | M207: 13.5 | N207: 13.5 | O207: 17.75
A208: 105 | B208: L5 | C208: =2*78 -> 156 | D208: =2*30 -> 60 | E208: 20 | F208: 24 | G208: 28 | I208: 105 | J208: L5 | K208: 44.5 | L208: 14 | M208: 13.5 | N208: 15.5 | O208: 21.25
A209: 106 | B209: L6 | C209: =2*60 -> 120 | D209: =2*24 -> 48 | E209: None | F209: 32 | G209: 36 | I209: 106 | J209: L6 | K209: 36.496 | L209: 10.5 | M209: None | N209: 22.5 | O209: 25
A210: 107 | B210: L7 | C210: None | D210: None | E210: None | F210: None | G210: 28 | I210: 107 | J210: L7 | K210: None | L210: None | M210: None | N210: None | O210: 22.75
A211: 108 | B211: L8 | C211: 44 | D211: None | E211: 74 | F211: None | G211: None | I211: 108 | J211: L8 | K211: 16.5 | L211: None | M211: 29.914 | N211: None | O211: None
A212: 201 | B212: U1 | C212: None | D212: 52 | E212: 62 | F212: 32 | G212: 24 | I212: 201 | J212: U1 | K212: None | L212: 17.25 | M212: 28.076 | N212: 22.5 | O212: 16.5
A213: 202 | B213: U2 | C213: 34 | D213: 46 | E213: None | F213: 24 | G213: 24 | I213: 202 | J213: U2 | K213: 14 | L213: 15.869 | M213: None | N213: 15.75 | O213: 15
A214: 203 | B214: U3 | C214: 40 | D214: 40 | E214: None | F214: 20 | G214: 20 | I214: 203 | J214: U3 | K214: 14.75 | L214: 15.766 | M214: None | N214: 13.5 | O214: 13.5
A215: 204 | B215: U4 | C215: None | D215: None | E215: 20 | F215: 20 | G215: 20 | I215: 204 | J215: U4 | K215: None | L215: None | M215: 13.5 | N215: 13.5 | O215: 14
A216: 205 | B216: U5 | C216: 40 | D216: 40 | E216: 20 | F216: None | G216: 20 | I216: 205 | J216: U5 | K216: 15.766 | L216: 14.75 | M216: 13.5 | N216: None | O216: 13.5
A217: 206 | B217: U6 | C217: 46 | D217: 34 | E217: 24 | F217: None | G217: 24 | I217: 206 | J217: U6 | K217: 15.869 | L217: 14 | M217: 15.75 | N217: None | O217: 15
A218: 207 | B218: U7 | C218: 52 | D218: None | E218: 32 | F218: 62 | G218: 24 | I218: 207 | J218: U7 | K218: 17.25 | L218: None | M218: 22.5 | N218: 28.076 | O218: 16.5
A250: Table | B250: =1+B200 -> 7
A251: Member Angle Perpendicular to The Gusset Plate Horizontal Shear Axis | H251: Note: Enter angles closest to plate axis (x or y direction)
A252: ID | B252: Joint | C252: U/L Chord (LT) | D252: U/L Chord (RT) | E252: Diagonal (LT) | F252: Diagonal (RT) | G252: Vertical | H252: CTY Note: Angle with Horizontal is to assumed shear horizontal axis for upper chord and the angle to the vertical is always measured CCW
A253: 100 | B253: L0 | C253: None | D253: 0 | E253: None | F253: 49.5288 | G253: None
A254: 101 | B254: L1 | C254: 0 | D254: 0 | E254: None | F254: None | G254: 90
A255: 102 | B255: L2 | C255: 0 | D255: 0 | E255: 49.4978 | F255: None | G255: 90
A256: 103 | B256: L3 | C256: 0 | D256: 0 | E256: 54.2757 | F256: 55.6549 | G256: 90
A257: 104 | B257: L4 | C257: 0 | D257: 0 | E257: 55.6549 | F257: 55.6549 | G257: 90
A258: 105 | B258: L5 | C258: 0 | D258: 0 | E258: 55.6549 | F258: 54.2757 | G258: 90
A259: 106 | B259: L6 | C259: 0 | D259: 0 | E259: None | F259: 49.4978 | G259: 90
A260: 107 | B260: L7 | C260: 0 | D260: 0 | E260: None | F260: None | G260: 90
A261: 108 | B261: L8 | C261: 0 | D261: None | E261: 49.5288 | F261: None | G261: None
A262: 201 | B262: U1 | C262: None | D262: 0 | E262: 37.18 | F262: 61.85 | G262: 77.65
A263: 202 | B263: U2 | C263: -8.21 | D263: 0 | E263: None | F263: 58.42 | G263: 85.86
A264: 203 | B264: U3 | C264: -4.14 | D264: 0 | E264: None | F264: 55.67 | G264: 90
A265: 204 | B265: U4 | C265: 0 | D265: 0 | E265: 55.67 | F265: 55.67 | G265: 90
A266: 205 | B266: U5 | C266: 0 | D266: -4.14 | E266: 55.67 | F266: None | G266: 90
A267: 206 | B267: U6 | C267: 0 | D267: -8.21 | E267: 58.42 | F267: None | G267: 94.14
A268: 207 | B268: U7 | C268: 0 | D268: None | E268: 61.85 | F268: 37.18 | G268: 102.35
A293: Note: Enter angles closest to plate axis (x or y direction)
A300: Table | B300: =1+B250 -> 8
A301: Effective Gross Whitmore Width for One Gusset Plate (in)
A302: ID | B302: ID | C302: Chord (LT) | D302: Chord (RT) | E302: Diagonal (LT) | F302: Diagonal (RT) | G302: Vertical
A303: 100 | B303: L0 | C303: None | D303: 26.321 | E303: None | F303: 46.974 | G303: None
A304: 101 | B304: L1 | C304: None | D304: None | E304: None | F304: None | G304: 15.067
A305: 102 | B305: L2 | C305: 17.196 | D305: 32.205 | E305: 29.249 | F305: None | G305: 30.237
A306: 103 | B306: L3 | C306: 19.217 | D306: 29.14 | E306: 21.166 | F306: 17.421 | G306: 27.805
A307: 104 | B307: L4 | C307: None | D307: None | E307: 17.986 | F307: 17.986 | G307: 23.264
A308: 105 | B308: L5 | C308: 29.14 | D308: 19.217 | E308: 17.421 | F308: 21.166 | G308: 27.805
A309: 106 | B309: L6 | C309: 32.205 | D309: 17.196 | E309: None | F309: 29.249 | G309: 30.237
A310: 107 | B310: L7 | C310: None | D310: None | E310: None | F310: None | G310: 15.067
A311: 108 | B311: L8 | C311: 26.321 | D311: None | E311: 46.974 | F311: None | G311: None
A312: 201 | B312: U1 | C312: None | D312: 20.843 | E312: 27.344 | F312: 31.263 | G312: 22.313
A313: 202 | B313: U2 | C313: 19.217 | D313: 22.392 | E313: None | F313: 21.454 | G313: 27.625
A314: 203 | B314: U3 | C314: 19.65 | D314: 20.372 | E314: None | F314: 17.421 | G314: 17.421
A315: 204 | B315: U4 | C315: None | D315: None | E315: 17.421 | F315: 17.421 | G315: 17.999
A316: 205 | B316: U5 | C316: 20.372 | D316: 19.65 | E316: 17.421 | F316: None | G316: 17.421
A317: 206 | B317: U6 | C317: 22.392 | D317: 19.217 | E317: 21.454 | F317: None | G317: 27.625
A318: 207 | B318: U7 | C318: 20.843 | D318: None | E318: 31.263 | F318: 27.344 | G318: 22.313
A350: Table | B350: =1+B300 -> 9
A351: Unbraced Column Length Below Member (in) | H351: Lc
A352: ID | B352: ID | C352: Chord (LT) | D352: Chord (RT) | E352: Diagonal (LT) | F352: Diagonal (RT) | G352: Vertical
A353: 100 | B353: L0 | C353: None | D353: 7.69 | E353: None | F353: 0.85 | G353: None
A354: 101 | B354: L1 | C354: None | D354: None | E354: None | F354: None | G354: 4.57
... 252 more rows

Sheet Gusset Plate Rating Summary
A1: Start Joint ID | B1: 100 | F1: Made By: | G1: CTY | H1: Date: | I1: 2009-05-27
A2: End Joint ID | B2: 207 | F2: Checked By: | G2: JAK | H2: Date: | I2: 2009-05-28
A3: Span 1 North Truss As-Inspected - Gusset Plate Ratings
A5: Joint Name | B5: HS-20 (Inventory) | C5: HS-20 (Operating) | D5: 2F1 (Operating) | E5: 3F1 (Operating) | F5: 4F1 (Operating) | G5: 5C1 (Operating) | H5: ODOT Truck Train (Operating) | I5: Edge Stiffeness AASHTO 10.16.11.3
A6: L0 | B6: 1.491333523 | C6: 2.489379804 | D6: 6.707923487 | E6: 4.4235888 | F6: 3.814216874 | G6: 2.882596558 | H6: 2.297341179 | I6: OK
A7: L1 | B7: 1.511303129 | C7: 2.522713685 | D7: 4.746496537 | E7: 3.213480762 | F7: 2.897933193 | G7: 3.300145923 | H7: 3.313222282 | I7: OK
A8: L2 | B8: 1.342617269 | C8: 2.241138056 | D8: 5.896932847 | E8: 3.896541217 | F8: 3.367558054 | G8: 2.599051149 | H8: 2.229945281 | I8: OK
A9: L3 | B9: 1.208545142 | C9: 2.017340737 | D9: 4.777838818 | E9: 3.165153992 | F9: 2.743887966 | G9: 2.184521908 | H9: 2.030388361 | I9: OK
A10: L4 | B10: 1.513233626 | C10: 2.525936129 | D10: 5.668866279 | E10: 3.769942576 | F10: 3.283446235 | G10: 2.747493576 | H10: 2.704798991 | I10: OK
A11: L5 | B11: 1.208545142 | C11: 2.017340737 | D11: 4.777838818 | E11: 3.165153992 | F11: 2.743887966 | G11: 2.184521908 | H11: 2.030388361 | I11: OK
A12: L6 | B12: 1.342617269 | C12: 2.241138056 | D12: 5.896932847 | E12: 3.896541217 | F12: 3.367558054 | G12: 2.599051149 | H12: 2.229945281 | I12: OK
A13: L7 | B13: 1.511303129 | C13: 2.522713685 | D13: 4.746496537 | E13: 3.213480762 | F13: 2.897933193 | G13: 3.300145923 | H13: 3.313222282 | I13: OK
A14: L8 | B14: 1.491333523 | C14: 2.489379804 | D14: 6.707923487 | E14: 4.4235888 | F14: 3.814216874 | G14: 2.882596558 | H14: 2.297341179 | I14: OK
A15: U1 | B15: 1.127895247 | C15: 1.882717451 | D15: 3.82751467 | E15: 2.591310172 | F15: 2.33685661 | G15: 2.400220874 | H15: 1.91303997 | I15: OK
A16: U2 | B16: 1.208545142 | C16: 2.017340737 | D16: 4.777838818 | E16: 3.165153992 | F16: 2.743887966 | G16: 2.184521908 | H16: 2.030388361 | I16: OK
A17: U3 | B17: 1.500953889 | C17: 2.505438414 | D17: 5.668866279 | E17: 3.770870676 | F17: 3.283446235 | G17: 2.747493576 | H17: 2.530063839 | I17: OK
A18: U4 | B18: 3.050765874 | C18: 5.092432267 | D18: 11.15155333 | E18: 7.46822839 | F18: 6.556772144 | G18: 6.018920104 | H18: 6.018920104 | I18: OK
A19: U5 | B19: 1.500953889 | C19: 2.505438414 | D19: 5.668866279 | E19: 3.769942576 | F19: 3.283446235 | G19: 2.747493576 | H19: 2.530063839 | I19: OK
A20: U6 | B20: 1.208545142 | C20: 2.017340737 | D20: 4.777838818 | E20: 3.165153992 | F20: 2.743887966 | G20: 2.184521908 | H20: 2.030388361 | I20: OK
A21: U7 | B21: 1.127895247 | C21: 1.882717451 | D21: 3.82751467 | E21: 2.591310172 | F21: 2.33685661 | G21: 2.400220874 | H21: 1.91303997 | I21: OK
